{"text_format":"1","workbook":"xlsx","n_sheets":105,"sheets":["無地画面","シート名設定","既定シート現在名","標準シート名","インターフェース画面設定","CV-DataBaseスーパー呼び出し印刷命令リスト1","CV-DataBaseスーパー呼び出し印刷命令リスト2","CV-DataBaseスーパー呼び出し印刷命令リスト3","CV-DataBaseスーパー呼び出し印刷命令リスト4","CV-DataBaseスーパー呼び出し印刷命令リスト5","CV-DataBaseスーパー呼び出し印刷命令リスト6","CV-DataBaseスーパー呼び出し印刷命令リスト7","CV-DataBaseスーパー呼び出し印刷命令リスト8","CV-DataBaseスーパー呼び出し印刷命令リスト9","CV-DataBaseスーパー呼び出し印刷命令リスト10","CV-DataBaseスーパー呼び出し印刷命令リスト11","CV-DataBaseスーパー呼び出し印刷命令リスト12","CV-DataBaseスーパー呼び出し印刷命令リスト13","CV-DataBaseスーパー呼び出し印刷命令リスト14","CV-DataBaseスーパー呼び出し印刷命令リスト15","CV-DataBaseスーパー呼び出し印刷命令リスト16","CV-DataBaseスーパー呼び出し印刷命令リスト17","CV-DataBaseスーパー呼び出し印刷命令リスト18","CV-DataBaseスーパー呼び出し印刷命令リスト19","CV-DataBaseスーパー呼び出し印刷命令リスト20","CV-DataBaseスーパー呼び出し印刷命令リスト21","CV-DataBaseスーパー呼び出し印刷命令リスト22","CV-DataBaseスーパー呼び出し印刷命令リスト23","CV-DataBaseスーパー呼び出し印刷命令リスト24","CV-DataBaseスーパー呼び出し印刷命令リスト25","CV-DataBaseスーパー呼び出し印刷命令リスト26","CV-DataBaseスーパー呼び出し印刷命令リスト27","CV-DataBaseスーパー呼び出し印刷命令リスト28","CV-DataBaseスーパー呼び出し印刷命令リスト29","CV-DataBaseスーパー呼び出し印刷命令リスト30","CV-DataBaseスーパー呼び出し印刷命令リスト31","CV-DataBaseスーパー呼び出し印刷命令リスト32","CV-DataBaseスーパー呼び出し印刷命令リスト33","CV-DataBaseスーパー呼び出し印刷命令リスト34","CV-DataBaseスーパー呼び出し印刷命令リスト35","CV-DataBaseスーパー呼び出し印刷命令リスト36","CV-DataBaseスーパー呼び出し印刷命令リスト37","CV-DataBaseスーパー呼び出し印刷命令リスト38","CV-DataBaseスーパー呼び出し印刷命令リスト39","CV-DataBaseスーパー呼び出し印刷命令リスト40","CV-DataBaseスーパー呼び出し印刷命令リスト41","CV-DataBaseスーパー呼び出し印刷命令リスト42","CV-DataBaseスーパー呼び出し印刷命令リスト43","CV-DataBaseスーパー呼び出し印刷命令リスト44","CV-DataBaseスーパー呼び出し印刷命令リスト45","CV-DataBaseスーパー呼び出し印刷命令リスト46","CV-DataBaseスーパー呼び出し印刷命令リスト47","CV-DataBaseスーパー呼び出し印刷命令リスト48","CV-DataBaseスーパー呼び出し印刷命令リスト49","CV-DataBaseスーパー呼び出し印刷命令リスト50","CV-DataBaseスーパー呼び出し印刷命令リスト51","CV-DataBaseスーパー呼び出し印刷命令リスト52","CV-DataBaseスーパー呼び出し印刷命令リスト53","CV-DataBaseスーパー呼び出し印刷命令リスト54","CV-DataBaseスーパー呼び出し印刷命令リスト55","CV-DataBaseスーパー呼び出し印刷命令リスト56","CV-DataBaseスーパー呼び出し印刷命令リスト57","CV-DataBaseスーパー呼び出し印刷命令リスト58","CV-DataBaseスーパー呼び出し印刷命令リスト59","CV-DataBaseスーパー呼び出し印刷命令リスト60","CV-DataBaseスーパー呼び出し印刷命令リスト61","CV-DataBaseスーパー呼び出し印刷命令リスト62","CV-DataBaseスーパー呼び出し印刷命令リスト63","CV-DataBaseスーパー呼び出し印刷命令リスト64","CV-DataBaseスーパー呼び出し印刷命令リスト65","CV-DataBaseスーパー呼び出し印刷命令リスト66","CV-DataBaseスーパー呼び出し印刷命令リスト67","CV-DataBaseスーパー呼び出し印刷命令リスト68","CV-DataBaseスーパー呼び出し印刷命令リスト69","CV-DataBaseスーパー呼び出し印刷命令リスト70","CV-DataBaseスーパー呼び出し印刷命令リスト71","CV-DataBaseスーパー呼び出し印刷命令リスト72","CV-DataBaseスーパー呼び出し印刷命令リスト73","CV-DataBaseスーパー呼び出し印刷命令リスト74","CV-DataBaseスーパー呼び出し印刷命令リスト75","CV-DataBaseスーパー呼び出し印刷命令リスト76","CV-DataBaseスーパー呼び出し印刷命令リスト77","CV-DataBaseスーパー呼び出し印刷命令リスト78","CV-DataBaseスーパー呼び出し印刷命令リスト79","CV-DataBaseスーパー呼び出し印刷命令リスト80","CV-DataBaseスーパー呼び出し印刷命令リスト81","CV-DataBaseスーパー呼び出し印刷命令リスト82","CV-DataBaseスーパー呼び出し印刷命令リスト83","CV-DataBaseスーパー呼び出し印刷命令リスト84","CV-DataBaseスーパー呼び出し印刷命令リスト85","CV-DataBaseスーパー呼び出し印刷命令リスト86","CV-DataBaseスーパー呼び出し印刷命令リスト87","CV-DataBaseスーパー呼び出し印刷命令リスト88","CV-DataBaseスーパー呼び出し印刷命令リスト89","CV-DataBaseスーパー呼び出し印刷命令リスト90","CV-DataBaseスーパー呼び出し印刷命令リスト91","CV-DataBaseスーパー呼び出し印刷命令リスト92","CV-DataBaseスーパー呼び出し印刷命令リスト93","CV-DataBaseスーパー呼び出し印刷命令リスト94","CV-DataBaseスーパー呼び出し印刷命令リスト95","CV-DataBaseスーパー呼び出し印刷命令リスト96","CV-DataBaseスーパー呼び出し印刷命令リスト97","CV-DataBaseスーパー呼び出し印刷命令リスト98","CV-DataBaseスーパー呼び出し印刷命令リスト99","CV-DataBaseスーパー呼び出し印刷命令リスト100"],"not_rendered":{"charts":0,"images":0,"macros":1,"external_links":0,"defined_names":0,"comments":104,"pivot_tables":0},"unopened":[],"bounds":{"document_bytes":16777216,"sheet_cells":100000,"rows_first":2000,"rows_last":500,"rows_between":2000,"halvings":0,"cell_chars":16384,"cell_head_chars":4096},"cells_cut":0,"cells_raw":0,"read":"whole","date_system":"1900"}

{"sheet":"無地画面","index":0,"n_rows":0,"n_cols":0,"rows_kept":0,"cut":false,"hidden":false,"merged":[]}

{"sheet":"シート名設定","index":1,"n_rows":262,"n_cols":5,"rows_kept":262,"cut":false,"hidden":false,"merged":[]}
[]
[]
[]
[null,null,null,{"$f":"シート名設定!D7","v":"シート名設定"}]
[]
[null,null,"NO","シート名"]
[null,null,1,"シート名設定"]
[null,null,2,"既定シート現在名"]
[null,null,3,"インターフェース画面設定"]
[null,null,4,"CV-DataBaseスーパー呼び出し印刷命令リスト1"]
[null,null,5,"CV-DataBaseスーパー呼び出し印刷命令リスト2"]
[null,null,6,"CV-DataBaseスーパー呼び出し印刷命令リスト3"]
[null,null,7,"CV-DataBaseスーパー呼び出し印刷命令リスト4"]
[null,null,8,"CV-DataBaseスーパー呼び出し印刷命令リスト5"]
[null,null,9,"CV-DataBaseスーパー呼び出し印刷命令リスト6"]
[null,null,10,"CV-DataBaseスーパー呼び出し印刷命令リスト7"]
[null,null,11,"CV-DataBaseスーパー呼び出し印刷命令リスト8"]
[null,null,12,"CV-DataBaseスーパー呼び出し印刷命令リスト9"]
[null,null,13,"CV-DataBaseスーパー呼び出し印刷命令リスト10"]
[null,null,14,"CV-DataBaseスーパー呼び出し印刷命令リスト11"]
[null,null,15,"CV-DataBaseスーパー呼び出し印刷命令リスト12"]
[null,null,16,"CV-DataBaseスーパー呼び出し印刷命令リスト13"]
[null,null,17,"CV-DataBaseスーパー呼び出し印刷命令リスト14"]
[null,null,18,"CV-DataBaseスーパー呼び出し印刷命令リスト15"]
[null,null,19,"CV-DataBaseスーパー呼び出し印刷命令リスト16"]
[null,null,20,"CV-DataBaseスーパー呼び出し印刷命令リスト17"]
[null,null,21,"CV-DataBaseスーパー呼び出し印刷命令リスト18"]
[null,null,22,"CV-DataBaseスーパー呼び出し印刷命令リスト19"]
[null,null,23,"CV-DataBaseスーパー呼び出し印刷命令リスト20"]
[null,null,24,"CV-DataBaseスーパー呼び出し印刷命令リスト21"]
[null,null,25,"CV-DataBaseスーパー呼び出し印刷命令リスト22"]
[null,null,26,"CV-DataBaseスーパー呼び出し印刷命令リスト23"]
[null,null,27,"CV-DataBaseスーパー呼び出し印刷命令リスト24"]
[null,null,28,"CV-DataBaseスーパー呼び出し印刷命令リスト25"]
[null,null,29,"CV-DataBaseスーパー呼び出し印刷命令リスト26"]
[null,null,30,"CV-DataBaseスーパー呼び出し印刷命令リスト27"]
[null,null,31,"CV-DataBaseスーパー呼び出し印刷命令リスト28"]
[null,null,32,"CV-DataBaseスーパー呼び出し印刷命令リスト29"]
[null,null,33,"CV-DataBaseスーパー呼び出し印刷命令リスト30"]
[null,null,34,"CV-DataBaseスーパー呼び出し印刷命令リスト31"]
[null,null,35,"CV-DataBaseスーパー呼び出し印刷命令リスト32"]
[null,null,36,"CV-DataBaseスーパー呼び出し印刷命令リスト33"]
[null,null,37,"CV-DataBaseスーパー呼び出し印刷命令リスト34"]
[null,null,38,"CV-DataBaseスーパー呼び出し印刷命令リスト35"]
[null,null,39,"CV-DataBaseスーパー呼び出し印刷命令リスト36"]
[null,null,40,"CV-DataBaseスーパー呼び出し印刷命令リスト37"]
[null,null,41,"CV-DataBaseスーパー呼び出し印刷命令リスト38"]
[null,null,42,"CV-DataBaseスーパー呼び出し印刷命令リスト39"]
[null,null,43,"CV-DataBaseスーパー呼び出し印刷命令リスト40"]
[null,null,44,"CV-DataBaseスーパー呼び出し印刷命令リスト41"]
[null,null,45,"CV-DataBaseスーパー呼び出し印刷命令リスト42"]
[null,null,46,"CV-DataBaseスーパー呼び出し印刷命令リスト43"]
[null,null,47,"CV-DataBaseスーパー呼び出し印刷命令リスト44"]
[null,null,48,"CV-DataBaseスーパー呼び出し印刷命令リスト45"]
[null,null,49,"CV-DataBaseスーパー呼び出し印刷命令リスト46"]
[null,null,50,"CV-DataBaseスーパー呼び出し印刷命令リスト47"]
[null,null,51,"CV-DataBaseスーパー呼び出し印刷命令リスト48"]
[null,null,52,"CV-DataBaseスーパー呼び出し印刷命令リスト49"]
[null,null,53,"CV-DataBaseスーパー呼び出し印刷命令リスト50"]
[null,null,54,"CV-DataBaseスーパー呼び出し印刷命令リスト51"]
[null,null,55,"CV-DataBaseスーパー呼び出し印刷命令リスト52"]
[null,null,56,"2021cvdatabaseadvancesuupayobidasiinnsatuver1siyoubann.xlsm"]
[null,null,57,"CV-DataBaseスーパー呼び出し印刷命令リスト54"]
[null,null,58,"CV-DataBaseスーパー呼び出し印刷命令リスト55"]
[null,null,59,"CV-DataBaseスーパー呼び出し印刷命令リスト56"]
[null,null,60,"CV-DataBaseスーパー呼び出し印刷命令リスト57"]
[null,null,61,"CV-DataBaseスーパー呼び出し印刷命令リスト58"]
[null,null,62,"CV-DataBaseスーパー呼び出し印刷命令リスト59"]
[null,null,63,"CV-DataBaseスーパー呼び出し印刷命令リスト60"]
[null,null,64,"CV-DataBaseスーパー呼び出し印刷命令リスト61"]
[null,null,65,"CV-DataBaseスーパー呼び出し印刷命令リスト62"]
[null,null,66,"CV-DataBaseスーパー呼び出し印刷命令リスト63"]
[null,null,67,"CV-DataBaseスーパー呼び出し印刷命令リスト64"]
[null,null,68,"CV-DataBaseスーパー呼び出し印刷命令リスト65"]
[null,null,69,"CV-DataBaseスーパー呼び出し印刷命令リスト66"]
[null,null,70,"CV-DataBaseスーパー呼び出し印刷命令リスト67"]
[null,null,71,"CV-DataBaseスーパー呼び出し印刷命令リスト68"]
[null,null,72,"CV-DataBaseスーパー呼び出し印刷命令リスト69"]
[null,null,73,"CV-DataBaseスーパー呼び出し印刷命令リスト70"]
[null,null,74,"CV-DataBaseスーパー呼び出し印刷命令リスト71"]
[null,null,75,"CV-DataBaseスーパー呼び出し印刷命令リスト72"]
[null,null,76,"CV-DataBaseスーパー呼び出し印刷命令リスト73"]
[null,null,77,"CV-DataBaseスーパー呼び出し印刷命令リスト74"]
[null,null,78,"CV-DataBaseスーパー呼び出し印刷命令リスト75"]
[null,null,79,"CV-DataBaseスーパー呼び出し印刷命令リスト76"]
[null,null,80,"CV-DataBaseスーパー呼び出し印刷命令リスト77"]
[null,null,81,"CV-DataBaseスーパー呼び出し印刷命令リスト78"]
[null,null,82,"CV-DataBaseスーパー呼び出し印刷命令リスト79"]
[null,null,83,"CV-DataBaseスーパー呼び出し印刷命令リスト80"]
[null,null,84,"CV-DataBaseスーパー呼び出し印刷命令リスト81"]
[null,null,85,"CV-DataBaseスーパー呼び出し印刷命令リスト82"]
[null,null,86,"CV-DataBaseスーパー呼び出し印刷命令リスト83"]
[null,null,87,"CV-DataBaseスーパー呼び出し印刷命令リスト84"]
[null,null,88,"CV-DataBaseスーパー呼び出し印刷命令リスト85"]
[null,null,89,"CV-DataBaseスーパー呼び出し印刷命令リスト86"]
[null,null,90,"CV-DataBaseスーパー呼び出し印刷命令リスト87"]
[null,null,91,"CV-DataBaseスーパー呼び出し印刷命令リスト88"]
[null,null,92,"CV-DataBaseスーパー呼び出し印刷命令リスト89"]
[null,null,93,"CV-DataBaseスーパー呼び出し印刷命令リスト90"]
[null,null,94,"CV-DataBaseスーパー呼び出し印刷命令リスト91"]
[null,null,95,"CV-DataBaseスーパー呼び出し印刷命令リスト92"]
[null,null,96,"CV-DataBaseスーパー呼び出し印刷命令リスト93"]
[null,null,97,"CV-DataBaseスーパー呼び出し印刷命令リスト94"]
[null,null,98,"CV-DataBaseスーパー呼び出し印刷命令リスト95"]
[null,null,99,"CV-DataBaseスーパー呼び出し印刷命令リスト96"]
[null,null,100,"CV-DataBaseスーパー呼び出し印刷命令リスト97"]
[null,null,101,"CV-DataBaseスーパー呼び出し印刷命令リスト98"]
[null,null,102,"CV-DataBaseスーパー呼び出し印刷命令リスト99"]
[null,null,103,"CV-DataBaseスーパー呼び出し印刷命令リスト100"]
[null,null,104]
[null,null,105]
[null,null,106]
[null,null,107]
[null,null,108]
[null,null,109]
[null,null,110]
[null,null,111]
[null,null,112]
[null,null,113]
[null,null,114]
[null,null,115]
[null,null,116]
[null,null,117]
[null,null,118]
[null,null,119]
[null,null,120]
[null,null,121]
[null,null,122]
[null,null,123]
[null,null,124]
[null,null,125]
[null,null,126]
[null,null,127]
[null,null,128]
[null,null,129]
[null,null,130]
[null,null,131]
[null,null,132]
[null,null,133]
[null,null,134]
[null,null,135]
[null,null,136]
[null,null,137]
[null,null,138]
[null,null,139]
[null,null,140]
[null,null,141]
[null,null,142]
[null,null,143]
[null,null,144]
[null,null,145]
[null,null,146]
[null,null,147]
[null,null,148]
[null,null,149]
[null,null,150]
[null,null,151]
[null,null,152]
[null,null,153]
[null,null,154]
[null,null,155]
[null,null,156]
[null,null,157]
[null,null,158]
[null,null,159]
[null,null,160]
[null,null,161]
[null,null,162]
[null,null,163]
[null,null,164]
[null,null,165]
[null,null,166]
[null,null,167]
[null,null,168]
[null,null,169]
[null,null,170]
[null,null,171]
[null,null,172]
[null,null,173]
[null,null,174]
[null,null,175]
[null,null,176]
[null,null,177]
[null,null,178]
[null,null,179]
[null,null,180]
[null,null,181]
[null,null,182]
[null,null,183]
[null,null,184]
[null,null,185]
[null,null,186]
[null,null,187]
[null,null,188]
[null,null,189]
[null,null,190]
[null,null,191]
[null,null,192]
[null,null,193]
[null,null,194]
[null,null,195]
[null,null,196]
[null,null,197]
[null,null,198]
[null,null,199]
[null,null,200]
[null,null,201]
[null,null,202]
[null,null,203]
[null,null,204]
[null,null,205]
[null,null,206]
[null,null,207]
[null,null,208]
[null,null,209]
[null,null,210]
[null,null,211]
[null,null,212]
[null,null,213]
[null,null,214]
[null,null,215]
[null,null,216]
[null,null,217]
[null,null,218]
[null,null,219]
[null,null,220]
[null,null,221]
[null,null,222]
[null,null,223]
[null,null,224]
[null,null,225]
[null,null,226]
[null,null,227]
[null,null,228]
[null,null,229]
[null,null,230]
[null,null,231]
[null,null,232]
[null,null,233]
[null,null,234]
[null,null,235]
[null,null,236]
[null,null,237]
[null,null,238]
[null,null,239]
[null,null,240]
[null,null,241]
[null,null,242]
[null,null,243]
[null,null,244]
[null,null,245]
[null,null,246]
[null,null,247]
[null,null,248]
[null,null,249]
[null,null,250]
[]
[]
[]
[]
[null,null,null,3,3]
[null,null,null,null,"2021cvdatabaseadvancesuupayobidasiinnsatuver1siyoubann.xlsm"]

{"sheet":"既定シート現在名","index":2,"n_rows":261,"n_cols":5,"rows_kept":261,"cut":false,"hidden":false,"merged":[]}
[]
[]
[]
[null,null,null,{"$f":"シート名設定!D8","v":"既定シート現在名"}]
[]
[null,null,"NO","シート名"]
[null,null,1,"シート名設定"]
[null,null,2,"既定シート現在名"]
[null,null,3,"インターフェース画面設定"]
[null,null,4,"CV-DataBaseスーパー呼び出し印刷命令リスト1"]
[null,null,5,"CV-DataBaseスーパー呼び出し印刷命令リスト2"]
[null,null,6,"CV-DataBaseスーパー呼び出し印刷命令リスト3"]
[null,null,7,"CV-DataBaseスーパー呼び出し印刷命令リスト4"]
[null,null,8,"CV-DataBaseスーパー呼び出し印刷命令リスト5"]
[null,null,9,"CV-DataBaseスーパー呼び出し印刷命令リスト6"]
[null,null,10,"CV-DataBaseスーパー呼び出し印刷命令リスト7"]
[null,null,11,"CV-DataBaseスーパー呼び出し印刷命令リスト8"]
[null,null,12,"CV-DataBaseスーパー呼び出し印刷命令リスト9"]
[null,null,13,"CV-DataBaseスーパー呼び出し印刷命令リスト10"]
[null,null,14,"CV-DataBaseスーパー呼び出し印刷命令リスト11"]
[null,null,15,"CV-DataBaseスーパー呼び出し印刷命令リスト12"]
[null,null,16,"CV-DataBaseスーパー呼び出し印刷命令リスト13"]
[null,null,17,"CV-DataBaseスーパー呼び出し印刷命令リスト14"]
[null,null,18,"CV-DataBaseスーパー呼び出し印刷命令リスト15"]
[null,null,19,"CV-DataBaseスーパー呼び出し印刷命令リスト16"]
[null,null,20,"CV-DataBaseスーパー呼び出し印刷命令リスト17"]
[null,null,21,"CV-DataBaseスーパー呼び出し印刷命令リスト18"]
[null,null,22,"CV-DataBaseスーパー呼び出し印刷命令リスト19"]
[null,null,23,"CV-DataBaseスーパー呼び出し印刷命令リスト20"]
[null,null,24,"CV-DataBaseスーパー呼び出し印刷命令リスト21"]
[null,null,25,"CV-DataBaseスーパー呼び出し印刷命令リスト22"]
[null,null,26,"CV-DataBaseスーパー呼び出し印刷命令リスト23"]
[null,null,27,"CV-DataBaseスーパー呼び出し印刷命令リスト24"]
[null,null,28,"CV-DataBaseスーパー呼び出し印刷命令リスト25"]
[null,null,29,"CV-DataBaseスーパー呼び出し印刷命令リスト26"]
[null,null,30,"CV-DataBaseスーパー呼び出し印刷命令リスト27"]
[null,null,31,"CV-DataBaseスーパー呼び出し印刷命令リスト28"]
[null,null,32,"CV-DataBaseスーパー呼び出し印刷命令リスト29"]
[null,null,33,"CV-DataBaseスーパー呼び出し印刷命令リスト30"]
[null,null,34,"CV-DataBaseスーパー呼び出し印刷命令リスト31"]
[null,null,35,"CV-DataBaseスーパー呼び出し印刷命令リスト32"]
[null,null,36,"CV-DataBaseスーパー呼び出し印刷命令リスト33"]
[null,null,37,"CV-DataBaseスーパー呼び出し印刷命令リスト34"]
[null,null,38,"CV-DataBaseスーパー呼び出し印刷命令リスト35"]
[null,null,39,"CV-DataBaseスーパー呼び出し印刷命令リスト36"]
[null,null,40,"CV-DataBaseスーパー呼び出し印刷命令リスト37"]
[null,null,41,"CV-DataBaseスーパー呼び出し印刷命令リスト38"]
[null,null,42,"CV-DataBaseスーパー呼び出し印刷命令リスト39"]
[null,null,43,"CV-DataBaseスーパー呼び出し印刷命令リスト40"]
[null,null,44,"CV-DataBaseスーパー呼び出し印刷命令リスト41"]
[null,null,45,"CV-DataBaseスーパー呼び出し印刷命令リスト42"]
[null,null,46,"CV-DataBaseスーパー呼び出し印刷命令リスト43"]
[null,null,47,"CV-DataBaseスーパー呼び出し印刷命令リスト44"]
[null,null,48,"CV-DataBaseスーパー呼び出し印刷命令リスト45"]
[null,null,49,"CV-DataBaseスーパー呼び出し印刷命令リスト46"]
[null,null,50,"CV-DataBaseスーパー呼び出し印刷命令リスト47"]
[null,null,51,"CV-DataBaseスーパー呼び出し印刷命令リスト48"]
[null,null,52,"CV-DataBaseスーパー呼び出し印刷命令リスト49"]
[null,null,53,"CV-DataBaseスーパー呼び出し印刷命令リスト50"]
[null,null,54,"CV-DataBaseスーパー呼び出し印刷命令リスト51"]
[null,null,55,"CV-DataBaseスーパー呼び出し印刷命令リスト52"]
[null,null,56,"CV-DataBaseスーパー呼び出し印刷命令リスト53"]
[null,null,57,"CV-DataBaseスーパー呼び出し印刷命令リスト54"]
[null,null,58,"CV-DataBaseスーパー呼び出し印刷命令リスト55"]
[null,null,59,"CV-DataBaseスーパー呼び出し印刷命令リスト56"]
[null,null,60,"CV-DataBaseスーパー呼び出し印刷命令リスト57"]
[null,null,61,"CV-DataBaseスーパー呼び出し印刷命令リスト58"]
[null,null,62,"CV-DataBaseスーパー呼び出し印刷命令リスト59"]
[null,null,63,"CV-DataBaseスーパー呼び出し印刷命令リスト60"]
[null,null,64,"CV-DataBaseスーパー呼び出し印刷命令リスト61"]
[null,null,65,"CV-DataBaseスーパー呼び出し印刷命令リスト62"]
[null,null,66,"CV-DataBaseスーパー呼び出し印刷命令リスト63"]
[null,null,67,"CV-DataBaseスーパー呼び出し印刷命令リスト64"]
[null,null,68,"CV-DataBaseスーパー呼び出し印刷命令リスト65"]
[null,null,69,"CV-DataBaseスーパー呼び出し印刷命令リスト66"]
[null,null,70,"CV-DataBaseスーパー呼び出し印刷命令リスト67"]
[null,null,71,"CV-DataBaseスーパー呼び出し印刷命令リスト68"]
[null,null,72,"CV-DataBaseスーパー呼び出し印刷命令リスト69"]
[null,null,73,"CV-DataBaseスーパー呼び出し印刷命令リスト70"]
[null,null,74,"CV-DataBaseスーパー呼び出し印刷命令リスト71"]
[null,null,75,"CV-DataBaseスーパー呼び出し印刷命令リスト72"]
[null,null,76,"CV-DataBaseスーパー呼び出し印刷命令リスト73"]
[null,null,77,"CV-DataBaseスーパー呼び出し印刷命令リスト74"]
[null,null,78,"CV-DataBaseスーパー呼び出し印刷命令リスト75"]
[null,null,79,"CV-DataBaseスーパー呼び出し印刷命令リスト76"]
[null,null,80,"CV-DataBaseスーパー呼び出し印刷命令リスト77"]
[null,null,81,"CV-DataBaseスーパー呼び出し印刷命令リスト78"]
[null,null,82,"CV-DataBaseスーパー呼び出し印刷命令リスト79"]
[null,null,83,"CV-DataBaseスーパー呼び出し印刷命令リスト80"]
[null,null,84,"CV-DataBaseスーパー呼び出し印刷命令リスト81"]
[null,null,85,"CV-DataBaseスーパー呼び出し印刷命令リスト82"]
[null,null,86,"CV-DataBaseスーパー呼び出し印刷命令リスト83"]
[null,null,87,"CV-DataBaseスーパー呼び出し印刷命令リスト84"]
[null,null,88,"CV-DataBaseスーパー呼び出し印刷命令リスト85"]
[null,null,89,"CV-DataBaseスーパー呼び出し印刷命令リスト86"]
[null,null,90,"CV-DataBaseスーパー呼び出し印刷命令リスト87"]
[null,null,91,"CV-DataBaseスーパー呼び出し印刷命令リスト88"]
[null,null,92,"CV-DataBaseスーパー呼び出し印刷命令リスト89"]
[null,null,93,"CV-DataBaseスーパー呼び出し印刷命令リスト90"]
[null,null,94,"CV-DataBaseスーパー呼び出し印刷命令リスト91"]
[null,null,95,"CV-DataBaseスーパー呼び出し印刷命令リスト92"]
[null,null,96,"CV-DataBaseスーパー呼び出し印刷命令リスト93"]
[null,null,97,"CV-DataBaseスーパー呼び出し印刷命令リスト94"]
[null,null,98,"CV-DataBaseスーパー呼び出し印刷命令リスト95"]
[null,null,99,"CV-DataBaseスーパー呼び出し印刷命令リスト96"]
[null,null,100,"CV-DataBaseスーパー呼び出し印刷命令リスト97"]
[null,null,101,"CV-DataBaseスーパー呼び出し印刷命令リスト98"]
[null,null,102,"CV-DataBaseスーパー呼び出し印刷命令リスト99"]
[null,null,103,"CV-DataBaseスーパー呼び出し印刷命令リスト100"]
[null,null,104]
[null,null,105]
[null,null,106]
[null,null,107]
[null,null,108]
[null,null,109]
[null,null,110]
[null,null,111]
[null,null,112]
[null,null,113]
[null,null,114]
[null,null,115]
[null,null,116]
[null,null,117]
[null,null,118]
[null,null,119]
[null,null,120]
[null,null,121]
[null,null,122]
[null,null,123]
[null,null,124]
[null,null,125]
[null,null,126]
[null,null,127]
[null,null,128]
[null,null,129]
[null,null,130]
[null,null,131]
[null,null,132]
[null,null,133]
[null,null,134]
[null,null,135]
[null,null,136]
[null,null,137]
[null,null,138]
[null,null,139]
[null,null,140]
[null,null,141]
[null,null,142]
[null,null,143]
[null,null,144]
[null,null,145]
[null,null,146]
[null,null,147]
[null,null,148]
[null,null,149]
[null,null,150]
[null,null,151]
[null,null,152]
[null,null,153]
[null,null,154]
[null,null,155]
[null,null,156]
[null,null,157]
[null,null,158]
[null,null,159]
[null,null,160]
[null,null,161]
[null,null,162]
[null,null,163]
[null,null,164]
[null,null,165]
[null,null,166]
[null,null,167]
[null,null,168]
[null,null,169]
[null,null,170]
[null,null,171]
[null,null,172]
[null,null,173]
[null,null,174]
[null,null,175]
[null,null,176]
[null,null,177]
[null,null,178]
[null,null,179]
[null,null,180]
[null,null,181]
[null,null,182]
[null,null,183]
[null,null,184]
[null,null,185]
[null,null,186]
[null,null,187]
[null,null,188]
[null,null,189]
[null,null,190]
[null,null,191]
[null,null,192]
[null,null,193]
[null,null,194]
[null,null,195]
[null,null,196]
[null,null,197]
[null,null,198]
[null,null,199]
[null,null,200]
[null,null,201]
[null,null,202]
[null,null,203]
[null,null,204]
[null,null,205]
[null,null,206]
[null,null,207]
[null,null,208]
[null,null,209]
[null,null,210]
[null,null,211]
[null,null,212]
[null,null,213]
[null,null,214]
[null,null,215]
[null,null,216]
[null,null,217]
[null,null,218]
[null,null,219]
[null,null,220]
[null,null,221]
[null,null,222]
[null,null,223]
[null,null,224]
[null,null,225]
[null,null,226]
[null,null,227]
[null,null,228]
[null,null,229]
[null,null,230]
[null,null,231]
[null,null,232]
[null,null,233]
[null,null,234]
[null,null,235]
[null,null,236]
[null,null,237]
[null,null,238]
[null,null,239]
[null,null,240]
[null,null,241]
[null,null,242]
[null,null,243]
[null,null,244]
[null,null,245]
[null,null,246]
[null,null,247]
[null,null,248]
[null,null,249]
[null,null,250]
[]
[]
[]
[]
[null,null,null,null,{"$f":"IF(ISERROR(シート名設定!D6)=TRUE,1,0)","v":0}]

{"sheet":"標準シート名","index":3,"n_rows":256,"n_cols":4,"rows_kept":256,"cut":false,"hidden":false,"merged":[]}
[]
[]
[]
[null,null,null,"標準シート名"]
[]
[null,null,"NO","シート名"]
[null,null,1,"シート名設定"]
[null,null,2,"既定シート現在名"]
[null,null,3,"インターフェース画面設定"]
[null,null,4,"CV-DataBaseスーパー呼び出し印刷命令リスト1"]
[null,null,5,"CV-DataBaseスーパー呼び出し印刷命令リスト2"]
[null,null,6,"CV-DataBaseスーパー呼び出し印刷命令リスト3"]
[null,null,7,"CV-DataBaseスーパー呼び出し印刷命令リスト4"]
[null,null,8,"CV-DataBaseスーパー呼び出し印刷命令リスト5"]
[null,null,9,"CV-DataBaseスーパー呼び出し印刷命令リスト6"]
[null,null,10,"CV-DataBaseスーパー呼び出し印刷命令リスト7"]
[null,null,11,"CV-DataBaseスーパー呼び出し印刷命令リスト8"]
[null,null,12,"CV-DataBaseスーパー呼び出し印刷命令リスト9"]
[null,null,13,"CV-DataBaseスーパー呼び出し印刷命令リスト10"]
[null,null,14,"CV-DataBaseスーパー呼び出し印刷命令リスト11"]
[null,null,15,"CV-DataBaseスーパー呼び出し印刷命令リスト12"]
[null,null,16,"CV-DataBaseスーパー呼び出し印刷命令リスト13"]
[null,null,17,"CV-DataBaseスーパー呼び出し印刷命令リスト14"]
[null,null,18,"CV-DataBaseスーパー呼び出し印刷命令リスト15"]
[null,null,19,"CV-DataBaseスーパー呼び出し印刷命令リスト16"]
[null,null,20,"CV-DataBaseスーパー呼び出し印刷命令リスト17"]
[null,null,21,"CV-DataBaseスーパー呼び出し印刷命令リスト18"]
[null,null,22,"CV-DataBaseスーパー呼び出し印刷命令リスト19"]
[null,null,23,"CV-DataBaseスーパー呼び出し印刷命令リスト20"]
[null,null,24,"CV-DataBaseスーパー呼び出し印刷命令リスト21"]
[null,null,25,"CV-DataBaseスーパー呼び出し印刷命令リスト22"]
[null,null,26,"CV-DataBaseスーパー呼び出し印刷命令リスト23"]
[null,null,27,"CV-DataBaseスーパー呼び出し印刷命令リスト24"]
[null,null,28,"CV-DataBaseスーパー呼び出し印刷命令リスト25"]
[null,null,29,"CV-DataBaseスーパー呼び出し印刷命令リスト26"]
[null,null,30,"CV-DataBaseスーパー呼び出し印刷命令リスト27"]
[null,null,31,"CV-DataBaseスーパー呼び出し印刷命令リスト28"]
[null,null,32,"CV-DataBaseスーパー呼び出し印刷命令リスト29"]
[null,null,33,"CV-DataBaseスーパー呼び出し印刷命令リスト30"]
[null,null,34,"CV-DataBaseスーパー呼び出し印刷命令リスト31"]
[null,null,35,"CV-DataBaseスーパー呼び出し印刷命令リスト32"]
[null,null,36,"CV-DataBaseスーパー呼び出し印刷命令リスト33"]
[null,null,37,"CV-DataBaseスーパー呼び出し印刷命令リスト34"]
[null,null,38,"CV-DataBaseスーパー呼び出し印刷命令リスト35"]
[null,null,39,"CV-DataBaseスーパー呼び出し印刷命令リスト36"]
[null,null,40,"CV-DataBaseスーパー呼び出し印刷命令リスト37"]
[null,null,41,"CV-DataBaseスーパー呼び出し印刷命令リスト38"]
[null,null,42,"CV-DataBaseスーパー呼び出し印刷命令リスト39"]
[null,null,43,"CV-DataBaseスーパー呼び出し印刷命令リスト40"]
[null,null,44,"CV-DataBaseスーパー呼び出し印刷命令リスト41"]
[null,null,45,"CV-DataBaseスーパー呼び出し印刷命令リスト42"]
[null,null,46,"CV-DataBaseスーパー呼び出し印刷命令リスト43"]
[null,null,47,"CV-DataBaseスーパー呼び出し印刷命令リスト44"]
[null,null,48,"CV-DataBaseスーパー呼び出し印刷命令リスト45"]
[null,null,49,"CV-DataBaseスーパー呼び出し印刷命令リスト46"]
[null,null,50,"CV-DataBaseスーパー呼び出し印刷命令リスト47"]
[null,null,51,"CV-DataBaseスーパー呼び出し印刷命令リスト48"]
[null,null,52,"CV-DataBaseスーパー呼び出し印刷命令リスト49"]
[null,null,53,"CV-DataBaseスーパー呼び出し印刷命令リスト50"]
[null,null,54,"CV-DataBaseスーパー呼び出し印刷命令リスト51"]
[null,null,55,"CV-DataBaseスーパー呼び出し印刷命令リスト52"]
[null,null,56,"CV-DataBaseスーパー呼び出し印刷命令リスト53"]
[null,null,57,"CV-DataBaseスーパー呼び出し印刷命令リスト54"]
[null,null,58,"CV-DataBaseスーパー呼び出し印刷命令リスト55"]
[null,null,59,"CV-DataBaseスーパー呼び出し印刷命令リスト56"]
[null,null,60,"CV-DataBaseスーパー呼び出し印刷命令リスト57"]
[null,null,61,"CV-DataBaseスーパー呼び出し印刷命令リスト58"]
[null,null,62,"CV-DataBaseスーパー呼び出し印刷命令リスト59"]
[null,null,63,"CV-DataBaseスーパー呼び出し印刷命令リスト60"]
[null,null,64,"CV-DataBaseスーパー呼び出し印刷命令リスト61"]
[null,null,65,"CV-DataBaseスーパー呼び出し印刷命令リスト62"]
[null,null,66,"CV-DataBaseスーパー呼び出し印刷命令リスト63"]
[null,null,67,"CV-DataBaseスーパー呼び出し印刷命令リスト64"]
[null,null,68,"CV-DataBaseスーパー呼び出し印刷命令リスト65"]
[null,null,69,"CV-DataBaseスーパー呼び出し印刷命令リスト66"]
[null,null,70,"CV-DataBaseスーパー呼び出し印刷命令リスト67"]
[null,null,71,"CV-DataBaseスーパー呼び出し印刷命令リスト68"]
[null,null,72,"CV-DataBaseスーパー呼び出し印刷命令リスト69"]
[null,null,73,"CV-DataBaseスーパー呼び出し印刷命令リスト70"]
[null,null,74,"CV-DataBaseスーパー呼び出し印刷命令リスト71"]
[null,null,75,"CV-DataBaseスーパー呼び出し印刷命令リスト72"]
[null,null,76,"CV-DataBaseスーパー呼び出し印刷命令リスト73"]
[null,null,77,"CV-DataBaseスーパー呼び出し印刷命令リスト74"]
[null,null,78,"CV-DataBaseスーパー呼び出し印刷命令リスト75"]
[null,null,79,"CV-DataBaseスーパー呼び出し印刷命令リスト76"]
[null,null,80,"CV-DataBaseスーパー呼び出し印刷命令リスト77"]
[null,null,81,"CV-DataBaseスーパー呼び出し印刷命令リスト78"]
[null,null,82,"CV-DataBaseスーパー呼び出し印刷命令リスト79"]
[null,null,83,"CV-DataBaseスーパー呼び出し印刷命令リスト80"]
[null,null,84,"CV-DataBaseスーパー呼び出し印刷命令リスト81"]
[null,null,85,"CV-DataBaseスーパー呼び出し印刷命令リスト82"]
[null,null,86,"CV-DataBaseスーパー呼び出し印刷命令リスト83"]
[null,null,87,"CV-DataBaseスーパー呼び出し印刷命令リスト84"]
[null,null,88,"CV-DataBaseスーパー呼び出し印刷命令リスト85"]
[null,null,89,"CV-DataBaseスーパー呼び出し印刷命令リスト86"]
[null,null,90,"CV-DataBaseスーパー呼び出し印刷命令リスト87"]
[null,null,91,"CV-DataBaseスーパー呼び出し印刷命令リスト88"]
[null,null,92,"CV-DataBaseスーパー呼び出し印刷命令リスト89"]
[null,null,93,"CV-DataBaseスーパー呼び出し印刷命令リスト90"]
[null,null,94,"CV-DataBaseスーパー呼び出し印刷命令リスト91"]
[null,null,95,"CV-DataBaseスーパー呼び出し印刷命令リスト92"]
[null,null,96,"CV-DataBaseスーパー呼び出し印刷命令リスト93"]
[null,null,97,"CV-DataBaseスーパー呼び出し印刷命令リスト94"]
[null,null,98,"CV-DataBaseスーパー呼び出し印刷命令リスト95"]
[null,null,99,"CV-DataBaseスーパー呼び出し印刷命令リスト96"]
[null,null,100,"CV-DataBaseスーパー呼び出し印刷命令リスト97"]
[null,null,101,"CV-DataBaseスーパー呼び出し印刷命令リスト98"]
[null,null,102,"CV-DataBaseスーパー呼び出し印刷命令リスト99"]
[null,null,103,"CV-DataBaseスーパー呼び出し印刷命令リスト100"]
[null,null,104]
[null,null,105]
[null,null,106]
[null,null,107]
[null,null,108]
[null,null,109]
[null,null,110]
[null,null,111]
[null,null,112]
[null,null,113]
[null,null,114]
[null,null,115]
[null,null,116]
[null,null,117]
[null,null,118]
[null,null,119]
[null,null,120]
[null,null,121]
[null,null,122]
[null,null,123]
[null,null,124]
[null,null,125]
[null,null,126]
[null,null,127]
[null,null,128]
[null,null,129]
[null,null,130]
[null,null,131]
[null,null,132]
[null,null,133]
[null,null,134]
[null,null,135]
[null,null,136]
[null,null,137]
[null,null,138]
[null,null,139]
[null,null,140]
[null,null,141]
[null,null,142]
[null,null,143]
[null,null,144]
[null,null,145]
[null,null,146]
[null,null,147]
[null,null,148]
[null,null,149]
[null,null,150]
[null,null,151]
[null,null,152]
[null,null,153]
[null,null,154]
[null,null,155]
[null,null,156]
[null,null,157]
[null,null,158]
[null,null,159]
[null,null,160]
[null,null,161]
[null,null,162]
[null,null,163]
[null,null,164]
[null,null,165]
[null,null,166]
[null,null,167]
[null,null,168]
[null,null,169]
[null,null,170]
[null,null,171]
[null,null,172]
[null,null,173]
[null,null,174]
[null,null,175]
[null,null,176]
[null,null,177]
[null,null,178]
[null,null,179]
[null,null,180]
[null,null,181]
[null,null,182]
[null,null,183]
[null,null,184]
[null,null,185]
[null,null,186]
[null,null,187]
[null,null,188]
[null,null,189]
[null,null,190]
[null,null,191]
[null,null,192]
[null,null,193]
[null,null,194]
[null,null,195]
[null,null,196]
[null,null,197]
[null,null,198]
[null,null,199]
[null,null,200]
[null,null,201]
[null,null,202]
[null,null,203]
[null,null,204]
[null,null,205]
[null,null,206]
[null,null,207]
[null,null,208]
[null,null,209]
[null,null,210]
[null,null,211]
[null,null,212]
[null,null,213]
[null,null,214]
[null,null,215]
[null,null,216]
[null,null,217]
[null,null,218]
[null,null,219]
[null,null,220]
[null,null,221]
[null,null,222]
[null,null,223]
[null,null,224]
[null,null,225]
[null,null,226]
[null,null,227]
[null,null,228]
[null,null,229]
[null,null,230]
[null,null,231]
[null,null,232]
[null,null,233]
[null,null,234]
[null,null,235]
[null,null,236]
[null,null,237]
[null,null,238]
[null,null,239]
[null,null,240]
[null,null,241]
[null,null,242]
[null,null,243]
[null,null,244]
[null,null,245]
[null,null,246]
[null,null,247]
[null,null,248]
[null,null,249]
[null,null,250]

{"sheet":"インターフェース画面設定","index":4,"n_rows":8,"n_cols":9,"rows_kept":8,"cut":false,"hidden":false,"merged":[[1,1,1,2]]}
[]
[null,{"$f":"シート名設定!D9","v":"インターフェース画面設定"}]
[]
[null,"設定項目","設定値",3]
[null,"画面高さ",{"$f":"IF(D$4=1,D5,IF(D$4=2,E5,IF(D$4=3,F5,IF(D$4=4,G5,IF(D$4=5,H5,IF(D$4=6,I5,I5))))))","v":810},810,810,{"$f":"E5","v":810},{"$f":"D5*G$8","v":810},{"$f":"E5*H$8","v":810},750]
[null,"画面幅",{"$f":"IF(D$4=1,D6,IF(D$4=2,E6,IF(D$4=3,F6,IF(D$4=4,G6,IF(D$4=5,H6,IF(D$4=6,I6,I6))))))","v":1440},964.80000000000007,1440,{"$f":"E6","v":1440},{"$f":"D6*G$8","v":964.80000000000007},1440,1200]
[null,"画面Zoom",97,94,100,97,94,100,87]
[null,null,null,null,null,"表示倍率",1,1]

{"sheet":"CV-DataBaseスーパー呼び出し印刷命令リスト1","index":5,"n_rows":60015,"n_cols":21,"rows_kept":4500,"cut":true,"hidden":false,"merged":[[13,12,13,14],[13,15,13,17],[13,18,13,20],[13,2,14,2],[13,3,13,5],[13,6,13,8],[13,9,13,11]],"bounds":{"rows_first":2000,"rows_last":500,"rows_between":2000,"halvings":0}}
[]
[]
[null,null,null,{"$f":"シート名設定!D10","v":"CV-DataBaseスーパー呼び出し印刷命令リスト1"}]
[null,null,"1．ループ呼び出し設定"]
[]
[null,null,null,"設定項目","設定値"]
[null,null,null,"呼び出しファイル，実行マクロ先頭行番号",1]
[null,null,null,"呼び出しファイル，実行マクロ最終行番号",3]
[null,null,null,"呼び出しファイル，実行マクロ先頭群番号",1]
[null,null,null,"呼び出しファイル，実行マクロ最終群番号",2]
[]
[null,null,"２．CV-DataBaseスーパー呼び出し印刷命令リスト設定"]
[]
[null,null,"行番号","実行マクロ群1",null,null,"実行マクロ群２",null,null,"実行マクロ群３",null,null,"実行マクロ群４",null,null,"実行マクロ群５",null,null,"実行マクロ群６"]
[null,null,null,"呼び出しファイルのディレクトリ","ファイル名","実行マクロ名","呼び出しファイルのディレクトリ","ファイル名","実行マクロ名","呼び出しファイルのディレクトリ","ファイル名","実行マクロ名","呼び出しファイルのディレクトリ","ファイル名","実行マクロ名","呼び出しファイルのディレクトリ","ファイル名","実行マクロ名","呼び出しファイルのディレクトリ","ファイル名","実行マクロ名"]
[null,null,1,"D:\\MySystem\\MyDataBaseWideNewLast改訂\\2013版年度入り\\試用版2013\\CV-DataBaseエクセル試用保護版\\","2013CV-DataBaseAdvance呼び出し印刷Ver1試用版.xlsm"," CVDataBase呼び出し印刷命令リスト1","D:\\MySystem\\MyDataBaseWideNewLast改訂\\2013版年度入り\\試用版2013\\CV-DataBaseエクセル試用保護版\\","2013CV-DataBaseAdvance呼び出し印刷Ver1試用版.xlsm"," CVDataBase呼び出し印刷命令リスト1"]
[null,null,2,"D:\\MySystem\\MyDataBaseWideNewLast改訂\\2013版年度入り\\試用版2013\\CV-DataBaseエクセル試用保護版\\","2013CV-DataBaseAdvance呼び出し印刷Ver1試用版.xlsm"," CVDataBase呼び出し印刷命令リスト2","D:\\MySystem\\MyDataBaseWideNewLast改訂\\2013版年度入り\\試用版2013\\CV-DataBaseエクセル試用保護版\\","2013CV-DataBaseAdvance呼び出し印刷Ver1試用版.xlsm"," CVDataBase呼び出し印刷命令リスト2"]
[null,null,3,"D:\\MySystem\\MyDataBaseWideNewLast改訂\\2013版年度入り\\試用版2013\\CV-DataBaseエクセル試用保護版\\","2013CV-DataBaseAdvance呼び出し印刷Ver1試用版.xlsm"," CVDataBase呼び出し印刷命令リスト3","D:\\MySystem\\MyDataBaseWideNewLast改訂\\2013版年度入り\\試用版2013\\CV-DataBaseエクセル試用保護版\\","2013CV-DataBaseAdvance呼び出し印刷Ver1試用版.xlsm"," CVDataBase呼び出し印刷命令リスト3"]
[null,null,4]
[null,null,5]
[null,null,6]
[null,null,7]
[null,null,8]
[null,null,9]
[null,null,10]
[null,null,11]
[null,null,12]
[null,null,13]
[null,null,14]
[null,null,15]
[null,null,16]
[null,null,17]
[null,null,18]
[null,null,19]
[null,null,20]
[null,null,21]
[null,null,22]
[null,null,23]
[null,null,24]
[null,null,25]
[null,null,26]
[null,null,27]
[null,null,28]
[null,null,29]
[null,null,30]
[null,null,31]
[null,null,32]
[null,null,33]
[null,null,34]
[null,null,35]
[null,null,36]
[null,null,37]
[null,null,38]
[null,null,39]
[null,null,40]
[null,null,41]
[null,null,42]
[null,null,43]
[null,null,44]
[null,null,45]
[null,null,46]
[null,null,47]
[null,null,48]
[null,null,49]
[null,null,50]
[null,null,51]
[null,null,52]
[null,null,53]
[null,null,54]
[null,null,55]
[null,null,56]
[null,null,57]
[null,null,58]
[null,null,59]
[null,null,60]
[null,null,61]
[null,null,62]
[null,null,63]
[null,null,64]
[null,null,65]
[null,null,66]
[null,null,67]
[null,null,68]
[null,null,69]
[null,null,70]
[null,null,71]
[null,null,72]
[null,null,73]
[null,null,74]
[null,null,75]
[null,null,76]
[null,null,77]
[null,null,78]
[null,null,79]
[null,null,80]
[null,null,81]
[null,null,82]
[null,null,83]
[null,null,84]
[null,null,85]
[null,null,86]
[null,null,87]
[null,null,88]
[null,null,89]
[null,null,90]
[null,null,91]
[null,null,92]
[null,null,93]
[null,null,94]
[null,null,95]
[null,null,96]
[null,null,97]
[null,null,98]
[null,null,99]
[null,null,100]
[null,null,101]
[null,null,102]
[null,null,103]
[null,null,104]
[null,null,105]
[null,null,106]
[null,null,107]
[null,null,108]
[null,null,109]
[null,null,110]
[null,null,111]
[null,null,112]
[null,null,113]
[null,null,114]
[null,null,115]
[null,null,116]
[null,null,117]
[null,null,118]
[null,null,119]
[null,null,120]
[null,null,121]
[null,null,122]
[null,null,123]
[null,null,124]
[null,null,125]
[null,null,126]
[null,null,127]
[null,null,128]
[null,null,129]
[null,null,130]
[null,null,131]
[null,null,132]
[null,null,133]
[null,null,134]
[null,null,135]
[null,null,136]
[null,null,137]
[null,null,138]
[null,null,139]
[null,null,140]
[null,null,141]
[null,null,142]
[null,null,143]
[null,null,144]
[null,null,145]
[null,null,146]
[null,null,147]
[null,null,148]
[null,null,149]
[null,null,150]
[null,null,151]
[null,null,152]
[null,null,153]
[null,null,154]
[null,null,155]
[null,null,156]
[null,null,157]
[null,null,158]
[null,null,159]
[null,null,160]
[null,null,161]
[null,null,162]
[null,null,163]
[null,null,164]
[null,null,165]
[null,null,166]
[null,null,167]
[null,null,168]
[null,null,169]
[null,null,170]
[null,null,171]
[null,null,172]
[null,null,173]
[null,null,174]
[null,null,175]
[null,null,176]
[null,null,177]
[null,null,178]
[null,null,179]
[null,null,180]
[null,null,181]
[null,null,182]
[null,null,183]
[null,null,184]
[null,null,185]
[null,null,186]
[null,null,187]
[null,null,188]
[null,null,189]
[null,null,190]
[null,null,191]
[null,null,192]
[null,null,193]
[null,null,194]
[null,null,195]
[null,null,196]
[null,null,197]
[null,null,198]
[null,null,199]
[null,null,200]
[null,null,201]
[null,null,202]
[null,null,203]
[null,null,204]
[null,null,205]
[null,null,206]
[null,null,207]
[null,null,208]
[null,null,209]
[null,null,210]
[null,null,211]
[null,null,212]
[null,null,213]
[null,null,214]
[null,null,215]
[null,null,216]
[null,null,217]
[null,null,218]
[null,null,219]
[null,null,220]
[null,null,221]
[null,null,222]
[null,null,223]
[null,null,224]
[null,null,225]
[null,null,226]
[null,null,227]
[null,null,228]
[null,null,229]
[null,null,230]
[null,null,231]
[null,null,232]
[null,null,233]
[null,null,234]
[null,null,235]
[null,null,236]
[null,null,237]
[null,null,238]
[null,null,239]
[null,null,240]
[null,null,241]
[null,null,242]
[null,null,243]
[null,null,244]
[null,null,245]
[null,null,246]
[null,null,247]
[null,null,248]
[null,null,249]
[null,null,250]
[null,null,251]
[null,null,252]
[null,null,253]
[null,null,254]
[null,null,255]
[null,null,256]
[null,null,257]
[null,null,258]
[null,null,259]
[null,null,260]
[null,null,261]
[null,null,262]
[null,null,263]
[null,null,264]
[null,null,265]
[null,null,266]
[null,null,267]
[null,null,268]
[null,null,269]
[null,null,270]
[null,null,271]
[null,null,272]
[null,null,273]
[null,null,274]
[null,null,275]
[null,null,276]
[null,null,277]
[null,null,278]
[null,null,279]
[null,null,280]
[null,null,281]
[null,null,282]
[null,null,283]
[null,null,284]
[null,null,285]
[null,null,286]
[null,null,287]
[null,null,288]
[null,null,289]
[null,null,290]
[null,null,291]
[null,null,292]
[null,null,293]
[null,null,294]
[null,null,295]
[null,null,296]
[null,null,297]
[null,null,298]
[null,null,299]
[null,null,300]
[null,null,301]
[null,null,302]
[null,null,303]
[null,null,304]
[null,null,305]
[null,null,306]
[null,null,307]
[null,null,308]
[null,null,309]
[null,null,310]
[null,null,311]
[null,null,312]
[null,null,313]
[null,null,314]
[null,null,315]
[null,null,316]
[null,null,317]
[null,null,318]
[null,null,319]
[null,null,320]
[null,null,321]
[null,null,322]
[null,null,323]
[null,null,324]
[null,null,325]
[null,null,326]
[null,null,327]
[null,null,328]
[null,null,329]
[null,null,330]
[null,null,331]
[null,null,332]
[null,null,333]
[null,null,334]
[null,null,335]
[null,null,336]
[null,null,337]
[null,null,338]
[null,null,339]
[null,null,340]
[null,null,341]
[null,null,342]
[null,null,343]
[null,null,344]
[null,null,345]
[null,null,346]
[null,null,347]
[null,null,348]
[null,null,349]
[null,null,350]
[null,null,351]
[null,null,352]
[null,null,353]
[null,null,354]
[null,null,355]
[null,null,356]
[null,null,357]
[null,null,358]
[null,null,359]
[null,null,360]
[null,null,361]
[null,null,362]
[null,null,363]
[null,null,364]
[null,null,365]
[null,null,366]
[null,null,367]
[null,null,368]
[null,null,369]
[null,null,370]
[null,null,371]
[null,null,372]
[null,null,373]
[null,null,374]
[null,null,375]
[null,null,376]
[null,null,377]
[null,null,378]
[null,null,379]
[null,null,380]
[null,null,381]
[null,null,382]
[null,null,383]
[null,null,384]
[null,null,385]
[null,null,386]
[null,null,387]
[null,null,388]
[null,null,389]
[null,null,390]
[null,null,391]
[null,null,392]
[null,null,393]
[null,null,394]
[null,null,395]
[null,null,396]
[null,null,397]
[null,null,398]
[null,null,399]
[null,null,400]
[null,null,401]
[null,null,402]
[null,null,403]
[null,null,404]
[null,null,405]
[null,null,406]
[null,null,407]
[null,null,408]
[null,null,409]
[null,null,410]
[null,null,411]
[null,null,412]
[null,null,413]
[null,null,414]
[null,null,415]
[null,null,416]
[null,null,417]
[null,null,418]
[null,null,419]
[null,null,420]
[null,null,421]
[null,null,422]
[null,null,423]
[null,null,424]
[null,null,425]
[null,null,426]
[null,null,427]
[null,null,428]
[null,null,429]
[null,null,430]
[null,null,431]
[null,null,432]
[null,null,433]
[null,null,434]
[null,null,435]
[null,null,436]
[null,null,437]
[null,null,438]
[null,null,439]
[null,null,440]
[null,null,441]
[null,null,442]
[null,null,443]
[null,null,444]
[null,null,445]
[null,null,446]
[null,null,447]
[null,null,448]
[null,null,449]
[null,null,450]
[null,null,451]
[null,null,452]
[null,null,453]
[null,null,454]
[null,null,455]
[null,null,456]
[null,null,457]
[null,null,458]
[null,null,459]
[null,null,460]
[null,null,461]
[null,null,462]
[null,null,463]
[null,null,464]
[null,null,465]
[null,null,466]
[null,null,467]
[null,null,468]
[null,null,469]
[null,null,470]
[null,null,471]
[null,null,472]
[null,null,473]
[null,null,474]
[null,null,475]
[null,null,476]
[null,null,477]
[null,null,478]
[null,null,479]
[null,null,480]
[null,null,481]
[null,null,482]
[null,null,483]
[null,null,484]
[null,null,485]
[null,null,486]
[null,null,487]
[null,null,488]
[null,null,489]
[null,null,490]
[null,null,491]
[null,null,492]
[null,null,493]
[null,null,494]
[null,null,495]
[null,null,496]
[null,null,497]
[null,null,498]
[null,null,499]
[null,null,500]
[null,null,501]
[null,null,502]
[null,null,503]
[null,null,504]
[null,null,505]
[null,null,506]
[null,null,507]
[null,null,508]
[null,null,509]
[null,null,510]
[null,null,511]
[null,null,512]
[null,null,513]
[null,null,514]
[null,null,515]
[null,null,516]
[null,null,517]
[null,null,518]
[null,null,519]
[null,null,520]
[null,null,521]
[null,null,522]
[null,null,523]
[null,null,524]
[null,null,525]
[null,null,526]
[null,null,527]
[null,null,528]
[null,null,529]
[null,null,530]
[null,null,531]
[null,null,532]
[null,null,533]
[null,null,534]
[null,null,535]
[null,null,536]
[null,null,537]
[null,null,538]
[null,null,539]
[null,null,540]
[null,null,541]
[null,null,542]
[null,null,543]
[null,null,544]
[null,null,545]
[null,null,546]
[null,null,547]
[null,null,548]
[null,null,549]
[null,null,550]
[null,null,551]
[null,null,552]
[null,null,553]
[null,null,554]
[null,null,555]
[null,null,556]
[null,null,557]
[null,null,558]
[null,null,559]
[null,null,560]
[null,null,561]
[null,null,562]
[null,null,563]
[null,null,564]
[null,null,565]
[null,null,566]
[null,null,567]
[null,null,568]
[null,null,569]
[null,null,570]
[null,null,571]
[null,null,572]
[null,null,573]
[null,null,574]
[null,null,575]
[null,null,576]
[null,null,577]
[null,null,578]
[null,null,579]
[null,null,580]
[null,null,581]
[null,null,582]
[null,null,583]
[null,null,584]
[null,null,585]
[null,null,586]
[null,null,587]
[null,null,588]
[null,null,589]
[null,null,590]
[null,null,591]
[null,null,592]
[null,null,593]
[null,null,594]
[null,null,595]
[null,null,596]
[null,null,597]
[null,null,598]
[null,null,599]
[null,null,600]
[null,null,601]
[null,null,602]
[null,null,603]
[null,null,604]
[null,null,605]
[null,null,606]
[null,null,607]
[null,null,608]
[null,null,609]
[null,null,610]
[null,null,611]
[null,null,612]
[null,null,613]
[null,null,614]
[null,null,615]
[null,null,616]
[null,null,617]
[null,null,618]
[null,null,619]
[null,null,620]
[null,null,621]
[null,null,622]
[null,null,623]
[null,null,624]
[null,null,625]
[null,null,626]
[null,null,627]
[null,null,628]
[null,null,629]
[null,null,630]
[null,null,631]
[null,null,632]
[null,null,633]
[null,null,634]
[null,null,635]
[null,null,636]
[null,null,637]
[null,null,638]
[null,null,639]
[null,null,640]
[null,null,641]
[null,null,642]
[null,null,643]
[null,null,644]
[null,null,645]
[null,null,646]
[null,null,647]
[null,null,648]
[null,null,649]
[null,null,650]
[null,null,651]
[null,null,652]
[null,null,653]
[null,null,654]
[null,null,655]
[null,null,656]
[null,null,657]
[null,null,658]
[null,null,659]
[null,null,660]
[null,null,661]
[null,null,662]
[null,null,663]
[null,null,664]
[null,null,665]
[null,null,666]
[null,null,667]
[null,null,668]
[null,null,669]
[null,null,670]
[null,null,671]
[null,null,672]
[null,null,673]
[null,null,674]
[null,null,675]
[null,null,676]
[null,null,677]
[null,null,678]
[null,null,679]
[null,null,680]
[null,null,681]
[null,null,682]
[null,null,683]
[null,null,684]
[null,null,685]
[null,null,686]
[null,null,687]
[null,null,688]
[null,null,689]
[null,null,690]
[null,null,691]
[null,null,692]
[null,null,693]
[null,null,694]
[null,null,695]
[null,null,696]
[null,null,697]
[null,null,698]
[null,null,699]
[null,null,700]
[null,null,701]
[null,null,702]
[null,null,703]
[null,null,704]
[null,null,705]
[null,null,706]
[null,null,707]
[null,null,708]
[null,null,709]
[null,null,710]
[null,null,711]
[null,null,712]
[null,null,713]
[null,null,714]
[null,null,715]
[null,null,716]
[null,null,717]
[null,null,718]
[null,null,719]
[null,null,720]
[null,null,721]
[null,null,722]
[null,null,723]
[null,null,724]
[null,null,725]
[null,null,726]
[null,null,727]
[null,null,728]
[null,null,729]
[null,null,730]
[null,null,731]
[null,null,732]
[null,null,733]
[null,null,734]
[null,null,735]
[null,null,736]
[null,null,737]
[null,null,738]
[null,null,739]
[null,null,740]
[null,null,741]
[null,null,742]
[null,null,743]
[null,null,744]
[null,null,745]
[null,null,746]
[null,null,747]
[null,null,748]
[null,null,749]
[null,null,750]
[null,null,751]
[null,null,752]
[null,null,753]
[null,null,754]
[null,null,755]
[null,null,756]
[null,null,757]
[null,null,758]
[null,null,759]
[null,null,760]
[null,null,761]
[null,null,762]
[null,null,763]
[null,null,764]
[null,null,765]
[null,null,766]
[null,null,767]
[null,null,768]
[null,null,769]
[null,null,770]
[null,null,771]
[null,null,772]
[null,null,773]
[null,null,774]
[null,null,775]
[null,null,776]
[null,null,777]
[null,null,778]
[null,null,779]
[null,null,780]
[null,null,781]
[null,null,782]
[null,null,783]
[null,null,784]
[null,null,785]
[null,null,786]
[null,null,787]
[null,null,788]
[null,null,789]
[null,null,790]
[null,null,791]
[null,null,792]
[null,null,793]
[null,null,794]
[null,null,795]
[null,null,796]
[null,null,797]
[null,null,798]
[null,null,799]
[null,null,800]
[null,null,801]
[null,null,802]
[null,null,803]
[null,null,804]
[null,null,805]
[null,null,806]
[null,null,807]
[null,null,808]
[null,null,809]
[null,null,810]
[null,null,811]
[null,null,812]
[null,null,813]
[null,null,814]
[null,null,815]
[null,null,816]
[null,null,817]
[null,null,818]
[null,null,819]
[null,null,820]
[null,null,821]
[null,null,822]
[null,null,823]
[null,null,824]
[null,null,825]
[null,null,826]
[null,null,827]
[null,null,828]
[null,null,829]
[null,null,830]
[null,null,831]
[null,null,832]
[null,null,833]
[null,null,834]
[null,null,835]
[null,null,836]
[null,null,837]
[null,null,838]
[null,null,839]
[null,null,840]
[null,null,841]
[null,null,842]
[null,null,843]
[null,null,844]
[null,null,845]
[null,null,846]
[null,null,847]
[null,null,848]
[null,null,849]
[null,null,850]
[null,null,851]
[null,null,852]
[null,null,853]
[null,null,854]
[null,null,855]
[null,null,856]
[null,null,857]
[null,null,858]
[null,null,859]
[null,null,860]
[null,null,861]
[null,null,862]
[null,null,863]
[null,null,864]
[null,null,865]
[null,null,866]
[null,null,867]
[null,null,868]
[null,null,869]
[null,null,870]
[null,null,871]
[null,null,872]
[null,null,873]
[null,null,874]
[null,null,875]
[null,null,876]
[null,null,877]
[null,null,878]
[null,null,879]
[null,null,880]
[null,null,881]
[null,null,882]
[null,null,883]
[null,null,884]
[null,null,885]
[null,null,886]
[null,null,887]
[null,null,888]
[null,null,889]
[null,null,890]
[null,null,891]
[null,null,892]
[null,null,893]
[null,null,894]
[null,null,895]
[null,null,896]
[null,null,897]
[null,null,898]
[null,null,899]
[null,null,900]
[null,null,901]
[null,null,902]
[null,null,903]
[null,null,904]
[null,null,905]
[null,null,906]
[null,null,907]
[null,null,908]
[null,null,909]
[null,null,910]
[null,null,911]
[null,null,912]
[null,null,913]
[null,null,914]
[null,null,915]
[null,null,916]
[null,null,917]
[null,null,918]
[null,null,919]
[null,null,920]
[null,null,921]
[null,null,922]
[null,null,923]
[null,null,924]
[null,null,925]
[null,null,926]
[null,null,927]
[null,null,928]
[null,null,929]
[null,null,930]
[null,null,931]
[null,null,932]
[null,null,933]
[null,null,934]
[null,null,935]
[null,null,936]
[null,null,937]
[null,null,938]
[null,null,939]
[null,null,940]
[null,null,941]
[null,null,942]
[null,null,943]
[null,null,944]
[null,null,945]
[null,null,946]
[null,null,947]
[null,null,948]
[null,null,949]
[null,null,950]
[null,null,951]
[null,null,952]
[null,null,953]
[null,null,954]
[null,null,955]
[null,null,956]
[null,null,957]
[null,null,958]
[null,null,959]
[null,null,960]
[null,null,961]
[null,null,962]
[null,null,963]
[null,null,964]
[null,null,965]
[null,null,966]
[null,null,967]
[null,null,968]
[null,null,969]
[null,null,970]
[null,null,971]
[null,null,972]
[null,null,973]
[null,null,974]
[null,null,975]
[null,null,976]
[null,null,977]
[null,null,978]
[null,null,979]
[null,null,980]
[null,null,981]
[null,null,982]
[null,null,983]
[null,null,984]
[null,null,985]
[null,null,986]
[null,null,987]
[null,null,988]
[null,null,989]
[null,null,990]
[null,null,991]
[null,null,992]
[null,null,993]
[null,null,994]
[null,null,995]
[null,null,996]
[null,null,997]
[null,null,998]
[null,null,999]
[null,null,1000]
[null,null,1001]
[null,null,1002]
[null,null,1003]
[null,null,1004]
[null,null,1005]
[null,null,1006]
[null,null,1007]
[null,null,1008]
[null,null,1009]
[null,null,1010]
[null,null,1011]
[null,null,1012]
[null,null,1013]
[null,null,1014]
[null,null,1015]
[null,null,1016]
[null,null,1017]
[null,null,1018]
[null,null,1019]
[null,null,1020]
[null,null,1021]
[null,null,1022]
[null,null,1023]
[null,null,1024]
[null,null,1025]
[null,null,1026]
[null,null,1027]
[null,null,1028]
[null,null,1029]
[null,null,1030]
[null,null,1031]
[null,null,1032]
[null,null,1033]
[null,null,1034]
[null,null,1035]
[null,null,1036]
[null,null,1037]
[null,null,1038]
[null,null,1039]
[null,null,1040]
[null,null,1041]
[null,null,1042]
[null,null,1043]
[null,null,1044]
[null,null,1045]
[null,null,1046]
[null,null,1047]
[null,null,1048]
[null,null,1049]
[null,null,1050]
[null,null,1051]
[null,null,1052]
[null,null,1053]
[null,null,1054]
[null,null,1055]
[null,null,1056]
[null,null,1057]
[null,null,1058]
[null,null,1059]
[null,null,1060]
[null,null,1061]
[null,null,1062]
[null,null,1063]
[null,null,1064]
[null,null,1065]
[null,null,1066]
[null,null,1067]
[null,null,1068]
[null,null,1069]
[null,null,1070]
[null,null,1071]
[null,null,1072]
[null,null,1073]
[null,null,1074]
[null,null,1075]
[null,null,1076]
[null,null,1077]
[null,null,1078]
[null,null,1079]
[null,null,1080]
[null,null,1081]
[null,null,1082]
[null,null,1083]
[null,null,1084]
[null,null,1085]
[null,null,1086]
[null,null,1087]
[null,null,1088]
[null,null,1089]
[null,null,1090]
[null,null,1091]
[null,null,1092]
[null,null,1093]
[null,null,1094]
[null,null,1095]
[null,null,1096]
[null,null,1097]
[null,null,1098]
[null,null,1099]
[null,null,1100]
[null,null,1101]
[null,null,1102]
[null,null,1103]
[null,null,1104]
[null,null,1105]
[null,null,1106]
[null,null,1107]
[null,null,1108]
[null,null,1109]
[null,null,1110]
[null,null,1111]
[null,null,1112]
[null,null,1113]
[null,null,1114]
[null,null,1115]
[null,null,1116]
[null,null,1117]
[null,null,1118]
[null,null,1119]
[null,null,1120]
[null,null,1121]
[null,null,1122]
[null,null,1123]
[null,null,1124]
[null,null,1125]
[null,null,1126]
[null,null,1127]
[null,null,1128]
[null,null,1129]
[null,null,1130]
[null,null,1131]
[null,null,1132]
[null,null,1133]
[null,null,1134]
[null,null,1135]
[null,null,1136]
[null,null,1137]
[null,null,1138]
[null,null,1139]
[null,null,1140]
[null,null,1141]
[null,null,1142]
[null,null,1143]
[null,null,1144]
[null,null,1145]
[null,null,1146]
[null,null,1147]
[null,null,1148]
[null,null,1149]
[null,null,1150]
[null,null,1151]
[null,null,1152]
[null,null,1153]
[null,null,1154]
[null,null,1155]
[null,null,1156]
[null,null,1157]
[null,null,1158]
[null,null,1159]
[null,null,1160]
[null,null,1161]
[null,null,1162]
[null,null,1163]
[null,null,1164]
[null,null,1165]
[null,null,1166]
[null,null,1167]
[null,null,1168]
[null,null,1169]
[null,null,1170]
[null,null,1171]
[null,null,1172]
[null,null,1173]
[null,null,1174]
[null,null,1175]
[null,null,1176]
[null,null,1177]
[null,null,1178]
[null,null,1179]
[null,null,1180]
[null,null,1181]
[null,null,1182]
[null,null,1183]
[null,null,1184]
[null,null,1185]
[null,null,1186]
[null,null,1187]
[null,null,1188]
[null,null,1189]
[null,null,1190]
[null,null,1191]
[null,null,1192]
[null,null,1193]
[null,null,1194]
[null,null,1195]
[null,null,1196]
[null,null,1197]
[null,null,1198]
[null,null,1199]
[null,null,1200]
[null,null,1201]
[null,null,1202]
[null,null,1203]
[null,null,1204]
[null,null,1205]
[null,null,1206]
[null,null,1207]
[null,null,1208]
[null,null,1209]
[null,null,1210]
[null,null,1211]
[null,null,1212]
[null,null,1213]
[null,null,1214]
[null,null,1215]
[null,null,1216]
[null,null,1217]
[null,null,1218]
[null,null,1219]
[null,null,1220]
[null,null,1221]
[null,null,1222]
[null,null,1223]
[null,null,1224]
[null,null,1225]
[null,null,1226]
[null,null,1227]
[null,null,1228]
[null,null,1229]
[null,null,1230]
[null,null,1231]
[null,null,1232]
[null,null,1233]
[null,null,1234]
[null,null,1235]
[null,null,1236]
[null,null,1237]
[null,null,1238]
[null,null,1239]
[null,null,1240]
[null,null,1241]
[null,null,1242]
[null,null,1243]
[null,null,1244]
[null,null,1245]
[null,null,1246]
[null,null,1247]
[null,null,1248]
[null,null,1249]
[null,null,1250]
[null,null,1251]
[null,null,1252]
[null,null,1253]
[null,null,1254]
[null,null,1255]
[null,null,1256]
[null,null,1257]
[null,null,1258]
[null,null,1259]
[null,null,1260]
[null,null,1261]
[null,null,1262]
[null,null,1263]
[null,null,1264]
[null,null,1265]
[null,null,1266]
[null,null,1267]
[null,null,1268]
[null,null,1269]
[null,null,1270]
[null,null,1271]
[null,null,1272]
[null,null,1273]
[null,null,1274]
[null,null,1275]
[null,null,1276]
[null,null,1277]
[null,null,1278]
[null,null,1279]
[null,null,1280]
[null,null,1281]
[null,null,1282]
[null,null,1283]
[null,null,1284]
[null,null,1285]
[null,null,1286]
[null,null,1287]
[null,null,1288]
[null,null,1289]
[null,null,1290]
[null,null,1291]
[null,null,1292]
[null,null,1293]
[null,null,1294]
[null,null,1295]
[null,null,1296]
[null,null,1297]
[null,null,1298]
[null,null,1299]
[null,null,1300]
[null,null,1301]
[null,null,1302]
[null,null,1303]
[null,null,1304]
[null,null,1305]
[null,null,1306]
[null,null,1307]
[null,null,1308]
[null,null,1309]
[null,null,1310]
[null,null,1311]
[null,null,1312]
[null,null,1313]
[null,null,1314]
[null,null,1315]
[null,null,1316]
[null,null,1317]
[null,null,1318]
[null,null,1319]
[null,null,1320]
[null,null,1321]
[null,null,1322]
[null,null,1323]
[null,null,1324]
[null,null,1325]
[null,null,1326]
[null,null,1327]
[null,null,1328]
[null,null,1329]
[null,null,1330]
[null,null,1331]
[null,null,1332]
[null,null,1333]
[null,null,1334]
[null,null,1335]
[null,null,1336]
[null,null,1337]
[null,null,1338]
[null,null,1339]
[null,null,1340]
[null,null,1341]
[null,null,1342]
[null,null,1343]
[null,null,1344]
[null,null,1345]
[null,null,1346]
[null,null,1347]
[null,null,1348]
[null,null,1349]
[null,null,1350]
[null,null,1351]
[null,null,1352]
[null,null,1353]
[null,null,1354]
[null,null,1355]
[null,null,1356]
[null,null,1357]
[null,null,1358]
[null,null,1359]
[null,null,1360]
[null,null,1361]
[null,null,1362]
[null,null,1363]
[null,null,1364]
[null,null,1365]
[null,null,1366]
[null,null,1367]
[null,null,1368]
[null,null,1369]
[null,null,1370]
[null,null,1371]
[null,null,1372]
[null,null,1373]
[null,null,1374]
[null,null,1375]
[null,null,1376]
[null,null,1377]
[null,null,1378]
[null,null,1379]
[null,null,1380]
[null,null,1381]
[null,null,1382]
[null,null,1383]
[null,null,1384]
[null,null,1385]
[null,null,1386]
[null,null,1387]
[null,null,1388]
[null,null,1389]
[null,null,1390]
[null,null,1391]
[null,null,1392]
[null,null,1393]
[null,null,1394]
[null,null,1395]
[null,null,1396]
[null,null,1397]
[null,null,1398]
[null,null,1399]
[null,null,1400]
[null,null,1401]
[null,null,1402]
[null,null,1403]
[null,null,1404]
[null,null,1405]
[null,null,1406]
[null,null,1407]
[null,null,1408]
[null,null,1409]
[null,null,1410]
[null,null,1411]
[null,null,1412]
[null,null,1413]
[null,null,1414]
[null,null,1415]
[null,null,1416]
[null,null,1417]
[null,null,1418]
[null,null,1419]
[null,null,1420]
[null,null,1421]
[null,null,1422]
[null,null,1423]
[null,null,1424]
[null,null,1425]
[null,null,1426]
[null,null,1427]
[null,null,1428]
[null,null,1429]
[null,null,1430]
[null,null,1431]
[null,null,1432]
[null,null,1433]
[null,null,1434]
[null,null,1435]
[null,null,1436]
[null,null,1437]
[null,null,1438]
[null,null,1439]
[null,null,1440]
[null,null,1441]
[null,null,1442]
[null,null,1443]
[null,null,1444]
[null,null,1445]
[null,null,1446]
[null,null,1447]
[null,null,1448]
[null,null,1449]
[null,null,1450]
[null,null,1451]
[null,null,1452]
[null,null,1453]
[null,null,1454]
[null,null,1455]
[null,null,1456]
[null,null,1457]
[null,null,1458]
[null,null,1459]
[null,null,1460]
[null,null,1461]
[null,null,1462]
[null,null,1463]
[null,null,1464]
[null,null,1465]
[null,null,1466]
[null,null,1467]
[null,null,1468]
[null,null,1469]
[null,null,1470]
[null,null,1471]
[null,null,1472]
[null,null,1473]
[null,null,1474]
[null,null,1475]
[null,null,1476]
[null,null,1477]
[null,null,1478]
[null,null,1479]
[null,null,1480]
[null,null,1481]
[null,null,1482]
[null,null,1483]
[null,null,1484]
[null,null,1485]
[null,null,1486]
[null,null,1487]
[null,null,1488]
[null,null,1489]
[null,null,1490]
[null,null,1491]
[null,null,1492]
[null,null,1493]
[null,null,1494]
[null,null,1495]
[null,null,1496]
[null,null,1497]
[null,null,1498]
[null,null,1499]
[null,null,1500]
[null,null,1501]
[null,null,1502]
[null,null,1503]
[null,null,1504]
[null,null,1505]
[null,null,1506]
[null,null,1507]
[null,null,1508]
[null,null,1509]
[null,null,1510]
[null,null,1511]
[null,null,1512]
[null,null,1513]
[null,null,1514]
[null,null,1515]
[null,null,1516]
[null,null,1517]
[null,null,1518]
[null,null,1519]
[null,null,1520]
[null,null,1521]
[null,null,1522]
[null,null,1523]
[null,null,1524]
[null,null,1525]
[null,null,1526]
[null,null,1527]
[null,null,1528]
[null,null,1529]
[null,null,1530]
[null,null,1531]
[null,null,1532]
[null,null,1533]
[null,null,1534]
[null,null,1535]
[null,null,1536]
[null,null,1537]
[null,null,1538]
[null,null,1539]
[null,null,1540]
[null,null,1541]
[null,null,1542]
[null,null,1543]
[null,null,1544]
[null,null,1545]
[null,null,1546]
[null,null,1547]
[null,null,1548]
[null,null,1549]
[null,null,1550]
[null,null,1551]
[null,null,1552]
[null,null,1553]
[null,null,1554]
[null,null,1555]
[null,null,1556]
[null,null,1557]
[null,null,1558]
[null,null,1559]
[null,null,1560]
[null,null,1561]
[null,null,1562]
[null,null,1563]
[null,null,1564]
[null,null,1565]
[null,null,1566]
[null,null,1567]
[null,null,1568]
[null,null,1569]
[null,null,1570]
[null,null,1571]
[null,null,1572]
[null,null,1573]
[null,null,1574]
[null,null,1575]
[null,null,1576]
[null,null,1577]
[null,null,1578]
[null,null,1579]
[null,null,1580]
[null,null,1581]
[null,null,1582]
[null,null,1583]
[null,null,1584]
[null,null,1585]
[null,null,1586]
[null,null,1587]
[null,null,1588]
[null,null,1589]
[null,null,1590]
[null,null,1591]
[null,null,1592]
[null,null,1593]
[null,null,1594]
[null,null,1595]
[null,null,1596]
[null,null,1597]
[null,null,1598]
[null,null,1599]
[null,null,1600]
[null,null,1601]
[null,null,1602]
[null,null,1603]
[null,null,1604]
[null,null,1605]
[null,null,1606]
[null,null,1607]
[null,null,1608]
[null,null,1609]
[null,null,1610]
[null,null,1611]
[null,null,1612]
[null,null,1613]
[null,null,1614]
[null,null,1615]
[null,null,1616]
[null,null,1617]
[null,null,1618]
[null,null,1619]
[null,null,1620]
[null,null,1621]
[null,null,1622]
[null,null,1623]
[null,null,1624]
[null,null,1625]
[null,null,1626]
[null,null,1627]
[null,null,1628]
[null,null,1629]
[null,null,1630]
[null,null,1631]
[null,null,1632]
[null,null,1633]
[null,null,1634]
[null,null,1635]
[null,null,1636]
[null,null,1637]
[null,null,1638]
[null,null,1639]
[null,null,1640]
[null,null,1641]
[null,null,1642]
[null,null,1643]
[null,null,1644]
[null,null,1645]
[null,null,1646]
[null,null,1647]
[null,null,1648]
[null,null,1649]
[null,null,1650]
[null,null,1651]
[null,null,1652]
[null,null,1653]
[null,null,1654]
[null,null,1655]
[null,null,1656]
[null,null,1657]
[null,null,1658]
[null,null,1659]
[null,null,1660]
[null,null,1661]
[null,null,1662]
[null,null,1663]
[null,null,1664]
[null,null,1665]
[null,null,1666]
[null,null,1667]
[null,null,1668]
[null,null,1669]
[null,null,1670]
[null,null,1671]
[null,null,1672]
[null,null,1673]
[null,null,1674]
[null,null,1675]
[null,null,1676]
[null,null,1677]
[null,null,1678]
[null,null,1679]
[null,null,1680]
[null,null,1681]
[null,null,1682]
[null,null,1683]
[null,null,1684]
[null,null,1685]
[null,null,1686]
[null,null,1687]
[null,null,1688]
[null,null,1689]
[null,null,1690]
[null,null,1691]
[null,null,1692]
[null,null,1693]
[null,null,1694]
[null,null,1695]
[null,null,1696]
[null,null,1697]
[null,null,1698]
[null,null,1699]
[null,null,1700]
[null,null,1701]
[null,null,1702]
[null,null,1703]
[null,null,1704]
[null,null,1705]
[null,null,1706]
[null,null,1707]
[null,null,1708]
[null,null,1709]
[null,null,1710]
[null,null,1711]
[null,null,1712]
[null,null,1713]
[null,null,1714]
[null,null,1715]
[null,null,1716]
[null,null,1717]
[null,null,1718]
[null,null,1719]
[null,null,1720]
[null,null,1721]
[null,null,1722]
[null,null,1723]
[null,null,1724]
[null,null,1725]
[null,null,1726]
[null,null,1727]
[null,null,1728]
[null,null,1729]
[null,null,1730]
[null,null,1731]
[null,null,1732]
[null,null,1733]
[null,null,1734]
[null,null,1735]
[null,null,1736]
[null,null,1737]
[null,null,1738]
[null,null,1739]
[null,null,1740]
[null,null,1741]
[null,null,1742]
[null,null,1743]
[null,null,1744]
[null,null,1745]
[null,null,1746]
[null,null,1747]
[null,null,1748]
[null,null,1749]
[null,null,1750]
[null,null,1751]
[null,null,1752]
[null,null,1753]
[null,null,1754]
[null,null,1755]
[null,null,1756]
[null,null,1757]
[null,null,1758]
[null,null,1759]
[null,null,1760]
[null,null,1761]
[null,null,1762]
[null,null,1763]
[null,null,1764]
[null,null,1765]
[null,null,1766]
[null,null,1767]
[null,null,1768]
[null,null,1769]
[null,null,1770]
[null,null,1771]
[null,null,1772]
[null,null,1773]
[null,null,1774]
[null,null,1775]
[null,null,1776]
[null,null,1777]
[null,null,1778]
[null,null,1779]
[null,null,1780]
[null,null,1781]
[null,null,1782]
[null,null,1783]
[null,null,1784]
[null,null,1785]
[null,null,1786]
[null,null,1787]
[null,null,1788]
[null,null,1789]
[null,null,1790]
[null,null,1791]
[null,null,1792]
[null,null,1793]
[null,null,1794]
[null,null,1795]
[null,null,1796]
[null,null,1797]
[null,null,1798]
[null,null,1799]
[null,null,1800]
[null,null,1801]
[null,null,1802]
[null,null,1803]
[null,null,1804]
[null,null,1805]
[null,null,1806]
[null,null,1807]
[null,null,1808]
[null,null,1809]
[null,null,1810]
[null,null,1811]
[null,null,1812]
[null,null,1813]
[null,null,1814]
[null,null,1815]
[null,null,1816]
[null,null,1817]
[null,null,1818]
[null,null,1819]
[null,null,1820]
[null,null,1821]
[null,null,1822]
[null,null,1823]
[null,null,1824]
[null,null,1825]
[null,null,1826]
[null,null,1827]
[null,null,1828]
[null,null,1829]
[null,null,1830]
[null,null,1831]
[null,null,1832]
[null,null,1833]
[null,null,1834]
[null,null,1835]
[null,null,1836]
[null,null,1837]
[null,null,1838]
[null,null,1839]
[null,null,1840]
[null,null,1841]
[null,null,1842]
[null,null,1843]
[null,null,1844]
[null,null,1845]
[null,null,1846]
[null,null,1847]
[null,null,1848]
[null,null,1849]
[null,null,1850]
[null,null,1851]
[null,null,1852]
[null,null,1853]
[null,null,1854]
[null,null,1855]
[null,null,1856]
[null,null,1857]
[null,null,1858]
[null,null,1859]
[null,null,1860]
[null,null,1861]
[null,null,1862]
[null,null,1863]
[null,null,1864]
[null,null,1865]
[null,null,1866]
[null,null,1867]
[null,null,1868]
[null,null,1869]
[null,null,1870]
[null,null,1871]
[null,null,1872]
[null,null,1873]
[null,null,1874]
[null,null,1875]
[null,null,1876]
[null,null,1877]
[null,null,1878]
[null,null,1879]
[null,null,1880]
[null,null,1881]
[null,null,1882]
[null,null,1883]
[null,null,1884]
[null,null,1885]
[null,null,1886]
[null,null,1887]
[null,null,1888]
[null,null,1889]
[null,null,1890]
[null,null,1891]
[null,null,1892]
[null,null,1893]
[null,null,1894]
[null,null,1895]
[null,null,1896]
[null,null,1897]
[null,null,1898]
[null,null,1899]
[null,null,1900]
[null,null,1901]
[null,null,1902]
[null,null,1903]
[null,null,1904]
[null,null,1905]
[null,null,1906]
[null,null,1907]
[null,null,1908]
[null,null,1909]
[null,null,1910]
[null,null,1911]
[null,null,1912]
[null,null,1913]
[null,null,1914]
[null,null,1915]
[null,null,1916]
[null,null,1917]
[null,null,1918]
[null,null,1919]
[null,null,1920]
[null,null,1921]
[null,null,1922]
[null,null,1923]
[null,null,1924]
[null,null,1925]
[null,null,1926]
[null,null,1927]
[null,null,1928]
[null,null,1929]
[null,null,1930]
[null,null,1931]
[null,null,1932]
[null,null,1933]
[null,null,1934]
[null,null,1935]
[null,null,1936]
[null,null,1937]
[null,null,1938]
[null,null,1939]
[null,null,1940]
[null,null,1941]
[null,null,1942]
[null,null,1943]
[null,null,1944]
[null,null,1945]
[null,null,1946]
[null,null,1947]
[null,null,1948]
[null,null,1949]
[null,null,1950]
[null,null,1951]
[null,null,1952]
[null,null,1953]
[null,null,1954]
[null,null,1955]
[null,null,1956]
[null,null,1957]
[null,null,1958]
[null,null,1959]
[null,null,1960]
[null,null,1961]
[null,null,1962]
[null,null,1963]
[null,null,1964]
[null,null,1965]
[null,null,1966]
[null,null,1967]
[null,null,1968]
[null,null,1969]
[null,null,1970]
[null,null,1971]
[null,null,1972]
[null,null,1973]
[null,null,1974]
[null,null,1975]
[null,null,1976]
[null,null,1977]
[null,null,1978]
[null,null,1979]
[null,null,1980]
[null,null,1981]
[null,null,1982]
[null,null,1983]
[null,null,1984]
[null,null,1985]
[null,null,2011]
[null,null,2023]
[null,null,2054]
[null,null,2072]
[null,null,2110]
[null,null,2133]
[null,null,2180]
[null,null,2211]
[null,null,2237]
[null,null,2259]
[null,null,2290]
[null,null,2308]
[null,null,2332]
[null,null,2369]
[null,null,2416]
[null,null,2418]
[null,null,2459]
[null,null,2495]
[null,null,2526]
[null,null,2544]
[null,null,2582]
[null,null,2592]
[null,null,2623]
[null,null,2654]
[null,null,2681]
[null,null,2731]
[null,null,2733]
[null,null,2780]
[null,null,2804]
[null,null,2828]
[null,null,2859]
[null,null,2890]
[null,null,2931]
[null,null,2938]
[null,null,2969]
[null,null,3016]
[null,null,3047]
[null,null,3060]
[null,null,3095]
[null,null,3126]
[null,null,3144]
[null,null,3183]
[null,null,3221]
[null,null,3223]
[null,null,3254]
[null,null,3282]
[null,null,3331]
[null,null,3362]
[null,null,3380]
[null,null,3405]
[null,null,3428]
[null,null,3459]
[null,null,3490]
[null,null,3532]
[null,null,3538]
[null,null,3585]
[null,null,3616]
[null,null,3627]
[null,null,3664]
[null,null,3695]
[null,null,3726]
[null,null,3754]
[null,null,3774]
[null,null,3821]
[null,null,3852]
[null,null,3877]
[null,null,3900]
[null,null,3931]
[null,null,3962]
[null,null,3980]
[null,null,4006]
[null,null,4028]
[null,null,4059]
[null,null,4090]
[null,null,4133]
[null,null,4167]
[null,null,4185]
[null,null,4216]
[null,null,4256]
[null,null,4264]
[null,null,4295]
[null,null,4326]
[null,null,4355]
[null,null,4374]
[null,null,4421]
[null,null,4452]
[null,null,4478]
[null,null,4500]
[null,null,4531]
[null,null,4562]
[null,null,4577]
[null,null,4610]
[null,null,4657]
[null,null,4688]
[null,null,4700]
[null,null,4736]
[null,null,4767]
[null,null,4785]
[null,null,4827]
[null,null,4846]
[null,null,4864]
[null,null,4895]
[null,null,4926]
[null,null,4956]
[null,null,5003]
[null,null,5021]
[null,null,5052]
[null,null,5079]
[null,null,5100]
[null,null,5131]
[null,null,5149]
[null,null,5178]
[null,null,5210]
[null,null,5257]
[null,null,5288]
[null,null,5301]
[null,null,5336]
[null,null,5367]
[null,null,5385]
[null,null,5428]
[null,null,5446]
[null,null,5493]
[null,null,5495]
[null,null,5523]
[null,null,5572]
[null,null,5603]
[null,null,5621]
[null,null,5650]
[null,null,5682]
[null,null,5700]
[null,null,5731]
[null,null,5777]
[null,null,5808]
[null,null,5810]
[null,null,5857]
[null,null,5888]
[null,null,5902]
[null,null,5936]
[null,null,5967]
[null,null,5985]
[null,null,6029]
[null,null,6046]
[null,null,6093]
[null,null,6124]
[null,null,6128]
[null,null,6172]
[null,null,6203]
[null,null,6221]
[null,null,6251]
[null,null,6282]
[null,null,6300]
[null,null,6331]
[null,null,6378]
[null,null,6408]
[null,null,6439]
[null,null,6457]
[null,null,6473]
[null,null,6518]
[null,null,6536]
[null,null,6567]
[null,null,6600]
[null,null,6615]
[null,null,6646]
[null,null,6693]
[null,null,6723]
[null,null,6741]
[null,null,6772]
[null,null,6803]
[null,null,6821]
[null,null,6852]
[null,null,6882]
[null,null,6929]
[null,null,6960]
[null,null,6979]
[null,null,7008]
[null,null,7039]
[null,null,7057]
[null,null,7102]
[null,null,7118]
[null,null,7136]
[null,null,7167]
[null,null,7201]
[null,null,7244]
[null,null,7275]
[null,null,7293]
[null,null,7324]
[null,null,7341]
[null,null,7372]
[null,null,7403]
[null,null,7423]
[null,null,7451]
[null,null,7482]
[null,null,7529]
[null,null,7546]
[null,null,7577]
[null,null,7608]
[null,null,7639]
[null,null,7673]
[null,null,7687]
[null,null,7734]
[null,null,7765]
[null,null,7767]
[null,null,7802]
[null,null,7844]
[null,null,7875]
[null,null,7893]
[null,null,7925]
[null,null,7941]
[null,null,7972]
[null,null,8003]
[null,null,8052]
[null,null,8080]
[null,null,8082]
[null,null,8129]
[null,null,8147]
[null,null,8177]
[null,null,8208]
[null,null,8239]
[null,null,8274]
[null,null,8287]
[null,null,8334]
[null,null,8365]
[null,null,8397]
[null,null,8413]
[null,null,8444]
[null,null,8475]
[null,null,8496]
[null,null,8523]
[null,null,8570]
[null,null,8572]
[null,null,8619]
[null,null,8649]
[null,null,8680]
[null,null,8711]
[null,null,8729]
[null,null,8748]
[null,null,8777]
[null,null,8808]
[null,null,8839]
[null,null,8875]
[null,null,8887]
[null,null,8934]
[null,null,8965]
[null,null,8998]
[null,null,9013]
[null,null,9044]
[null,null,9075]
[null,null,9097]
[null,null,9123]
[null,null,9170]
[null,null,9201]
[null,null,9220]
[null,null,9249]
[null,null,9280]
[null,null,9298]
[null,null,9319]
[null,null,9359]
[null,null,9377]
[null,null,9408]
[null,null,9442]
[null,null,9485]
[null,null,9516]
[null,null,9534]
[null,null,9569]
[null,null,9595]
[null,null,9613]
[null,null,9644]
[null,null,9675]
[null,null,9698]
[null,null,9723]
[null,null,9770]
[null,null,9801]
[null,null,9821]
[null,null,9849]
[null,null,9880]
[null,null,9898]
[null,null,9948]
[null,null,9959]
[null,null,10006]
[null,null,10037]
[null,null,10043]
[null,null,10085]
[null,null,10116]
[null,null,10134]
[null,null,10170]
[null,null,10195]
[null,null,10213]
[null,null,10244]
[null,null,10269]
[null,null,10321]
[null,null,10352]
[null,null,10370]
[null,null,10392]
[null,null,10431]
[null,null,10449]
[null,null,10480]
[null,null,10519]
[null,null,10528]
[null,null,10559]
[null,null,10606]
[null,null,10637]
[null,null,10644]
[null,null,10685]
[null,null,10716]
[null,null,10734]
[null,null,10771]
[null,null,10795]
[null,null,10842]
[null,null,10844]
[null,null,10898]
[null,null,10921]
[null,null,10952]
[null,null,10970]
[null,null,10993]
[null,null,11031]
[null,null,11049]
[null,null,11080]
[null,null,11120]
[null,null,11157]
[null,null,11159]
[null,null,11206]
[null,null,11243]
[null,null,11267]
[null,null,11285]
[null,null,11316]
[null,null,11342]
[null,null,11364]
[null,null,11395]
[null,null,11442]
[null,null,11465]
[null,null,11490]
[null,null,11521]
[null,null,11552]
[null,null,11570]
[null,null,11594]
[null,null,11631]
[null,null,11649]
[null,null,11680]
[null,null,11721]
[null,null,11757]
[null,null,11788]
[null,null,11806]
[null,null,11844]
[null,null,11854]
[null,null,11885]
[null,null,11916]
[null,null,11943]
[null,null,11964]
[null,null,11995]
[null,null,12042]
[null,null,12066]
[null,null,12090]
[null,null,12121]
[null,null,12152]
[null,null,12193]
[null,null,12200]
[null,null,12231]
[null,null,12278]
[null,null,12288]
[null,null,12326]
[null,null,12357]
[null,null,12388]
[null,null,12415]
[null,null,12436]
[null,null,12454]
[null,null,12485]
[null,null,12516]
[null,null,12544]
[null,null,12593]
[null,null,12624]
[null,null,12642]
[null,null,12667]
[null,null,12690]
[null,null,12721]
[null,null,12752]
[null,null,12794]
[null,null,12800]
[null,null,12847]
[null,null,12878]
[null,null,12889]
[null,null,12926]
[null,null,12957]
[null,null,12988]
[null,null,13016]
[null,null,13036]
[null,null,13083]
[null,null,13114]
[null,null,13139]
[null,null,13162]
[null,null,13193]
[null,null,13224]
[null,null,13238]
[null,null,13272]
[null,null,13290]
[null,null,13321]
[null,null,13361]
[null,null,13398]
[null,null,13429]
[null,null,13447]
[null,null,13478]
[null,null,13490]
[null,null,13526]
[null,null,13557]
[null,null,13588]
[null,null,13617]
[null,null,13636]
[null,null,13683]
[null,null,13714]
[null,null,13740]
[null,null,13762]
[null,null,13793]
[null,null,13824]
[null,null,13839]
[null,null,13872]
[null,null,13919]
[null,null,13921]
[null,null,13962]
[null,null,13998]
[null,null,14029]
[null,null,14047]
[null,null,14089]
[null,null,14108]
[null,null,14126]
[null,null,14157]
[null,null,14184]
[null,null,14234]
[null,null,14236]
[null,null,14283]
[null,null,14311]
[null,null,14344]
[null,null,14362]
[null,null,14393]
[null,null,14410]
[null,null,14441]
[null,null,14472]
[null,null,14519]
[null,null,14550]
[null,null,14563]
[null,null,14598]
[null,null,14629]
[null,null,14647]
[null,null,14690]
[null,null,14708]
[null,null,14726]
[null,null,14757]
[null,null,14785]
[null,null,14834]
[null,null,14865]
[null,null,14883]
[null,null,14912]
[null,null,14944]
[null,null,14962]
[null,null,14993]
[null,null,15039]
[null,null,15041]
[null,null,15072]
[null,null,15119]
[null,null,15134]
[null,null,15180]
[null,null,15198]
[null,null,15229]
[null,null,15261]
[null,null,15277]
[null,null,15308]
[null,null,15355]
[null,null,15384]
[null,null,15387]
[null,null,15434]
[null,null,15465]
[null,null,15483]
[null,null,15513]
[null,null,15544]
[null,null,15562]
[null,null,15593]
[null,null,15640]
[null,null,15670]
[null,null,15701]
[null,null,15719]
[null,null,15735]
[null,null,15780]
[null,null,15798]
[null,null,15829]
[null,null,15862]
[null,null,15877]
[null,null,15908]
[null,null,15955]
[null,null,15985]
[null,null,16003]
[null,null,16034]
[null,null,16065]
[null,null,16084]
[null,null,16113]
[null,null,16144]
[null,null,16191]
[null,null,16207]
[null,null,16239]
[null,null,16270]
[null,null,16301]
[null,null,16334]
[null,null,16349]
[null,null,16380]
[null,null,16398]
[null,null,16429]
[null,null,16463]
[null,null,16506]
[null,null,16508]
[null,null,16555]
[null,null,16586]
[null,null,16603]
[null,null,16634]
[null,null,16665]
[null,null,16685]
[null,null,16713]
[null,null,16744]
[null,null,16791]
[null,null,16808]
[null,null,16839]
[null,null,16870]
[null,null,16901]
[null,null,16935]
[null,null,16949]
[null,null,16996]
[null,null,16998]
[null,null,17030]
[null,null,17075]
[null,null,17106]
[null,null,17137]
[null,null,17157]
[null,null,17185]
[null,null,17203]
[null,null,17234]
[null,null,17280]
[null,null,17311]
[null,null,17313]
[null,null,17344]
[null,null,17391]
[null,null,17409]
[null,null,17439]
[null,null,17470]
[null,null,17501]
[null,null,17536]
[null,null,17549]
[null,null,17596]
[null,null,17627]
[null,null,17631]
[null,null,17675]
[null,null,17706]
[null,null,17737]
[null,null,17758]
[null,null,17785]
[null,null,17803]
[null,null,17834]
[null,null,17881]
[null,null,17911]
[null,null,17942]
[null,null,17973]
[null,null,17980]
[null,null,18021]
[null,null,18039]
[null,null,18070]
[null,null,18103]
[null,null,18118]
[null,null,18149]
[null,null,18196]
[null,null,18230]
[null,null,18257]
[null,null,18275]
[null,null,18306]
[null,null,18337]
[null,null,18359]
[null,null,18385]
[null,null,18432]
[null,null,18463]
[null,null,18482]
[null,null,18511]
[null,null,18542]
[null,null,18560]
[null,null,18581]
[null,null,18621]
[null,null,18639]
[null,null,18670]
[null,null,18704]
[null,null,18747]
[null,null,18778]
[null,null,18796]
[null,null,18831]
[null,null,18857]
[null,null,18875]
[null,null,18906]
[null,null,18926]
[null,null,18954]
[null,null,18985]
[null,null,19032]
[null,null,19053]
[null,null,19093]
[null,null,19111]
[null,null,19142]
[null,null,19180]
[null,null,19190]
[null,null,19221]
[null,null,19268]
[null,null,19270]
[null,null,19305]
[null,null,19347]
[null,null,19378]
[null,null,19396]
[null,null,19432]
[null,null,19457]
[null,null,19475]
[null,null,19506]
[null,null,19555]
[null,null,19583]
[null,null,19585]
[null,null,19632]
[null,null,19654]
[null,null,19693]
[null,null,19711]
[null,null,19742]
[null,null,19781]
[null,null,19790]
[null,null,19821]
[null,null,19868]
[null,null,19876]
[null,null,19929]
[null,null,19947]
[null,null,19978]
[null,null,20003]
[null,null,20026]
[null,null,20057]
[null,null,20075]
[null,null,20126]
[null,null,20152]
[null,null,20183]
[null,null,20214]
[null,null,20232]
[null,null,20255]
[null,null,20293]
[null,null,20311]
[null,null,20342]
[null,null,20382]
[null,null,20390]
[null,null,20421]
[null,null,20468]
[null,null,20477]
[null,null,20529]
[null,null,20547]
[null,null,20578]
[null,null,20604]
[null,null,20626]
[null,null,20657]
[null,null,20704]
[null,null,20727]
[null,null,20752]
[null,null,20783]
[null,null,20814]
[null,null,20826]
[null,null,20862]
[null,null,20893]
[null,null,20911]
[null,null,20949]
[null,null,20988]
[null,null,21019]
[null,null,21050]
[null,null,21076]
[null,null,21098]
[null,null,21116]
[null,null,21147]
[null,null,21178]
[null,null,21205]
[null,null,21226]
[null,null,21257]
[null,null,21304]
[null,null,21328]
[null,null,21352]
[null,null,21383]
[null,null,21414]
[null,null,21427]
[null,null,21462]
[null,null,21493]
[null,null,21540]
[null,null,21550]
[null,null,21588]
[null,null,21619]
[null,null,21650]
[null,null,21677]
[null,null,21698]
[null,null,21716]
[null,null,21747]
[null,null,21772]
[null,null,21824]
[null,null,21855]
[null,null,21857]
[null,null,21899]
[null,null,21934]
[null,null,21952]
[null,null,21983]
[null,null,22022]
[null,null,22031]
[null,null,22062]
[null,null,22093]
[null,null,22140]
[null,null,22151]
[null,null,22188]
[null,null,22219]
[null,null,22250]
[null,null,22278]
[null,null,22298]
[null,null,22345]
[null,null,22347]
[null,null,22401]
[null,null,22424]
[null,null,22455]
[null,null,22486]
[null,null,22500]
[null,null,22534]
[null,null,22552]
[null,null,22583]
[null,null,22623]
[null,null,22660]
[null,null,22662]
[null,null,22709]
[null,null,22722]
[null,null,22770]
[null,null,22788]
[null,null,22819]
[null,null,22845]
[null,null,22867]
[null,null,22898]
[null,null,22945]
[null,null,22972]
[null,null,23006]
[null,null,23024]
[null,null,23055]
[null,null,23086]
[null,null,23101]
[null,null,23134]
[null,null,23152]
[null,null,23183]
[null,null,23224]
[null,null,23260]
[null,null,23291]
[null,null,23309]
[null,null,23351]
[null,null,23370]
[null,null,23388]
[null,null,23419]
[null,null,23446]
[null,null,23467]
[null,null,23498]
[null,null,23545]
[null,null,23573]
[null,null,23606]
[null,null,23624]
[null,null,23655]
[null,null,23672]
[null,null,23703]
[null,null,23734]
[null,null,23781]
[null,null,23795]
[null,null,23813]
[null,null,23860]
[null,null,23891]
[null,null,23922]
[null,null,23939]
[null,null,23970]
[null,null,23988]
[null,null,24019]
[null,null,24047]
[null,null,24096]
[null,null,24127]
[null,null,24145]
[null,null,24174]
[null,null,24206]
[null,null,24224]
[null,null,24255]
[null,null,24273]
[null,null,24303]
[null,null,24334]
[null,null,24381]
[null,null,24396]
[null,null,24442]
[null,null,24460]
[null,null,24491]
[null,null,24523]
[null,null,24539]
[null,null,24570]
[null,null,24617]
[null,null,24618]
[null,null,24649]
[null,null,24696]
[null,null,24727]
[null,null,24745]
[null,null,24775]
[null,null,24806]
[null,null,24824]
[null,null,24868]
[null,null,24901]
[null,null,24932]
[null,null,24934]
[null,null,24981]
[null,null,24997]
[null,null,25042]
[null,null,25060]
[null,null,25091]
[null,null,25124]
[null,null,25139]
[null,null,25170]
[null,null,25217]
[null,null,25247]
[null,null,25265]
[null,null,25296]
[null,null,25327]
[null,null,25346]
[null,null,25375]
[null,null,25406]
[null,null,25424]
[null,null,25469]
[null,null,25501]
[null,null,25532]
[null,null,25563]
[null,null,25568]
[null,null,25611]
[null,null,25642]
[null,null,25660]
[null,null,25691]
[null,null,25737]
[null,null,25739]
[null,null,25770]
[null,null,25818]
[null,null,25847]
[null,null,25865]
[null,null,25896]
[null,null,25913]
[null,null,25944]
[null,null,25975]
[null,null,26006]
[null,null,26053]
[null,null,26070]
[null,null,26101]
[null,null,26132]
[null,null,26163]
[null,null,26197]
[null,null,26211]
[null,null,26242]
[null,null,26260]
[null,null,26292]
[null,null,26337]
[null,null,26368]
[null,null,26399]
[null,null,26419]
[null,null,26447]
[null,null,26465]
[null,null,26496]
[null,null,26542]
[null,null,26544]
[null,null,26575]
[null,null,26606]
[null,null,26641]
[null,null,26683]
[null,null,26701]
[null,null,26732]
[null,null,26764]
[null,null,26780]
[null,null,26811]
[null,null,26858]
[null,null,26863]
[null,null,26890]
[null,null,26937]
[null,null,26968]
[null,null,26999]
[null,null,27020]
[null,null,27047]
[null,null,27065]
[null,null,27096]
[null,null,27143]
[null,null,27173]
[null,null,27204]
[null,null,27206]
[null,null,27242]
[null,null,27283]
[null,null,27301]
[null,null,27332]
[null,null,27365]
[null,null,27380]
[null,null,27411]
[null,null,27458]
[null,null,27492]
[null,null,27519]
[null,null,27537]
[null,null,27568]
[null,null,27587]
[null,null,27616]
[null,null,27647]
[null,null,27694]
[null,null,27714]
[null,null,27726]
[null,null,27773]
[null,null,27804]
[null,null,27813]
[null,null,27852]
[null,null,27883]
[null,null,27901]
[null,null,27932]
[null,null,27966]
[null,null,28009]
[null,null,28011]
[null,null,28058]
[null,null,28093]
[null,null,28119]
[null,null,28137]
[null,null,28168]
[null,null,28188]
[null,null,28216]
[null,null,28247]
[null,null,28294]
[null,null,28315]
[null,null,28355]
[null,null,28373]
[null,null,28404]
[null,null,28414]
[null,null,28452]
[null,null,28483]
[null,null,28501]
[null,null,28537]
[null,null,28562]
[null,null,28609]
[null,null,28640]
[null,null,28664]
[null,null,28688]
[null,null,28719]
[null,null,28737]
[null,null,28759]
[null,null,28798]
[null,null,28816]
[null,null,28847]
[null,null,28894]
[null,null,28916]
[null,null,28955]
[null,null,28973]
[null,null,29004]
[null,null,29043]
[null,null,29052]
[null,null,29083]
[null,null,29130]
[null,null,29138]
[null,null,29162]
[null,null,29209]
[null,null,29240]
[null,null,29265]
[null,null,29288]
[null,null,29319]
[null,null,29337]
[null,null,29388]
[null,null,29414]
[null,null,29445]
[null,null,29476]
[null,null,29487]
[null,null,29524]
[null,null,29555]
[null,null,29573]
[null,null,29610]
[null,null,29621]
[null,null,29652]
[null,null,29683]
[null,null,29709]
[null,null,29760]
[null,null,29791]
[null,null,29809]
[null,null,29840]
[null,null,29866]
[null,null,29888]
[null,null,29919]
[null,null,29966]
[null,null,29989]
[null,null,30014]
[null,null,30045]
[null,null,30076]
[null,null,30088]
[null,null,30124]
[null,null,30155]
[null,null,30173]
[null,null,30211]
[null,null,30250]
[null,null,30281]
[null,null,30283]
[null,null,30338]
[null,null,30360]
[null,null,30378]
[null,null,30409]
[null,null,30433]
[null,null,30457]
[null,null,30488]
[null,null,30519]
[null,null,30560]
[null,null,30596]
[null,null,30614]
[null,null,30645]
[null,null,30683]
[null,null,30693]
[null,null,30724]
[null,null,30755]
[null,null,30773]
[null,null,30812]
[null,null,30850]
[null,null,30881]
[null,null,30912]
[null,null,30939]
[null,null,30960]
[null,null,30978]
[null,null,31009]
[null,null,31034]
[null,null,31086]
[null,null,31088]
[null,null,31119]
[null,null,31161]
[null,null,31196]
[null,null,31214]
[null,null,31245]
[null,null,31284]
[null,null,31293]
[null,null,31324]
[null,null,31355]
[null,null,31383]
[null,null,31432]
[null,null,31450]
[null,null,31481]
[null,null,31506]
[null,null,31529]
[null,null,31560]
[null,null,31578]
[null,null,31633]
[null,null,31639]
[null,null,31686]
[null,null,31717]
[null,null,31748]
[null,null,31762]
[null,null,31796]
[null,null,31814]
[null,null,31845]
[null,null,31885]
[null,null,31893]
[null,null,31924]
[null,null,31971]
[null,null,31984]
[null,null,32032]
[null,null,32050]
[null,null,32081]
[null,null,32107]
[null,null,32129]
[null,null,32160]
[null,null,32207]
[null,null,32234]
[null,null,32239]
[null,null,32286]
[null,null,32317]
[null,null,32329]
[null,null,32365]
[null,null,32396]
[null,null,32414]
[null,null,32456]
[null,null,32475]
[null,null,32522]
[null,null,32553]
[null,null,32555]
[null,null,32601]
[null,null,32632]
[null,null,32650]
[null,null,32681]
[null,null,32708]
[null,null,32729]
[null,null,32760]
[null,null,32807]
[null,null,32835]
[null,null,32868]
[null,null,32886]
[null,null,32917]
[null,null,32930]
[null,null,32965]
[null,null,32996]
[null,null,33043]
[null,null,33057]
[null,null,33075]
[null,null,33122]
[null,null,33153]
[null,null,33184]
[null,null,33201]
[null,null,33232]
[null,null,33250]
[null,null,33279]
[null,null,33311]
[null,null,33358]
[null,null,33360]
[null,null,33406]
[null,null,33437]
[null,null,33468]
[null,null,33486]
[null,null,33529]
[null,null,33534]
[null,null,33565]
[null,null,33596]
[null,null,33643]
[null,null,33658]
[null,null,33704]
[null,null,33722]
[null,null,33753]
[null,null,33785]
[null,null,33801]
[null,null,33832]
[null,null,33850]
[null,null,33880]
[null,null,33911]
[null,null,33958]
[null,null,33989]
[null,null,34007]
[null,null,34037]
[null,null,34068]
[null,null,34086]
[null,null,34130]
[null,null,34163]
[null,null,34165]
[null,null,34196]
[null,null,34229]
[null,null,34273]
[null,null,34304]
[null,null,34322]
[null,null,34352]
[null,null,34370]
[null,null,34401]
[null,null,34432]
[null,null,34479]
[null,null,34509]
[null,null,34527]
[null,null,34558]
[null,null,34589]
[null,null,34608]
[null,null,34637]
[null,null,34668]
[null,null,34686]
[null,null,34731]
[null,null,34763]
[null,null,34794]
[null,null,34825]
[null,null,34830]
[null,null,34873]
[null,null,34904]
[null,null,34922]
[null,null,34953]
[null,null,34970]
[null,null,35001]
[null,null,35032]
[null,null,35080]
[null,null,35109]
[null,null,35127]
[null,null,35158]
[null,null,35175]
[null,null,35206]
[null,null,35237]
[null,null,35268]
[null,null,35302]
[null,null,35316]
[null,null,35363]
[null,null,35394]
[null,null,35425]
[null,null,35442]
[null,null,35473]
[null,null,35504]
[null,null,35522]
[null,null,35554]
[null,null,35599]
[null,null,35630]
[null,null,35632]
[null,null,35681]
[null,null,35709]
[null,null,35727]
[null,null,35758]
[null,null,35776]
[null,null,35806]
[null,null,35837]
[null,null,35868]
[null,null,35903]
[null,null,35945]
[null,null,35963]
[null,null,35994]
[null,null,36026]
[null,null,36042]
[null,null,36073]
[null,null,36120]
[null,null,36125]
[null,null,36152]
[null,null,36199]
[null,null,36230]
[null,null,36248]
[null,null,36278]
[null,null,36309]
[null,null,36327]
[null,null,36375]
[null,null,36388]
[null,null,36435]
[null,null,36437]
[null,null,36468]
[null,null,36504]
[null,null,36545]
[null,null,36563]
[null,null,36594]
[null,null,36627]
[null,null,36642]
[null,null,36673]
[null,null,36720]
[null,null,36726]
[null,null,36781]
[null,null,36799]
[null,null,36830]
[null,null,36849]
[null,null,36878]
[null,null,36909]
[null,null,36927]
[null,null,36976]
[null,null,36988]
[null,null,37035]
[null,null,37066]
[null,null,37071]
[null,null,37114]
[null,null,37145]
[null,null,37163]
[null,null,37198]
[null,null,37224]
[null,null,37242]
[null,null,37273]
[null,null,37325]
[null,null,37350]
[null,null,37381]
[null,null,37399]
[null,null,37420]
[null,null,37460]
[null,null,37478]
[null,null,37509]
[null,null,37556]
[null,null,37577]
[null,null,37588]
[null,null,37635]
[null,null,37666]
[null,null,37676]
[null,null,37714]
[null,null,37745]
[null,null,37763]
[null,null,37799]
[null,null,37824]
[null,null,37871]
[null,null,37902]
[null,null,37926]
[null,null,37950]
[null,null,37981]
[null,null,37999]
[null,null,38021]
[null,null,38060]
[null,null,38078]
[null,null,38109]
[null,null,38148]
[null,null,38186]
[null,null,38217]
[null,null,38235]
[null,null,38271]
[null,null,38283]
[null,null,38314]
[null,null,38345]
[null,null,38370]
[null,null,38393]
[null,null,38424]
[null,null,38471]
[null,null,38502]
[null,null,38527]
[null,null,38550]
[null,null,38581]
[null,null,38599]
[null,null,38650]
[null,null,38676]
[null,null,38707]
[null,null,38709]
[null,null,38749]
[null,null,38786]
[null,null,38817]
[null,null,38835]
[null,null,38872]
[null,null,38883]
[null,null,38914]
[null,null,38945]
[null,null,38971]
[null,null,39022]
[null,null,39053]
[null,null,39071]
[null,null,39094]
[null,null,39119]
[null,null,39150]
[null,null,39181]
[null,null,39221]
[null,null,39229]
[null,null,39276]
[null,null,39307]
[null,null,39316]
[null,null,39355]
[null,null,39386]
[null,null,39417]
[null,null,39435]
[null,null,39473]
[null,null,39512]
[null,null,39514]
[null,null,39545]
[null,null,39572]
[null,null,39622]
[null,null,39653]
[null,null,39671]
[null,null,39695]
[null,null,39719]
[null,null,39750]
[null,null,39781]
[null,null,39822]
[null,null,39858]
[null,null,39876]
[null,null,39907]
[null,null,39917]
[null,null,39955]
[null,null,39986]
[null,null,40017]
[null,null,40044]
[null,null,40065]
[null,null,40112]
[null,null,40143]
[null,null,40167]
[null,null,40191]
[null,null,40222]
[null,null,40240]
[null,null,40266]
[null,null,40301]
[null,null,40319]
[null,null,40350]
[null,null,40381]
[null,null,40423]
[null,null,40458]
[null,null,40476]
[null,null,40507]
[null,null,40546]
[null,null,40555]
[null,null,40586]
[null,null,40617]
[null,null,40645]
[null,null,40665]
[null,null,40712]
[null,null,40743]
[null,null,40768]
[null,null,40791]
[null,null,40822]
[null,null,40840]
[null,null,40867]
[null,null,40901]
[null,null,40948]
[null,null,40979]
[null,null,40990]
[null,null,41027]
[null,null,41058]
[null,null,41076]
[null,null,41117]
[null,null,41137]
[null,null,41155]
[null,null,41186]
[null,null,41216]
[null,null,41263]
[null,null,41294]
[null,null,41312]
[null,null,41343]
[null,null,41369]
[null,null,41391]
[null,null,41422]
[null,null,41469]
[null,null,41496]
[null,null,41501]
[null,null,41548]
[null,null,41579]
[null,null,41591]
[null,null,41627]
[null,null,41658]
[null,null,41676]
[null,null,41718]
[null,null,41737]
[null,null,41784]
[null,null,41786]
[null,null,41817]
[null,null,41863]
[null,null,41894]
[null,null,41912]
[null,null,41940]
[null,null,41973]
[null,null,41991]
[null,null,42022]
[null,null,42067]
[null,null,42099]
[null,null,42130]
[null,null,42148]
[null,null,42162]
[null,null,42209]
[null,null,42227]
[null,null,42258]
[null,null,42276]
[null,null,42319]
[null,null,42337]
[null,null,42384]
[null,null,42415]
[null,null,42446]
[null,null,42463]
[null,null,42494]
[null,null,42512]
[null,null,42541]
[null,null,42573]
[null,null,42591]
[null,null,42622]
[null,null,42668]
[null,null,42699]
[null,null,42730]
[null,null,42748]
[null,null,42791]
[null,null,42796]
[null,null,42827]
[null,null,42858]
[null,null,42890]
[null,null,42935]
[null,null,42937]
[null,null,42984]
[null,null,43013]
[null,null,43032]
[null,null,43063]
[null,null,43094]
[null,null,43112]
[null,null,43142]
[null,null,43173]
[null,null,43220]
[null,null,43251]
[null,null,43269]
[null,null,43299]
[null,null,43330]
[null,null,43348]
[null,null,43392]
[null,null,43396]
[null,null,43427]
[null,null,43458]
[null,null,43491]
[null,null,43535]
[null,null,43566]
[null,null,43584]
[null,null,43614]
[null,null,43632]
[null,null,43663]
[null,null,43694]
[null,null,43713]
[null,null,43742]
[null,null,43773]
[null,null,43820]
[null,null,43836]
[null,null,43868]
[null,null,43899]
[null,null,43930]
[null,null,43963]
[null,null,43978]
[null,null,44025]
[null,null,44056]
[null,null,44058]
[null,null,44104]
[null,null,44135]
[null,null,44166]
[null,null,44184]
[null,null,44215]
[null,null,44232]
[null,null,44263]
[null,null,44294]
[null,null,44342]
[null,null,44371]
[null,null,44389]
[null,null,44420]
[null,null,44437]
[null,null,44468]
[null,null,44499]
[null,null,44530]
[null,null,44564]
[null,null,44578]
[null,null,44625]
[null,null,44656]
[null,null,44687]
[null,null,44704]
[null,null,44735]
[null,null,44766]
[null,null,44786]
[null,null,44814]
[null,null,44861]
[null,null,44863]
[null,null,44909]
[null,null,44940]
[null,null,44971]
[null,null,44989]
[null,null,45008]
[null,null,45050]
[null,null,45068]
[null,null,45099]
[null,null,45130]
[null,null,45165]
[null,null,45207]
[null,null,45225]
[null,null,45256]
[null,null,45288]
[null,null,45304]
[null,null,45335]
[null,null,45353]
[null,null,45387]
[null,null,45414]
[null,null,45461]
[null,null,45492]
[null,null,45510]
[null,null,45540]
[null,null,45571]
[null,null,45589]
[null,null,45637]
[null,null,45650]
[null,null,45668]
[null,null,45699]
[null,null,45732]
[null,null,45776]
[null,null,45807]
[null,null,45825]
[null,null,45859]
[null,null,45886]
[null,null,45904]
[null,null,45935]
[null,null,45958]
[null,null,46012]
[null,null,46014]
[null,null,46061]
[null,null,46092]
[null,null,46111]
[null,null,46140]
[null,null,46171]
[null,null,46189]
[null,null,46238]
[null,null,46250]
[null,null,46297]
[null,null,46328]
[null,null,46333]
[null,null,46376]
[null,null,46407]
[null,null,46425]
[null,null,46460]
[null,null,46486]
[null,null,46504]
[null,null,46535]
[null,null,46587]
[null,null,46612]
[null,null,46643]
[null,null,46661]
[null,null,46682]
[null,null,46722]
[null,null,46740]
[null,null,46771]
[null,null,46809]
[null,null,46819]
[null,null,46850]
[null,null,46897]
[null,null,46932]
[null,null,46945]
[null,null,46976]
[null,null,47007]
[null,null,47025]
[null,null,47061]
[null,null,47086]
[null,null,47133]
[null,null,47135]
[null,null,47188]
[null,null,47212]
[null,null,47243]
[null,null,47261]
[null,null,47283]
[null,null,47322]
[null,null,47340]
[null,null,47371]
[null,null,47410]
[null,null,47448]
[null,null,47479]
[null,null,47497]
[null,null,47533]
[null,null,47545]
[null,null,47576]
[null,null,47607]
[null,null,47632]
[null,null,47655]
[null,null,47686]
[null,null,47733]
[null,null,47755]
[null,null,47781]
[null,null,47812]
[null,null,47843]
[null,null,47854]
[null,null,47891]
[null,null,47922]
[null,null,47940]
[null,null,47971]
[null,null,48011]
[null,null,48048]
[null,null,48079]
[null,null,48097]
[null,null,48134]
[null,null,48145]
[null,null,48176]
[null,null,48207]
[null,null,48233]
[null,null,48284]
[null,null,48286]
[null,null,48333]
[null,null,48356]
[null,null,48381]
[null,null,48412]
[null,null,48443]
[null,null,48483]
[null,null,48491]
[null,null,48538]
[null,null,48569]
[null,null,48578]
[null,null,48617]
[null,null,48648]
[null,null,48679]
[null,null,48705]
[null,null,48727]
[null,null,48745]
[null,null,48776]
[null,null,48828]
[null,null,48853]
[null,null,48884]
[null,null,48915]
[null,null,48927]
[null,null,48963]
[null,null,48981]
[null,null,49012]
[null,null,49043]
[null,null,49084]
[null,null,49091]
[null,null,49138]
[null,null,49169]
[null,null,49179]
[null,null,49217]
[null,null,49248]
[null,null,49279]
[null,null,49306]
[null,null,49327]
[null,null,49374]
[null,null,49405]
[null,null,49429]
[null,null,49453]
[null,null,49484]
[null,null,49502]
[null,null,49528]
[null,null,49563]
[null,null,49581]
[null,null,49612]
[null,null,49651]
[null,null,49689]
[null,null,49720]
[null,null,49738]
[null,null,49778]
[null,null,49799]
[null,null,49817]
[null,null,49848]
[null,null,49873]
[null,null,49896]
[null,null,49927]
[null,null,49974]
[null,null,50005]
[null,null,50030]
[null,null,50053]
[null,null,50084]
[null,null,50102]
[null,null,50129]
[null,null,50163]
[null,null,50210]
[null,null,50212]
[null,null,50252]
[null,null,50289]
[null,null,50320]
[null,null,50338]
[null,null,50379]
[null,null,50399]
[null,null,50417]
[null,null,50448]
[null,null,50474]
[null,null,50525]
[null,null,50556]
[null,null,50574]
[null,null,50601]
[null,null,50635]
[null,null,50653]
[null,null,50684]
[null,null,50728]
[null,null,50732]
[null,null,50763]
[null,null,50810]
[null,null,50823]
[null,null,50871]
[null,null,50889]
[null,null,50920]
[null,null,50938]
[null,null,50980]
[null,null,50999]
[null,null,51017]
[null,null,51048]
[null,null,51079]
[null,null,51125]
[null,null,51156]
[null,null,51174]
[null,null,51202]
[null,null,51235]
[null,null,51253]
[null,null,51284]
[null,null,51329]
[null,null,51361]
[null,null,51363]
[null,null,51410]
[null,null,51424]
[null,null,51471]
[null,null,51489]
[null,null,51520]
[null,null,51551]
[null,null,51568]
[null,null,51599]
[null,null,51646]
[null,null,51674]
[null,null,51694]
[null,null,51725]
[null,null,51756]
[null,null,51773]
[null,null,51804]
[null,null,51835]
[null,null,51853]
[null,null,51884]
[null,null,51930]
[null,null,51961]
[null,null,51992]
[null,null,52010]
[null,null,52025]
[null,null,52058]
[null,null,52089]
[null,null,52120]
[null,null,52152]
[null,null,52168]
[null,null,52199]
[null,null,52246]
[null,null,52275]
[null,null,52294]
[null,null,52325]
[null,null,52356]
[null,null,52374]
[null,null,52404]
[null,null,52435]
[null,null,52482]
[null,null,52497]
[null,null,52530]
[null,null,52561]
[null,null,52592]
[null,null,52624]
[null,null,52640]
[null,null,52658]
[null,null,52689]
[null,null,52719]
[null,null,52766]
[null,null,52797]
[null,null,52828]
[null,null,52846]
[null,null,52876]
[null,null,52894]
[null,null,52925]
[null,null,52956]
[null,null,52975]
[null,null,53004]
[null,null,53035]
[null,null,53082]
[null,null,53098]
[null,null,53130]
[null,null,53161]
[null,null,53192]
[null,null,53225]
[null,null,53240]
[null,null,53287]
[null,null,53289]
[null,null,53320]
[null,null,53366]
[null,null,53397]
[null,null,53428]
[null,null,53447]
[null,null,53476]
[null,null,53494]
[null,null,53525]
[null,null,53570]
[null,null,53602]
[null,null,53633]
[null,null,53651]
[null,null,53669]
[null,null,53712]
[null,null,53730]
[null,null,53761]
[null,null,53792]
[null,null,53826]
[null,null,53840]
[null,null,53887]
[null,null,53918]
[null,null,53949]
[null,null,53966]
[null,null,53997]
[null,null,54028]
[null,null,54048]
[null,null,54076]
[null,null,54094]
[null,null,54125]
[null,null,54171]
[null,null,54202]
[null,null,54233]
[null,null,54251]
[null,null,54270]
[null,null,54312]
[null,null,54330]
[null,null,54361]
[null,null,54393]
[null,null,54438]
[null,null,54440]
[null,null,54487]
[null,null,54520]
[null,null,54548]
[null,null,54566]
[null,null,54597]
[null,null,54615]
[null,null,54645]
[null,null,54676]
[null,null,54723]
[null,null,54754]
[null,null,54772]
[null,null,54802]
[null,null,54833]
[null,null,54851]
[null,null,54871]
[null,null,54912]
[null,null,54930]
[null,null,54961]
[null,null,54994]
[null,null,55038]
[null,null,55069]
[null,null,55087]
[null,null,55121]
[null,null,55148]
[null,null,55166]
[null,null,55197]
[null,null,55220]
[null,null,55245]
[null,null,55276]
[null,null,55323]
[null,null,55343]
[null,null,55384]
[null,null,55402]
[null,null,55433]
[null,null,55470]
[null,null,55481]
[null,null,55512]
[null,null,55559]
[null,null,55565]
[null,null,55591]
[null,null,55638]
[null,null,55669]
[null,null,55687]
[null,null,55722]
[null,null,55748]
[null,null,55766]
[null,null,55797]
[null,null,55821]
[null,null,55874]
[null,null,55905]
[null,null,55923]
[null,null,55944]
[null,null,55984]
[null,null,56002]
[null,null,56033]
[null,null,56071]
[null,null,56081]
[null,null,56112]
[null,null,56159]
[null,null,56166]
[null,null,56207]
[null,null,56238]
[null,null,56269]
[null,null,56293]
[null,null,56317]
[null,null,56348]
[null,null,56366]
[null,null,56416]
[null,null,56443]
[null,null,56474]
[null,null,56505]
[null,null,56515]
[null,null,56553]
[null,null,56584]
[null,null,56602]
[null,null,56633]
[null,null,56672]
[null,null,56710]
[null,null,56712]
[null,null,56759]
[null,null,56795]
[null,null,56807]
[null,null,56838]
[null,null,56869]
[null,null,56894]
[null,null,56917]
[null,null,56948]
[null,null,56995]
[null,null,57017]
[null,null,57043]
[null,null,57074]
[null,null,57105]
[null,null,57116]
[null,null,57153]
[null,null,57184]
[null,null,57202]
[null,null,57239]
[null,null,57279]
[null,null,57310]
[null,null,57341]
[null,null,57366]
[null,null,57389]
[null,null,57407]
[null,null,57438]
[null,null,57461]
[null,null,57515]
[null,null,57517]
[null,null,57548]
[null,null,57595]
[null,null,57618]
[null,null,57643]
[null,null,57674]
[null,null,57705]
[null,null,57745]
[null,null,57753]
[null,null,57800]
[null,null,57831]
[null,null,57840]
[null,null,57879]
[null,null,57910]
[null,null,57941]
[null,null,57967]
[null,null,57989]
[null,null,58007]
[null,null,58038]
[null,null,58090]
[null,null,58115]
[null,null,58146]
[null,null,58177]
[null,null,58189]
[null,null,58225]
[null,null,58243]
[null,null,58274]
[null,null,58312]
[null,null,58322]
[null,null,58353]
[null,null,58400]
[null,null,58411]
[null,null,58461]
[null,null,58479]
[null,null,58510]
[null,null,58541]
[null,null,58568]
[null,null,58589]
[null,null,58636]
[null,null,58638]
[null,null,58691]
[null,null,58715]
[null,null,58746]
[null,null,58764]
[null,null,58790]
[null,null,58825]
[null,null,58843]
[null,null,58874]
[null,null,58913]
[null,null,58951]
[null,null,58982]
[null,null,59000]
[null,null,59012]
[null,null,59061]
[null,null,59079]
[null,null,59110]
[null,null,59135]
[null,null,59158]
[null,null,59189]
[null,null,59236]
[null,null,59262]
[null,null,59297]
[null,null,59315]
[null,null,59346]
[null,null,59361]
[null,null,59394]
[null,null,59425]
[null,null,59443]
[null,null,59474]
[null,null,59501]
[null,null,59502]
[null,null,59503]
[null,null,59504]
[null,null,59505]
[null,null,59506]
[null,null,59507]
[null,null,59508]
[null,null,59509]
[null,null,59510]
[null,null,59511]
[null,null,59512]
[null,null,59513]
[null,null,59514]
[null,null,59515]
[null,null,59516]
[null,null,59517]
[null,null,59518]
[null,null,59519]
[null,null,59520]
[null,null,59521]
[null,null,59522]
[null,null,59523]
[null,null,59524]
[null,null,59525]
[null,null,59526]
[null,null,59527]
[null,null,59528]
[null,null,59529]
[null,null,59530]
[null,null,59531]
[null,null,59532]
[null,null,59533]
[null,null,59534]
[null,null,59535]
[null,null,59536]
[null,null,59537]
[null,null,59538]
[null,null,59539]
[null,null,59540]
[null,null,59541]
[null,null,59542]
[null,null,59543]
[null,null,59544]
[null,null,59545]
[null,null,59546]
[null,null,59547]
[null,null,59548]
[null,null,59549]
[null,null,59550]
[null,null,59551]
[null,null,59552]
[null,null,59553]
[null,null,59554]
[null,null,59555]
[null,null,59556]
[null,null,59557]
[null,null,59558]
[null,null,59559]
[null,null,59560]
[null,null,59561]
[null,null,59562]
[null,null,59563]
[null,null,59564]
[null,null,59565]
[null,null,59566]
[null,null,59567]
[null,null,59568]
[null,null,59569]
[null,null,59570]
[null,null,59571]
[null,null,59572]
[null,null,59573]
[null,null,59574]
[null,null,59575]
[null,null,59576]
[null,null,59577]
[null,null,59578]
[null,null,59579]
[null,null,59580]
[null,null,59581]
[null,null,59582]
[null,null,59583]
[null,null,59584]
[null,null,59585]
[null,null,59586]
[null,null,59587]
[null,null,59588]
[null,null,59589]
[null,null,59590]
[null,null,59591]
[null,null,59592]
[null,null,59593]
[null,null,59594]
[null,null,59595]
[null,null,59596]
[null,null,59597]
[null,null,59598]
[null,null,59599]
[null,null,59600]
[null,null,59601]
[null,null,59602]
[null,null,59603]
[null,null,59604]
[null,null,59605]
[null,null,59606]
[null,null,59607]
[null,null,59608]
[null,null,59609]
[null,null,59610]
[null,null,59611]
[null,null,59612]
[null,null,59613]
[null,null,59614]
[null,null,59615]
[null,null,59616]
[null,null,59617]
[null,null,59618]
[null,null,59619]
[null,null,59620]
[null,null,59621]
[null,null,59622]
[null,null,59623]
[null,null,59624]
[null,null,59625]
[null,null,59626]
[null,null,59627]
[null,null,59628]
[null,null,59629]
[null,null,59630]
[null,null,59631]
[null,null,59632]
[null,null,59633]
[null,null,59634]
[null,null,59635]
[null,null,59636]
[null,null,59637]
[null,null,59638]
[null,null,59639]
[null,null,59640]
[null,null,59641]
[null,null,59642]
[null,null,59643]
[null,null,59644]
[null,null,59645]
[null,null,59646]
[null,null,59647]
[null,null,59648]
[null,null,59649]
[null,null,59650]
[null,null,59651]
[null,null,59652]
[null,null,59653]
[null,null,59654]
[null,null,59655]
[null,null,59656]
[null,null,59657]
[null,null,59658]
[null,null,59659]
[null,null,59660]
[null,null,59661]
[null,null,59662]
[null,null,59663]
[null,null,59664]
[null,null,59665]
[null,null,59666]
[null,null,59667]
[null,null,59668]
[null,null,59669]
[null,null,59670]
[null,null,59671]
[null,null,59672]
[null,null,59673]
[null,null,59674]
[null,null,59675]
[null,null,59676]
[null,null,59677]
[null,null,59678]
[null,null,59679]
[null,null,59680]
[null,null,59681]
[null,null,59682]
[null,null,59683]
[null,null,59684]
[null,null,59685]
[null,null,59686]
[null,null,59687]
[null,null,59688]
[null,null,59689]
[null,null,59690]
[null,null,59691]
[null,null,59692]
[null,null,59693]
[null,null,59694]
[null,null,59695]
[null,null,59696]
[null,null,59697]
[null,null,59698]
[null,null,59699]
[null,null,59700]
[null,null,59701]
[null,null,59702]
[null,null,59703]
[null,null,59704]
[null,null,59705]
[null,null,59706]
[null,null,59707]
[null,null,59708]
[null,null,59709]
[null,null,59710]
[null,null,59711]
[null,null,59712]
[null,null,59713]
[null,null,59714]
[null,null,59715]
[null,null,59716]
[null,null,59717]
[null,null,59718]
[null,null,59719]
[null,null,59720]
[null,null,59721]
[null,null,59722]
[null,null,59723]
[null,null,59724]
[null,null,59725]
[null,null,59726]
[null,null,59727]
[null,null,59728]
[null,null,59729]
[null,null,59730]
[null,null,59731]
[null,null,59732]
[null,null,59733]
[null,null,59734]
[null,null,59735]
[null,null,59736]
[null,null,59737]
[null,null,59738]
[null,null,59739]
[null,null,59740]
[null,null,59741]
[null,null,59742]
[null,null,59743]
[null,null,59744]
[null,null,59745]
[null,null,59746]
[null,null,59747]
[null,null,59748]
[null,null,59749]
[null,null,59750]
[null,null,59751]
[null,null,59752]
[null,null,59753]
[null,null,59754]
[null,null,59755]
[null,null,59756]
[null,null,59757]
[null,null,59758]
[null,null,59759]
[null,null,59760]
[null,null,59761]
[null,null,59762]
[null,null,59763]
[null,null,59764]
[null,null,59765]
[null,null,59766]
[null,null,59767]
[null,null,59768]
[null,null,59769]
[null,null,59770]
[null,null,59771]
[null,null,59772]
[null,null,59773]
[null,null,59774]
[null,null,59775]
[null,null,59776]
[null,null,59777]
[null,null,59778]
[null,null,59779]
[null,null,59780]
[null,null,59781]
[null,null,59782]
[null,null,59783]
[null,null,59784]
[null,null,59785]
[null,null,59786]
[null,null,59787]
[null,null,59788]
[null,null,59789]
[null,null,59790]
[null,null,59791]
[null,null,59792]
[null,null,59793]
[null,null,59794]
[null,null,59795]
[null,null,59796]
[null,null,59797]
[null,null,59798]
[null,null,59799]
[null,null,59800]
[null,null,59801]
[null,null,59802]
[null,null,59803]
[null,null,59804]
[null,null,59805]
[null,null,59806]
[null,null,59807]
[null,null,59808]
[null,null,59809]
[null,null,59810]
[null,null,59811]
[null,null,59812]
[null,null,59813]
[null,null,59814]
[null,null,59815]
[null,null,59816]
[null,null,59817]
[null,null,59818]
[null,null,59819]
[null,null,59820]
[null,null,59821]
[null,null,59822]
[null,null,59823]
[null,null,59824]
[null,null,59825]
[null,null,59826]
[null,null,59827]
[null,null,59828]
[null,null,59829]
[null,null,59830]
[null,null,59831]
[null,null,59832]
[null,null,59833]
[null,null,59834]
[null,null,59835]
[null,null,59836]
[null,null,59837]
[null,null,59838]
[null,null,59839]
[null,null,59840]
[null,null,59841]
[null,null,59842]
[null,null,59843]
[null,null,59844]
[null,null,59845]
[null,null,59846]
[null,null,59847]
[null,null,59848]
[null,null,59849]
[null,null,59850]
[null,null,59851]
[null,null,59852]
[null,null,59853]
[null,null,59854]
[null,null,59855]
[null,null,59856]
[null,null,59857]
[null,null,59858]
[null,null,59859]
[null,null,59860]
[null,null,59861]
[null,null,59862]
[null,null,59863]
[null,null,59864]
[null,null,59865]
[null,null,59866]
[null,null,59867]
[null,null,59868]
[null,null,59869]
[null,null,59870]
[null,null,59871]
[null,null,59872]
[null,null,59873]
[null,null,59874]
[null,null,59875]
[null,null,59876]
[null,null,59877]
[null,null,59878]
[null,null,59879]
[null,null,59880]
[null,null,59881]
[null,null,59882]
[null,null,59883]
[null,null,59884]
[null,null,59885]
[null,null,59886]
[null,null,59887]
[null,null,59888]
[null,null,59889]
[null,null,59890]
[null,null,59891]
[null,null,59892]
[null,null,59893]
[null,null,59894]
[null,null,59895]
[null,null,59896]
[null,null,59897]
[null,null,59898]
[null,null,59899]
[null,null,59900]
[null,null,59901]
[null,null,59902]
[null,null,59903]
[null,null,59904]
[null,null,59905]
[null,null,59906]
[null,null,59907]
[null,null,59908]
[null,null,59909]
[null,null,59910]
[null,null,59911]
[null,null,59912]
[null,null,59913]
[null,null,59914]
[null,null,59915]
[null,null,59916]
[null,null,59917]
[null,null,59918]
[null,null,59919]
[null,null,59920]
[null,null,59921]
[null,null,59922]
[null,null,59923]
[null,null,59924]
[null,null,59925]
[null,null,59926]
[null,null,59927]
[null,null,59928]
[null,null,59929]
[null,null,59930]
[null,null,59931]
[null,null,59932]
[null,null,59933]
[null,null,59934]
[null,null,59935]
[null,null,59936]
[null,null,59937]
[null,null,59938]
[null,null,59939]
[null,null,59940]
[null,null,59941]
[null,null,59942]
[null,null,59943]
[null,null,59944]
[null,null,59945]
[null,null,59946]
[null,null,59947]
[null,null,59948]
[null,null,59949]
[null,null,59950]
[null,null,59951]
[null,null,59952]
[null,null,59953]
[null,null,59954]
[null,null,59955]
[null,null,59956]
[null,null,59957]
[null,null,59958]
[null,null,59959]
[null,null,59960]
[null,null,59961]
[null,null,59962]
[null,null,59963]
[null,null,59964]
[null,null,59965]
[null,null,59966]
[null,null,59967]
[null,null,59968]
[null,null,59969]
[null,null,59970]
[null,null,59971]
[null,null,59972]
[null,null,59973]
[null,null,59974]
[null,null,59975]
[null,null,59976]
[null,null,59977]
[null,null,59978]
[null,null,59979]
[null,null,59980]
[null,null,59981]
[null,null,59982]
[null,null,59983]
[null,null,59984]
[null,null,59985]
[null,null,59986]
[null,null,59987]
[null,null,59988]
[null,null,59989]
[null,null,59990]
[null,null,59991]
[null,null,59992]
[null,null,59993]
[null,null,59994]
[null,null,59995]
[null,null,59996]
[null,null,59997]
[null,null,59998]
[null,null,59999]
[null,null,60000]

{"sheet":"CV-DataBaseスーパー呼び出し印刷命令リスト2","index":6,"n_rows":20,"n_cols":21,"rows_kept":20,"cut":false,"hidden":false,"merged":[[13,12,13,14],[13,15,13,17],[13,18,13,20],[13,2,14,2],[13,3,13,5],[13,6,13,8],[13,9,13,11]]}
[]
[]
[null,null,null,{"$f":"シート名設定!D11","v":"CV-DataBaseスーパー呼び出し印刷命令リスト2"}]
[null,null,"1．ループ呼び出し設定"]
[]
[null,null,null,"設定項目","設定値"]
[null,null,null,"呼び出しファイル，実行マクロ先頭行番号",1]
[null,null,null,"呼び出しファイル，実行マクロ最終行番号",3]
[null,null,null,"呼び出しファイル，実行マクロ先頭群番号",1]
[null,null,null,"呼び出しファイル，実行マクロ最終群番号",2]
[]
[null,null,"２．CV-DataBaseスーパー呼び出し印刷命令リスト設定"]
[]
[null,null,"行番号","実行マクロ群1",null,null,"実行マクロ群２",null,null,"実行マクロ群３",null,null,"実行マクロ群４",null,null,"実行マクロ群５",null,null,"実行マクロ群６"]
[null,null,null,"呼び出しファイルのディレクトリ","ファイル名","実行マクロ名","呼び出しファイルのディレクトリ","ファイル名","実行マクロ名","呼び出しファイルのディレクトリ","ファイル名","実行マクロ名","呼び出しファイルのディレクトリ","ファイル名","実行マクロ名","呼び出しファイルのディレクトリ","ファイル名","実行マクロ名","呼び出しファイルのディレクトリ","ファイル名","実行マクロ名"]
[null,null,1,"D:\\MySystem\\MyDataBaseWideNewLast改訂\\2013版年度入り\\試用版2013\\CV-DataBaseエクセル試用保護版\\","2013CV-DataBaseAdvance呼び出し印刷Ver1試用版.xlsm"," CVDataBase呼び出し印刷命令リスト1","D:\\MySystem\\MyDataBaseWideNewLast改訂\\2013版年度入り\\試用版2013\\CV-DataBaseエクセル試用保護版\\","2013CV-DataBaseAdvance呼び出し印刷Ver1試用版.xlsm"," CVDataBase呼び出し印刷命令リスト1"]
[null,null,2,"D:\\MySystem\\MyDataBaseWideNewLast改訂\\2013版年度入り\\試用版2013\\CV-DataBaseエクセル試用保護版\\","2013CV-DataBaseAdvance呼び出し印刷Ver1試用版.xlsm"," CVDataBase呼び出し印刷命令リスト2","D:\\MySystem\\MyDataBaseWideNewLast改訂\\2013版年度入り\\試用版2013\\CV-DataBaseエクセル試用保護版\\","2013CV-DataBaseAdvance呼び出し印刷Ver1試用版.xlsm"," CVDataBase呼び出し印刷命令リスト2"]
[null,null,3,"D:\\MySystem\\MyDataBaseWideNewLast改訂\\2013版年度入り\\試用版2013\\CV-DataBaseエクセル試用保護版\\","2013CV-DataBaseAdvance呼び出し印刷Ver1試用版.xlsm"," CVDataBase呼び出し印刷命令リスト3","D:\\MySystem\\MyDataBaseWideNewLast改訂\\2013版年度入り\\試用版2013\\CV-DataBaseエクセル試用保護版\\","2013CV-DataBaseAdvance呼び出し印刷Ver1試用版.xlsm"," CVDataBase呼び出し印刷命令リスト3"]
[null,null,4]
[null,null,5]

{"sheet":"CV-DataBaseスーパー呼び出し印刷命令リスト3","index":7,"n_rows":20,"n_cols":21,"rows_kept":20,"cut":false,"hidden":false,"merged":[[13,12,13,14],[13,15,13,17],[13,18,13,20],[13,2,14,2],[13,3,13,5],[13,6,13,8],[13,9,13,11]]}
[]
[]
[null,null,null,{"$f":"シート名設定!D12","v":"CV-DataBaseスーパー呼び出し印刷命令リスト3"}]
[null,null,"1．ループ呼び出し設定"]
[]
[null,null,null,"設定項目","設定値"]
[null,null,null,"呼び出しファイル，実行マクロ先頭行番号"]
[null,null,null,"呼び出しファイル，実行マクロ最終行番号"]
[null,null,null,"呼び出しファイル，実行マクロ先頭群番号"]
[null,null,null,"呼び出しファイル，実行マクロ最終群番号"]
[]
[null,null,"２．CV-DataBaseスーパー呼び出し印刷命令リスト設定"]
[]
[null,null,"行番号","実行マクロ群1",null,null,"実行マクロ群２",null,null,"実行マクロ群３",null,null,"実行マクロ群４",null,null,"実行マクロ群５",null,null,"実行マクロ群６"]
[null,null,null,"呼び出しファイルのディレクトリ","ファイル名","実行マクロ名","呼び出しファイルのディレクトリ","ファイル名","実行マクロ名","呼び出しファイルのディレクトリ","ファイル名","実行マクロ名","呼び出しファイルのディレクトリ","ファイル名","実行マクロ名","呼び出しファイルのディレクトリ","ファイル名","実行マクロ名","呼び出しファイルのディレクトリ","ファイル名","実行マクロ名"]
[null,null,1]
[null,null,2]
[null,null,3]
[null,null,4]
[null,null,5]

{"sheet":"CV-DataBaseスーパー呼び出し印刷命令リスト4","index":8,"n_rows":20,"n_cols":21,"rows_kept":20,"cut":false,"hidden":false,"merged":[[13,12,13,14],[13,15,13,17],[13,18,13,20],[13,2,14,2],[13,3,13,5],[13,6,13,8],[13,9,13,11]]}
[]
[]
[null,null,null,{"$f":"シート名設定!D13","v":"CV-DataBaseスーパー呼び出し印刷命令リスト4"}]
[null,null,"1．ループ呼び出し設定"]
[]
[null,null,null,"設定項目","設定値"]
[null,null,null,"呼び出しファイル，実行マクロ先頭行番号"]
[null,null,null,"呼び出しファイル，実行マクロ最終行番号"]
[null,null,null,"呼び出しファイル，実行マクロ先頭群番号"]
[null,null,null,"呼び出しファイル，実行マクロ最終群番号"]
[]
[null,null,"２．CV-DataBaseスーパー呼び出し印刷命令リスト設定"]
[]
[null,null,"行番号","実行マクロ群1",null,null,"実行マクロ群２",null,null,"実行マクロ群３",null,null,"実行マクロ群４",null,null,"実行マクロ群５",null,null,"実行マクロ群６"]
[null,null,null,"呼び出しファイルのディレクトリ","ファイル名","実行マクロ名","呼び出しファイルのディレクトリ","ファイル名","実行マクロ名","呼び出しファイルのディレクトリ","ファイル名","実行マクロ名","呼び出しファイルのディレクトリ","ファイル名","実行マクロ名","呼び出しファイルのディレクトリ","ファイル名","実行マクロ名","呼び出しファイルのディレクトリ","ファイル名","実行マクロ名"]
[null,null,1]
[null,null,2]
[null,null,3]
[null,null,4]
[null,null,5]

{"sheet":"CV-DataBaseスーパー呼び出し印刷命令リスト5","index":9,"n_rows":20,"n_cols":21,"rows_kept":20,"cut":false,"hidden":false,"merged":[[13,12,13,14],[13,15,13,17],[13,18,13,20],[13,2,14,2],[13,3,13,5],[13,6,13,8],[13,9,13,11]]}
[]
[]
[null,null,null,{"$f":"シート名設定!D14","v":"CV-DataBaseスーパー呼び出し印刷命令リスト5"}]
[null,null,"1．ループ呼び出し設定"]
[]
[null,null,null,"設定項目","設定値"]
[null,null,null,"呼び出しファイル，実行マクロ先頭行番号"]
[null,null,null,"呼び出しファイル，実行マクロ最終行番号"]
[null,null,null,"呼び出しファイル，実行マクロ先頭群番号"]
[null,null,null,"呼び出しファイル，実行マクロ最終群番号"]
[]
[null,null,"２．CV-DataBaseスーパー呼び出し印刷命令リスト設定"]
[]
[null,null,"行番号","実行マクロ群1",null,null,"実行マクロ群２",null,null,"実行マクロ群３",null,null,"実行マクロ群４",null,null,"実行マクロ群５",null,null,"実行マクロ群６"]
[null,null,null,"呼び出しファイルのディレクトリ","ファイル名","実行マクロ名","呼び出しファイルのディレクトリ","ファイル名","実行マクロ名","呼び出しファイルのディレクトリ","ファイル名","実行マクロ名","呼び出しファイルのディレクトリ","ファイル名","実行マクロ名","呼び出しファイルのディレクトリ","ファイル名","実行マクロ名","呼び出しファイルのディレクトリ","ファイル名","実行マクロ名"]
[null,null,1]
[null,null,2]
[null,null,3]
[null,null,4]
[null,null,5]

{"sheet":"CV-DataBaseスーパー呼び出し印刷命令リスト6","index":10,"n_rows":20,"n_cols":21,"rows_kept":20,"cut":false,"hidden":false,"merged":[[13,12,13,14],[13,15,13,17],[13,18,13,20],[13,2,14,2],[13,3,13,5],[13,6,13,8],[13,9,13,11]]}
[]
[]
[null,null,null,{"$f":"シート名設定!D15","v":"CV-DataBaseスーパー呼び出し印刷命令リスト6"}]
[null,null,"1．ループ呼び出し設定"]
[]
[null,null,null,"設定項目","設定値"]
[null,null,null,"呼び出しファイル，実行マクロ先頭行番号"]
[null,null,null,"呼び出しファイル，実行マクロ最終行番号"]
[null,null,null,"呼び出しファイル，実行マクロ先頭群番号"]
[null,null,null,"呼び出しファイル，実行マクロ最終群番号"]
[]
[null,null,"２．CV-DataBaseスーパー呼び出し印刷命令リスト設定"]
[]
[null,null,"行番号","実行マクロ群1",null,null,"実行マクロ群２",null,null,"実行マクロ群３",null,null,"実行マクロ群４",null,null,"実行マクロ群５",null,null,"実行マクロ群６"]
[null,null,null,"呼び出しファイルのディレクトリ","ファイル名","実行マクロ名","呼び出しファイルのディレクトリ","ファイル名","実行マクロ名","呼び出しファイルのディレクトリ","ファイル名","実行マクロ名","呼び出しファイルのディレクトリ","ファイル名","実行マクロ名","呼び出しファイルのディレクトリ","ファイル名","実行マクロ名","呼び出しファイルのディレクトリ","ファイル名","実行マクロ名"]
[null,null,1]
[null,null,2]
[null,null,3]
[null,null,4]
[null,null,5]

{"sheet":"CV-DataBaseスーパー呼び出し印刷命令リスト7","index":11,"n_rows":20,"n_cols":21,"rows_kept":20,"cut":false,"hidden":false,"merged":[[13,12,13,14],[13,15,13,17],[13,18,13,20],[13,2,14,2],[13,3,13,5],[13,6,13,8],[13,9,13,11]]}
[]
[]
[null,null,null,{"$f":"シート名設定!D16","v":"CV-DataBaseスーパー呼び出し印刷命令リスト7"}]
[null,null,"1．ループ呼び出し設定"]
[]
[null,null,null,"設定項目","設定値"]
[null,null,null,"呼び出しファイル，実行マクロ先頭行番号"]
[null,null,null,"呼び出しファイル，実行マクロ最終行番号"]
[null,null,null,"呼び出しファイル，実行マクロ先頭群番号"]
[null,null,null,"呼び出しファイル，実行マクロ最終群番号"]
[]
[null,null,"２．CV-DataBaseスーパー呼び出し印刷命令リスト設定"]
[]
[null,null,"行番号","実行マクロ群1",null,null,"実行マクロ群２",null,null,"実行マクロ群３",null,null,"実行マクロ群４",null,null,"実行マクロ群５",null,null,"実行マクロ群６"]
[null,null,null,"呼び出しファイルのディレクトリ","ファイル名","実行マクロ名","呼び出しファイルのディレクトリ","ファイル名","実行マクロ名","呼び出しファイルのディレクトリ","ファイル名","実行マクロ名","呼び出しファイルのディレクトリ","ファイル名","実行マクロ名","呼び出しファイルのディレクトリ","ファイル名","実行マクロ名","呼び出しファイルのディレクトリ","ファイル名","実行マクロ名"]
[null,null,1]
[null,null,2]
[null,null,3]
[null,null,4]
[null,null,5]

{"sheet":"CV-DataBaseスーパー呼び出し印刷命令リスト8","index":12,"n_rows":20,"n_cols":21,"rows_kept":20,"cut":false,"hidden":false,"merged":[[13,12,13,14],[13,15,13,17],[13,18,13,20],[13,2,14,2],[13,3,13,5],[13,6,13,8],[13,9,13,11]]}
[]
[]
[null,null,null,{"$f":"シート名設定!D17","v":"CV-DataBaseスーパー呼び出し印刷命令リスト8"}]
[null,null,"1．ループ呼び出し設定"]
[]
[null,null,null,"設定項目","設定値"]
[null,null,null,"呼び出しファイル，実行マクロ先頭行番号"]
[null,null,null,"呼び出しファイル，実行マクロ最終行番号"]
[null,null,null,"呼び出しファイル，実行マクロ先頭群番号"]
[null,null,null,"呼び出しファイル，実行マクロ最終群番号"]
[]
[null,null,"２．CV-DataBaseスーパー呼び出し印刷命令リスト設定"]
[]
[null,null,"行番号","実行マクロ群1",null,null,"実行マクロ群２",null,null,"実行マクロ群３",null,null,"実行マクロ群４",null,null,"実行マクロ群５",null,null,"実行マクロ群６"]
[null,null,null,"呼び出しファイルのディレクトリ","ファイル名","実行マクロ名","呼び出しファイルのディレクトリ","ファイル名","実行マクロ名","呼び出しファイルのディレクトリ","ファイル名","実行マクロ名","呼び出しファイルのディレクトリ","ファイル名","実行マクロ名","呼び出しファイルのディレクトリ","ファイル名","実行マクロ名","呼び出しファイルのディレクトリ","ファイル名","実行マクロ名"]
[null,null,1]
[null,null,2]
[null,null,3]
[null,null,4]
[null,null,5]

{"sheet":"CV-DataBaseスーパー呼び出し印刷命令リスト9","index":13,"n_rows":20,"n_cols":21,"rows_kept":20,"cut":false,"hidden":false,"merged":[[13,12,13,14],[13,15,13,17],[13,18,13,20],[13,2,14,2],[13,3,13,5],[13,6,13,8],[13,9,13,11]]}
[]
[]
[null,null,null,{"$f":"シート名設定!D18","v":"CV-DataBaseスーパー呼び出し印刷命令リスト9"}]
[null,null,"1．ループ呼び出し設定"]
[]
[null,null,null,"設定項目","設定値"]
[null,null,null,"呼び出しファイル，実行マクロ先頭行番号"]
[null,null,null,"呼び出しファイル，実行マクロ最終行番号"]
[null,null,null,"呼び出しファイル，実行マクロ先頭群番号"]
[null,null,null,"呼び出しファイル，実行マクロ最終群番号"]
[]
[null,null,"２．CV-DataBaseスーパー呼び出し印刷命令リスト設定"]
[]
[null,null,"行番号","実行マクロ群1",null,null,"実行マクロ群２",null,null,"実行マクロ群３",null,null,"実行マクロ群４",null,null,"実行マクロ群５",null,null,"実行マクロ群６"]
[null,null,null,"呼び出しファイルのディレクトリ","ファイル名","実行マクロ名","呼び出しファイルのディレクトリ","ファイル名","実行マクロ名","呼び出しファイルのディレクトリ","ファイル名","実行マクロ名","呼び出しファイルのディレクトリ","ファイル名","実行マクロ名","呼び出しファイルのディレクトリ","ファイル名","実行マクロ名","呼び出しファイルのディレクトリ","ファイル名","実行マクロ名"]
[null,null,1]
[null,null,2]
[null,null,3]
[null,null,4]
[null,null,5]

{"sheet":"CV-DataBaseスーパー呼び出し印刷命令リスト10","index":14,"n_rows":20,"n_cols":21,"rows_kept":20,"cut":false,"hidden":false,"merged":[[13,12,13,14],[13,15,13,17],[13,18,13,20],[13,2,14,2],[13,3,13,5],[13,6,13,8],[13,9,13,11]]}
[]
[]
[null,null,null,{"$f":"シート名設定!D19","v":"CV-DataBaseスーパー呼び出し印刷命令リスト10"}]
[null,null,"1．ループ呼び出し設定"]
[]
[null,null,null,"設定項目","設定値"]
[null,null,null,"呼び出しファイル，実行マクロ先頭行番号"]
[null,null,null,"呼び出しファイル，実行マクロ最終行番号"]
[null,null,null,"呼び出しファイル，実行マクロ先頭群番号"]
[null,null,null,"呼び出しファイル，実行マクロ最終群番号"]
[]
[null,null,"２．CV-DataBaseスーパー呼び出し印刷命令リスト設定"]
[]
[null,null,"行番号","実行マクロ群1",null,null,"実行マクロ群２",null,null,"実行マクロ群３",null,null,"実行マクロ群４",null,null,"実行マクロ群５",null,null,"実行マクロ群６"]
[null,null,null,"呼び出しファイルのディレクトリ","ファイル名","実行マクロ名","呼び出しファイルのディレクトリ","ファイル名","実行マクロ名","呼び出しファイルのディレクトリ","ファイル名","実行マクロ名","呼び出しファイルのディレクトリ","ファイル名","実行マクロ名","呼び出しファイルのディレクトリ","ファイル名","実行マクロ名","呼び出しファイルのディレクトリ","ファイル名","実行マクロ名"]
[null,null,1]
[null,null,2]
[null,null,3]
[null,null,4]
[null,null,5]

{"sheet":"CV-DataBaseスーパー呼び出し印刷命令リスト11","index":15,"n_rows":20,"n_cols":21,"rows_kept":20,"cut":false,"hidden":false,"merged":[[13,12,13,14],[13,15,13,17],[13,18,13,20],[13,2,14,2],[13,3,13,5],[13,6,13,8],[13,9,13,11]]}
[]
[]
[null,null,null,{"$f":"シート名設定!D20","v":"CV-DataBaseスーパー呼び出し印刷命令リスト11"}]
[null,null,"1．ループ呼び出し設定"]
[]
[null,null,null,"設定項目","設定値"]
[null,null,null,"呼び出しファイル，実行マクロ先頭行番号"]
[null,null,null,"呼び出しファイル，実行マクロ最終行番号"]
[null,null,null,"呼び出しファイル，実行マクロ先頭群番号"]
[null,null,null,"呼び出しファイル，実行マクロ最終群番号"]
[]
[null,null,"２．CV-DataBaseスーパー呼び出し印刷命令リスト設定"]
[]
[null,null,"行番号","実行マクロ群1",null,null,"実行マクロ群２",null,null,"実行マクロ群３",null,null,"実行マクロ群４",null,null,"実行マクロ群５",null,null,"実行マクロ群６"]
[null,null,null,"呼び出しファイルのディレクトリ","ファイル名","実行マクロ名","呼び出しファイルのディレクトリ","ファイル名","実行マクロ名","呼び出しファイルのディレクトリ","ファイル名","実行マクロ名","呼び出しファイルのディレクトリ","ファイル名","実行マクロ名","呼び出しファイルのディレクトリ","ファイル名","実行マクロ名","呼び出しファイルのディレクトリ","ファイル名","実行マクロ名"]
[null,null,1]
[null,null,2]
[null,null,3]
[null,null,4]
[null,null,5]

{"sheet":"CV-DataBaseスーパー呼び出し印刷命令リスト12","index":16,"n_rows":20,"n_cols":21,"rows_kept":20,"cut":false,"hidden":false,"merged":[[13,12,13,14],[13,15,13,17],[13,18,13,20],[13,2,14,2],[13,3,13,5],[13,6,13,8],[13,9,13,11]]}
[]
[]
[null,null,null,{"$f":"シート名設定!D21","v":"CV-DataBaseスーパー呼び出し印刷命令リスト12"}]
[null,null,"1．ループ呼び出し設定"]
[]
[null,null,null,"設定項目","設定値"]
[null,null,null,"呼び出しファイル，実行マクロ先頭行番号"]
[null,null,null,"呼び出しファイル，実行マクロ最終行番号"]
[null,null,null,"呼び出しファイル，実行マクロ先頭群番号"]
[null,null,null,"呼び出しファイル，実行マクロ最終群番号"]
[]
[null,null,"２．CV-DataBaseスーパー呼び出し印刷命令リスト設定"]
[]
[null,null,"行番号","実行マクロ群1",null,null,"実行マクロ群２",null,null,"実行マクロ群３",null,null,"実行マクロ群４",null,null,"実行マクロ群５",null,null,"実行マクロ群６"]
[null,null,null,"呼び出しファイルのディレクトリ","ファイル名","実行マクロ名","呼び出しファイルのディレクトリ","ファイル名","実行マクロ名","呼び出しファイルのディレクトリ","ファイル名","実行マクロ名","呼び出しファイルのディレクトリ","ファイル名","実行マクロ名","呼び出しファイルのディレクトリ","ファイル名","実行マクロ名","呼び出しファイルのディレクトリ","ファイル名","実行マクロ名"]
[null,null,1]
[null,null,2]
[null,null,3]
[null,null,4]
[null,null,5]

{"sheet":"CV-DataBaseスーパー呼び出し印刷命令リスト13","index":17,"n_rows":20,"n_cols":21,"rows_kept":20,"cut":false,"hidden":false,"merged":[[13,12,13,14],[13,15,13,17],[13,18,13,20],[13,2,14,2],[13,3,13,5],[13,6,13,8],[13,9,13,11]]}
[]
[]
[null,null,null,{"$f":"シート名設定!D22","v":"CV-DataBaseスーパー呼び出し印刷命令リスト13"}]
[null,null,"1．ループ呼び出し設定"]
[]
[null,null,null,"設定項目","設定値"]
[null,null,null,"呼び出しファイル，実行マクロ先頭行番号"]
[null,null,null,"呼び出しファイル，実行マクロ最終行番号"]
[null,null,null,"呼び出しファイル，実行マクロ先頭群番号"]
[null,null,null,"呼び出しファイル，実行マクロ最終群番号"]
[]
[null,null,"２．CV-DataBaseスーパー呼び出し印刷命令リスト設定"]
[]
[null,null,"行番号","実行マクロ群1",null,null,"実行マクロ群２",null,null,"実行マクロ群３",null,null,"実行マクロ群４",null,null,"実行マクロ群５",null,null,"実行マクロ群６"]
[null,null,null,"呼び出しファイルのディレクトリ","ファイル名","実行マクロ名","呼び出しファイルのディレクトリ","ファイル名","実行マクロ名","呼び出しファイルのディレクトリ","ファイル名","実行マクロ名","呼び出しファイルのディレクトリ","ファイル名","実行マクロ名","呼び出しファイルのディレクトリ","ファイル名","実行マクロ名","呼び出しファイルのディレクトリ","ファイル名","実行マクロ名"]
[null,null,1]
[null,null,2]
[null,null,3]
[null,null,4]
[null,null,5]

{"sheet":"CV-DataBaseスーパー呼び出し印刷命令リスト14","index":18,"n_rows":20,"n_cols":21,"rows_kept":20,"cut":false,"hidden":false,"merged":[[13,12,13,14],[13,15,13,17],[13,18,13,20],[13,2,14,2],[13,3,13,5],[13,6,13,8],[13,9,13,11]]}
[]
[]
[null,null,null,{"$f":"シート名設定!D23","v":"CV-DataBaseスーパー呼び出し印刷命令リスト14"}]
[null,null,"1．ループ呼び出し設定"]
[]
[null,null,null,"設定項目","設定値"]
[null,null,null,"呼び出しファイル，実行マクロ先頭行番号"]
[null,null,null,"呼び出しファイル，実行マクロ最終行番号"]
[null,null,null,"呼び出しファイル，実行マクロ先頭群番号"]
[null,null,null,"呼び出しファイル，実行マクロ最終群番号"]
[]
[null,null,"２．CV-DataBaseスーパー呼び出し印刷命令リスト設定"]
[]
[null,null,"行番号","実行マクロ群1",null,null,"実行マクロ群２",null,null,"実行マクロ群３",null,null,"実行マクロ群４",null,null,"実行マクロ群５",null,null,"実行マクロ群６"]
[null,null,null,"呼び出しファイルのディレクトリ","ファイル名","実行マクロ名","呼び出しファイルのディレクトリ","ファイル名","実行マクロ名","呼び出しファイルのディレクトリ","ファイル名","実行マクロ名","呼び出しファイルのディレクトリ","ファイル名","実行マクロ名","呼び出しファイルのディレクトリ","ファイル名","実行マクロ名","呼び出しファイルのディレクトリ","ファイル名","実行マクロ名"]
[null,null,1]
[null,null,2]
[null,null,3]
[null,null,4]
[null,null,5]

{"sheet":"CV-DataBaseスーパー呼び出し印刷命令リスト15","index":19,"n_rows":20,"n_cols":21,"rows_kept":20,"cut":false,"hidden":false,"merged":[[13,12,13,14],[13,15,13,17],[13,18,13,20],[13,2,14,2],[13,3,13,5],[13,6,13,8],[13,9,13,11]]}
[]
[]
[null,null,null,{"$f":"シート名設定!D24","v":"CV-DataBaseスーパー呼び出し印刷命令リスト15"}]
[null,null,"1．ループ呼び出し設定"]
[]
[null,null,null,"設定項目","設定値"]
[null,null,null,"呼び出しファイル，実行マクロ先頭行番号"]
[null,null,null,"呼び出しファイル，実行マクロ最終行番号"]
[null,null,null,"呼び出しファイル，実行マクロ先頭群番号"]
[null,null,null,"呼び出しファイル，実行マクロ最終群番号"]
[]
[null,null,"２．CV-DataBaseスーパー呼び出し印刷命令リスト設定"]
[]
[null,null,"行番号","実行マクロ群1",null,null,"実行マクロ群２",null,null,"実行マクロ群３",null,null,"実行マクロ群４",null,null,"実行マクロ群５",null,null,"実行マクロ群６"]
[null,null,null,"呼び出しファイルのディレクトリ","ファイル名","実行マクロ名","呼び出しファイルのディレクトリ","ファイル名","実行マクロ名","呼び出しファイルのディレクトリ","ファイル名","実行マクロ名","呼び出しファイルのディレクトリ","ファイル名","実行マクロ名","呼び出しファイルのディレクトリ","ファイル名","実行マクロ名","呼び出しファイルのディレクトリ","ファイル名","実行マクロ名"]
[null,null,1]
[null,null,2]
[null,null,3]
[null,null,4]
[null,null,5]

{"sheet":"CV-DataBaseスーパー呼び出し印刷命令リスト16","index":20,"n_rows":20,"n_cols":21,"rows_kept":20,"cut":false,"hidden":false,"merged":[[13,12,13,14],[13,15,13,17],[13,18,13,20],[13,2,14,2],[13,3,13,5],[13,6,13,8],[13,9,13,11]]}
[]
[]
[null,null,null,{"$f":"シート名設定!D25","v":"CV-DataBaseスーパー呼び出し印刷命令リスト16"}]
[null,null,"1．ループ呼び出し設定"]
[]
[null,null,null,"設定項目","設定値"]
[null,null,null,"呼び出しファイル，実行マクロ先頭行番号"]
[null,null,null,"呼び出しファイル，実行マクロ最終行番号"]
[null,null,null,"呼び出しファイル，実行マクロ先頭群番号"]
[null,null,null,"呼び出しファイル，実行マクロ最終群番号"]
[]
[null,null,"２．CV-DataBaseスーパー呼び出し印刷命令リスト設定"]
[]
[null,null,"行番号","実行マクロ群1",null,null,"実行マクロ群２",null,null,"実行マクロ群３",null,null,"実行マクロ群４",null,null,"実行マクロ群５",null,null,"実行マクロ群６"]
[null,null,null,"呼び出しファイルのディレクトリ","ファイル名","実行マクロ名","呼び出しファイルのディレクトリ","ファイル名","実行マクロ名","呼び出しファイルのディレクトリ","ファイル名","実行マクロ名","呼び出しファイルのディレクトリ","ファイル名","実行マクロ名","呼び出しファイルのディレクトリ","ファイル名","実行マクロ名","呼び出しファイルのディレクトリ","ファイル名","実行マクロ名"]
[null,null,1]
[null,null,2]
[null,null,3]
[null,null,4]
[null,null,5]

{"sheet":"CV-DataBaseスーパー呼び出し印刷命令リスト17","index":21,"n_rows":20,"n_cols":21,"rows_kept":20,"cut":false,"hidden":false,"merged":[[13,12,13,14],[13,15,13,17],[13,18,13,20],[13,2,14,2],[13,3,13,5],[13,6,13,8],[13,9,13,11]]}
[]
[]
[null,null,null,{"$f":"シート名設定!D26","v":"CV-DataBaseスーパー呼び出し印刷命令リスト17"}]
[null,null,"1．ループ呼び出し設定"]
[]
[null,null,null,"設定項目","設定値"]
[null,null,null,"呼び出しファイル，実行マクロ先頭行番号"]
[null,null,null,"呼び出しファイル，実行マクロ最終行番号"]
[null,null,null,"呼び出しファイル，実行マクロ先頭群番号"]
[null,null,null,"呼び出しファイル，実行マクロ最終群番号"]
[]
[null,null,"２．CV-DataBaseスーパー呼び出し印刷命令リスト設定"]
[]
[null,null,"行番号","実行マクロ群1",null,null,"実行マクロ群２",null,null,"実行マクロ群３",null,null,"実行マクロ群４",null,null,"実行マクロ群５",null,null,"実行マクロ群６"]
[null,null,null,"呼び出しファイルのディレクトリ","ファイル名","実行マクロ名","呼び出しファイルのディレクトリ","ファイル名","実行マクロ名","呼び出しファイルのディレクトリ","ファイル名","実行マクロ名","呼び出しファイルのディレクトリ","ファイル名","実行マクロ名","呼び出しファイルのディレクトリ","ファイル名","実行マクロ名","呼び出しファイルのディレクトリ","ファイル名","実行マクロ名"]
[null,null,1]
[null,null,2]
[null,null,3]
[null,null,4]
[null,null,5]

{"sheet":"CV-DataBaseスーパー呼び出し印刷命令リスト18","index":22,"n_rows":20,"n_cols":21,"rows_kept":20,"cut":false,"hidden":false,"merged":[[13,12,13,14],[13,15,13,17],[13,18,13,20],[13,2,14,2],[13,3,13,5],[13,6,13,8],[13,9,13,11]]}
[]
[]
[null,null,null,{"$f":"シート名設定!D27","v":"CV-DataBaseスーパー呼び出し印刷命令リスト18"}]
[null,null,"1．ループ呼び出し設定"]
[]
[null,null,null,"設定項目","設定値"]
[null,null,null,"呼び出しファイル，実行マクロ先頭行番号"]
[null,null,null,"呼び出しファイル，実行マクロ最終行番号"]
[null,null,null,"呼び出しファイル，実行マクロ先頭群番号"]
[null,null,null,"呼び出しファイル，実行マクロ最終群番号"]
[]
[null,null,"２．CV-DataBaseスーパー呼び出し印刷命令リスト設定"]
[]
[null,null,"行番号","実行マクロ群1",null,null,"実行マクロ群２",null,null,"実行マクロ群３",null,null,"実行マクロ群４",null,null,"実行マクロ群５",null,null,"実行マクロ群６"]
[null,null,null,"呼び出しファイルのディレクトリ","ファイル名","実行マクロ名","呼び出しファイルのディレクトリ","ファイル名","実行マクロ名","呼び出しファイルのディレクトリ","ファイル名","実行マクロ名","呼び出しファイルのディレクトリ","ファイル名","実行マクロ名","呼び出しファイルのディレクトリ","ファイル名","実行マクロ名","呼び出しファイルのディレクトリ","ファイル名","実行マクロ名"]
[null,null,1]
[null,null,2]
[null,null,3]
[null,null,4]
[null,null,5]

{"sheet":"CV-DataBaseスーパー呼び出し印刷命令リスト19","index":23,"n_rows":20,"n_cols":21,"rows_kept":20,"cut":false,"hidden":false,"merged":[[13,12,13,14],[13,15,13,17],[13,18,13,20],[13,2,14,2],[13,3,13,5],[13,6,13,8],[13,9,13,11]]}
[]
[]
[null,null,null,{"$f":"シート名設定!D28","v":"CV-DataBaseスーパー呼び出し印刷命令リスト19"}]
[null,null,"1．ループ呼び出し設定"]
[]
[null,null,null,"設定項目","設定値"]
[null,null,null,"呼び出しファイル，実行マクロ先頭行番号"]
[null,null,null,"呼び出しファイル，実行マクロ最終行番号"]
[null,null,null,"呼び出しファイル，実行マクロ先頭群番号"]
[null,null,null,"呼び出しファイル，実行マクロ最終群番号"]
[]
[null,null,"２．CV-DataBaseスーパー呼び出し印刷命令リスト設定"]
[]
[null,null,"行番号","実行マクロ群1",null,null,"実行マクロ群２",null,null,"実行マクロ群３",null,null,"実行マクロ群４",null,null,"実行マクロ群５",null,null,"実行マクロ群６"]
[null,null,null,"呼び出しファイルのディレクトリ","ファイル名","実行マクロ名","呼び出しファイルのディレクトリ","ファイル名","実行マクロ名","呼び出しファイルのディレクトリ","ファイル名","実行マクロ名","呼び出しファイルのディレクトリ","ファイル名","実行マクロ名","呼び出しファイルのディレクトリ","ファイル名","実行マクロ名","呼び出しファイルのディレクトリ","ファイル名","実行マクロ名"]
[null,null,1]
[null,null,2]
[null,null,3]
[null,null,4]
[null,null,5]

{"sheet":"CV-DataBaseスーパー呼び出し印刷命令リスト20","index":24,"n_rows":20,"n_cols":21,"rows_kept":20,"cut":false,"hidden":false,"merged":[[13,12,13,14],[13,15,13,17],[13,18,13,20],[13,2,14,2],[13,3,13,5],[13,6,13,8],[13,9,13,11]]}
[]
[]
[null,null,null,{"$f":"シート名設定!D29","v":"CV-DataBaseスーパー呼び出し印刷命令リスト20"}]
[null,null,"1．ループ呼び出し設定"]
[]
[null,null,null,"設定項目","設定値"]
[null,null,null,"呼び出しファイル，実行マクロ先頭行番号"]
[null,null,null,"呼び出しファイル，実行マクロ最終行番号"]
[null,null,null,"呼び出しファイル，実行マクロ先頭群番号"]
[null,null,null,"呼び出しファイル，実行マクロ最終群番号"]
[]
[null,null,"２．CV-DataBaseスーパー呼び出し印刷命令リスト設定"]
[]
[null,null,"行番号","実行マクロ群1",null,null,"実行マクロ群２",null,null,"実行マクロ群３",null,null,"実行マクロ群４",null,null,"実行マクロ群５",null,null,"実行マクロ群６"]
[null,null,null,"呼び出しファイルのディレクトリ","ファイル名","実行マクロ名","呼び出しファイルのディレクトリ","ファイル名","実行マクロ名","呼び出しファイルのディレクトリ","ファイル名","実行マクロ名","呼び出しファイルのディレクトリ","ファイル名","実行マクロ名","呼び出しファイルのディレクトリ","ファイル名","実行マクロ名","呼び出しファイルのディレクトリ","ファイル名","実行マクロ名"]
[null,null,1]
[null,null,2]
[null,null,3]
[null,null,4]
[null,null,5]

{"sheet":"CV-DataBaseスーパー呼び出し印刷命令リスト21","index":25,"n_rows":20,"n_cols":21,"rows_kept":20,"cut":false,"hidden":false,"merged":[[13,12,13,14],[13,15,13,17],[13,18,13,20],[13,2,14,2],[13,3,13,5],[13,6,13,8],[13,9,13,11]]}
[]
[]
[null,null,null,{"$f":"シート名設定!D30","v":"CV-DataBaseスーパー呼び出し印刷命令リスト21"}]
[null,null,"1．ループ呼び出し設定"]
[]
[null,null,null,"設定項目","設定値"]
[null,null,null,"呼び出しファイル，実行マクロ先頭行番号"]
[null,null,null,"呼び出しファイル，実行マクロ最終行番号"]
[null,null,null,"呼び出しファイル，実行マクロ先頭群番号"]
[null,null,null,"呼び出しファイル，実行マクロ最終群番号"]
[]
[null,null,"２．CV-DataBaseスーパー呼び出し印刷命令リスト設定"]
[]
[null,null,"行番号","実行マクロ群1",null,null,"実行マクロ群２",null,null,"実行マクロ群３",null,null,"実行マクロ群４",null,null,"実行マクロ群５",null,null,"実行マクロ群６"]
[null,null,null,"呼び出しファイルのディレクトリ","ファイル名","実行マクロ名","呼び出しファイルのディレクトリ","ファイル名","実行マクロ名","呼び出しファイルのディレクトリ","ファイル名","実行マクロ名","呼び出しファイルのディレクトリ","ファイル名","実行マクロ名","呼び出しファイルのディレクトリ","ファイル名","実行マクロ名","呼び出しファイルのディレクトリ","ファイル名","実行マクロ名"]
[null,null,1]
[null,null,2]
[null,null,3]
[null,null,4]
[null,null,5]

{"sheet":"CV-DataBaseスーパー呼び出し印刷命令リスト22","index":26,"n_rows":20,"n_cols":21,"rows_kept":20,"cut":false,"hidden":false,"merged":[[13,12,13,14],[13,15,13,17],[13,18,13,20],[13,2,14,2],[13,3,13,5],[13,6,13,8],[13,9,13,11]]}
[]
[]
[null,null,null,{"$f":"シート名設定!D31","v":"CV-DataBaseスーパー呼び出し印刷命令リスト22"}]
[null,null,"1．ループ呼び出し設定"]
[]
[null,null,null,"設定項目","設定値"]
[null,null,null,"呼び出しファイル，実行マクロ先頭行番号"]
[null,null,null,"呼び出しファイル，実行マクロ最終行番号"]
[null,null,null,"呼び出しファイル，実行マクロ先頭群番号"]
[null,null,null,"呼び出しファイル，実行マクロ最終群番号"]
[]
[null,null,"２．CV-DataBaseスーパー呼び出し印刷命令リスト設定"]
[]
[null,null,"行番号","実行マクロ群1",null,null,"実行マクロ群２",null,null,"実行マクロ群３",null,null,"実行マクロ群４",null,null,"実行マクロ群５",null,null,"実行マクロ群６"]
[null,null,null,"呼び出しファイルのディレクトリ","ファイル名","実行マクロ名","呼び出しファイルのディレクトリ","ファイル名","実行マクロ名","呼び出しファイルのディレクトリ","ファイル名","実行マクロ名","呼び出しファイルのディレクトリ","ファイル名","実行マクロ名","呼び出しファイルのディレクトリ","ファイル名","実行マクロ名","呼び出しファイルのディレクトリ","ファイル名","実行マクロ名"]
[null,null,1]
[null,null,2]
[null,null,3]
[null,null,4]
[null,null,5]

{"sheet":"CV-DataBaseスーパー呼び出し印刷命令リスト23","index":27,"n_rows":20,"n_cols":21,"rows_kept":20,"cut":false,"hidden":false,"merged":[[13,12,13,14],[13,15,13,17],[13,18,13,20],[13,2,14,2],[13,3,13,5],[13,6,13,8],[13,9,13,11]]}
[]
[]
[null,null,null,{"$f":"シート名設定!D32","v":"CV-DataBaseスーパー呼び出し印刷命令リスト23"}]
[null,null,"1．ループ呼び出し設定"]
[]
[null,null,null,"設定項目","設定値"]
[null,null,null,"呼び出しファイル，実行マクロ先頭行番号"]
[null,null,null,"呼び出しファイル，実行マクロ最終行番号"]
[null,null,null,"呼び出しファイル，実行マクロ先頭群番号"]
[null,null,null,"呼び出しファイル，実行マクロ最終群番号"]
[]
[null,null,"２．CV-DataBaseスーパー呼び出し印刷命令リスト設定"]
[]
[null,null,"行番号","実行マクロ群1",null,null,"実行マクロ群２",null,null,"実行マクロ群３",null,null,"実行マクロ群４",null,null,"実行マクロ群５",null,null,"実行マクロ群６"]
[null,null,null,"呼び出しファイルのディレクトリ","ファイル名","実行マクロ名","呼び出しファイルのディレクトリ","ファイル名","実行マクロ名","呼び出しファイルのディレクトリ","ファイル名","実行マクロ名","呼び出しファイルのディレクトリ","ファイル名","実行マクロ名","呼び出しファイルのディレクトリ","ファイル名","実行マクロ名","呼び出しファイルのディレクトリ","ファイル名","実行マクロ名"]
[null,null,1]
[null,null,2]
[null,null,3]
[null,null,4]
[null,null,5]

{"sheet":"CV-DataBaseスーパー呼び出し印刷命令リスト24","index":28,"n_rows":20,"n_cols":21,"rows_kept":20,"cut":false,"hidden":false,"merged":[[13,12,13,14],[13,15,13,17],[13,18,13,20],[13,2,14,2],[13,3,13,5],[13,6,13,8],[13,9,13,11]]}
[]
[]
[null,null,null,{"$f":"シート名設定!D33","v":"CV-DataBaseスーパー呼び出し印刷命令リスト24"}]
[null,null,"1．ループ呼び出し設定"]
[]
[null,null,null,"設定項目","設定値"]
[null,null,null,"呼び出しファイル，実行マクロ先頭行番号"]
[null,null,null,"呼び出しファイル，実行マクロ最終行番号"]
[null,null,null,"呼び出しファイル，実行マクロ先頭群番号"]
[null,null,null,"呼び出しファイル，実行マクロ最終群番号"]
[]
[null,null,"２．CV-DataBaseスーパー呼び出し印刷命令リスト設定"]
[]
[null,null,"行番号","実行マクロ群1",null,null,"実行マクロ群２",null,null,"実行マクロ群３",null,null,"実行マクロ群４",null,null,"実行マクロ群５",null,null,"実行マクロ群６"]
[null,null,null,"呼び出しファイルのディレクトリ","ファイル名","実行マクロ名","呼び出しファイルのディレクトリ","ファイル名","実行マクロ名","呼び出しファイルのディレクトリ","ファイル名","実行マクロ名","呼び出しファイルのディレクトリ","ファイル名","実行マクロ名","呼び出しファイルのディレクトリ","ファイル名","実行マクロ名","呼び出しファイルのディレクトリ","ファイル名","実行マクロ名"]
[null,null,1]
[null,null,2]
[null,null,3]
[null,null,4]
[null,null,5]

{"sheet":"CV-DataBaseスーパー呼び出し印刷命令リスト25","index":29,"n_rows":20,"n_cols":21,"rows_kept":20,"cut":false,"hidden":false,"merged":[[13,12,13,14],[13,15,13,17],[13,18,13,20],[13,2,14,2],[13,3,13,5],[13,6,13,8],[13,9,13,11]]}
[]
[]
[null,null,null,{"$f":"シート名設定!D34","v":"CV-DataBaseスーパー呼び出し印刷命令リスト25"}]
[null,null,"1．ループ呼び出し設定"]
[]
[null,null,null,"設定項目","設定値"]
[null,null,null,"呼び出しファイル，実行マクロ先頭行番号"]
[null,null,null,"呼び出しファイル，実行マクロ最終行番号"]
[null,null,null,"呼び出しファイル，実行マクロ先頭群番号"]
[null,null,null,"呼び出しファイル，実行マクロ最終群番号"]
[]
[null,null,"２．CV-DataBaseスーパー呼び出し印刷命令リスト設定"]
[]
[null,null,"行番号","実行マクロ群1",null,null,"実行マクロ群２",null,null,"実行マクロ群３",null,null,"実行マクロ群４",null,null,"実行マクロ群５",null,null,"実行マクロ群６"]
[null,null,null,"呼び出しファイルのディレクトリ","ファイル名","実行マクロ名","呼び出しファイルのディレクトリ","ファイル名","実行マクロ名","呼び出しファイルのディレクトリ","ファイル名","実行マクロ名","呼び出しファイルのディレクトリ","ファイル名","実行マクロ名","呼び出しファイルのディレクトリ","ファイル名","実行マクロ名","呼び出しファイルのディレクトリ","ファイル名","実行マクロ名"]
[null,null,1]
[null,null,2]
[null,null,3]
[null,null,4]
[null,null,5]

{"sheet":"CV-DataBaseスーパー呼び出し印刷命令リスト26","index":30,"n_rows":20,"n_cols":21,"rows_kept":20,"cut":false,"hidden":false,"merged":[[13,12,13,14],[13,15,13,17],[13,18,13,20],[13,2,14,2],[13,3,13,5],[13,6,13,8],[13,9,13,11]]}
[]
[]
[null,null,null,{"$f":"シート名設定!D35","v":"CV-DataBaseスーパー呼び出し印刷命令リスト26"}]
[null,null,"1．ループ呼び出し設定"]
[]
[null,null,null,"設定項目","設定値"]
[null,null,null,"呼び出しファイル，実行マクロ先頭行番号"]
[null,null,null,"呼び出しファイル，実行マクロ最終行番号"]
[null,null,null,"呼び出しファイル，実行マクロ先頭群番号"]
[null,null,null,"呼び出しファイル，実行マクロ最終群番号"]
[]
[null,null,"２．CV-DataBaseスーパー呼び出し印刷命令リスト設定"]
[]
[null,null,"行番号","実行マクロ群1",null,null,"実行マクロ群２",null,null,"実行マクロ群３",null,null,"実行マクロ群４",null,null,"実行マクロ群５",null,null,"実行マクロ群６"]
[null,null,null,"呼び出しファイルのディレクトリ","ファイル名","実行マクロ名","呼び出しファイルのディレクトリ","ファイル名","実行マクロ名","呼び出しファイルのディレクトリ","ファイル名","実行マクロ名","呼び出しファイルのディレクトリ","ファイル名","実行マクロ名","呼び出しファイルのディレクトリ","ファイル名","実行マクロ名","呼び出しファイルのディレクトリ","ファイル名","実行マクロ名"]
[null,null,1]
[null,null,2]
[null,null,3]
[null,null,4]
[null,null,5]

{"sheet":"CV-DataBaseスーパー呼び出し印刷命令リスト27","index":31,"n_rows":20,"n_cols":21,"rows_kept":20,"cut":false,"hidden":false,"merged":[[13,12,13,14],[13,15,13,17],[13,18,13,20],[13,2,14,2],[13,3,13,5],[13,6,13,8],[13,9,13,11]]}
[]
[]
[null,null,null,{"$f":"シート名設定!D36","v":"CV-DataBaseスーパー呼び出し印刷命令リスト27"}]
[null,null,"1．ループ呼び出し設定"]
[]
[null,null,null,"設定項目","設定値"]
[null,null,null,"呼び出しファイル，実行マクロ先頭行番号"]
[null,null,null,"呼び出しファイル，実行マクロ最終行番号"]
[null,null,null,"呼び出しファイル，実行マクロ先頭群番号"]
[null,null,null,"呼び出しファイル，実行マクロ最終群番号"]
[]
[null,null,"２．CV-DataBaseスーパー呼び出し印刷命令リスト設定"]
[]
[null,null,"行番号","実行マクロ群1",null,null,"実行マクロ群２",null,null,"実行マクロ群３",null,null,"実行マクロ群４",null,null,"実行マクロ群５",null,null,"実行マクロ群６"]
[null,null,null,"呼び出しファイルのディレクトリ","ファイル名","実行マクロ名","呼び出しファイルのディレクトリ","ファイル名","実行マクロ名","呼び出しファイルのディレクトリ","ファイル名","実行マクロ名","呼び出しファイルのディレクトリ","ファイル名","実行マクロ名","呼び出しファイルのディレクトリ","ファイル名","実行マクロ名","呼び出しファイルのディレクトリ","ファイル名","実行マクロ名"]
[null,null,1]
[null,null,2]
[null,null,3]
[null,null,4]
[null,null,5]

{"sheet":"CV-DataBaseスーパー呼び出し印刷命令リスト28","index":32,"n_rows":20,"n_cols":21,"rows_kept":20,"cut":false,"hidden":false,"merged":[[13,12,13,14],[13,15,13,17],[13,18,13,20],[13,2,14,2],[13,3,13,5],[13,6,13,8],[13,9,13,11]]}
[]
[]
[null,null,null,{"$f":"シート名設定!D37","v":"CV-DataBaseスーパー呼び出し印刷命令リスト28"}]
[null,null,"1．ループ呼び出し設定"]
[]
[null,null,null,"設定項目","設定値"]
[null,null,null,"呼び出しファイル，実行マクロ先頭行番号"]
[null,null,null,"呼び出しファイル，実行マクロ最終行番号"]
[null,null,null,"呼び出しファイル，実行マクロ先頭群番号"]
[null,null,null,"呼び出しファイル，実行マクロ最終群番号"]
[]
[null,null,"２．CV-DataBaseスーパー呼び出し印刷命令リスト設定"]
[]
[null,null,"行番号","実行マクロ群1",null,null,"実行マクロ群２",null,null,"実行マクロ群３",null,null,"実行マクロ群４",null,null,"実行マクロ群５",null,null,"実行マクロ群６"]
[null,null,null,"呼び出しファイルのディレクトリ","ファイル名","実行マクロ名","呼び出しファイルのディレクトリ","ファイル名","実行マクロ名","呼び出しファイルのディレクトリ","ファイル名","実行マクロ名","呼び出しファイルのディレクトリ","ファイル名","実行マクロ名","呼び出しファイルのディレクトリ","ファイル名","実行マクロ名","呼び出しファイルのディレクトリ","ファイル名","実行マクロ名"]
[null,null,1]
[null,null,2]
[null,null,3]
[null,null,4]
[null,null,5]

{"sheet":"CV-DataBaseスーパー呼び出し印刷命令リスト29","index":33,"n_rows":20,"n_cols":21,"rows_kept":20,"cut":false,"hidden":false,"merged":[[13,12,13,14],[13,15,13,17],[13,18,13,20],[13,2,14,2],[13,3,13,5],[13,6,13,8],[13,9,13,11]]}
[]
[]
[null,null,null,{"$f":"シート名設定!D38","v":"CV-DataBaseスーパー呼び出し印刷命令リスト29"}]
[null,null,"1．ループ呼び出し設定"]
[]
[null,null,null,"設定項目","設定値"]
[null,null,null,"呼び出しファイル，実行マクロ先頭行番号"]
[null,null,null,"呼び出しファイル，実行マクロ最終行番号"]
[null,null,null,"呼び出しファイル，実行マクロ先頭群番号"]
[null,null,null,"呼び出しファイル，実行マクロ最終群番号"]
[]
[null,null,"２．CV-DataBaseスーパー呼び出し印刷命令リスト設定"]
[]
[null,null,"行番号","実行マクロ群1",null,null,"実行マクロ群２",null,null,"実行マクロ群３",null,null,"実行マクロ群４",null,null,"実行マクロ群５",null,null,"実行マクロ群６"]
[null,null,null,"呼び出しファイルのディレクトリ","ファイル名","実行マクロ名","呼び出しファイルのディレクトリ","ファイル名","実行マクロ名","呼び出しファイルのディレクトリ","ファイル名","実行マクロ名","呼び出しファイルのディレクトリ","ファイル名","実行マクロ名","呼び出しファイルのディレクトリ","ファイル名","実行マクロ名","呼び出しファイルのディレクトリ","ファイル名","実行マクロ名"]
[null,null,1]
[null,null,2]
[null,null,3]
[null,null,4]
[null,null,5]

{"sheet":"CV-DataBaseスーパー呼び出し印刷命令リスト30","index":34,"n_rows":20,"n_cols":21,"rows_kept":20,"cut":false,"hidden":false,"merged":[[13,12,13,14],[13,15,13,17],[13,18,13,20],[13,2,14,2],[13,3,13,5],[13,6,13,8],[13,9,13,11]]}
[]
[]
[null,null,null,{"$f":"シート名設定!D39","v":"CV-DataBaseスーパー呼び出し印刷命令リスト30"}]
[null,null,"1．ループ呼び出し設定"]
[]
[null,null,null,"設定項目","設定値"]
[null,null,null,"呼び出しファイル，実行マクロ先頭行番号"]
[null,null,null,"呼び出しファイル，実行マクロ最終行番号"]
[null,null,null,"呼び出しファイル，実行マクロ先頭群番号"]
[null,null,null,"呼び出しファイル，実行マクロ最終群番号"]
[]
[null,null,"２．CV-DataBaseスーパー呼び出し印刷命令リスト設定"]
[]
[null,null,"行番号","実行マクロ群1",null,null,"実行マクロ群２",null,null,"実行マクロ群３",null,null,"実行マクロ群４",null,null,"実行マクロ群５",null,null,"実行マクロ群６"]
[null,null,null,"呼び出しファイルのディレクトリ","ファイル名","実行マクロ名","呼び出しファイルのディレクトリ","ファイル名","実行マクロ名","呼び出しファイルのディレクトリ","ファイル名","実行マクロ名","呼び出しファイルのディレクトリ","ファイル名","実行マクロ名","呼び出しファイルのディレクトリ","ファイル名","実行マクロ名","呼び出しファイルのディレクトリ","ファイル名","実行マクロ名"]
[null,null,1]
[null,null,2]
[null,null,3]
[null,null,4]
[null,null,5]

{"sheet":"CV-DataBaseスーパー呼び出し印刷命令リスト31","index":35,"n_rows":20,"n_cols":21,"rows_kept":20,"cut":false,"hidden":false,"merged":[[13,12,13,14],[13,15,13,17],[13,18,13,20],[13,2,14,2],[13,3,13,5],[13,6,13,8],[13,9,13,11]]}
[]
[]
[null,null,null,{"$f":"シート名設定!D40","v":"CV-DataBaseスーパー呼び出し印刷命令リスト31"}]
[null,null,"1．ループ呼び出し設定"]
[]
[null,null,null,"設定項目","設定値"]
[null,null,null,"呼び出しファイル，実行マクロ先頭行番号"]
[null,null,null,"呼び出しファイル，実行マクロ最終行番号"]
[null,null,null,"呼び出しファイル，実行マクロ先頭群番号"]
[null,null,null,"呼び出しファイル，実行マクロ最終群番号"]
[]
[null,null,"２．CV-DataBaseスーパー呼び出し印刷命令リスト設定"]
[]
[null,null,"行番号","実行マクロ群1",null,null,"実行マクロ群２",null,null,"実行マクロ群３",null,null,"実行マクロ群４",null,null,"実行マクロ群５",null,null,"実行マクロ群６"]
[null,null,null,"呼び出しファイルのディレクトリ","ファイル名","実行マクロ名","呼び出しファイルのディレクトリ","ファイル名","実行マクロ名","呼び出しファイルのディレクトリ","ファイル名","実行マクロ名","呼び出しファイルのディレクトリ","ファイル名","実行マクロ名","呼び出しファイルのディレクトリ","ファイル名","実行マクロ名","呼び出しファイルのディレクトリ","ファイル名","実行マクロ名"]
[null,null,1]
[null,null,2]
[null,null,3]
[null,null,4]
[null,null,5]

{"sheet":"CV-DataBaseスーパー呼び出し印刷命令リスト32","index":36,"n_rows":20,"n_cols":21,"rows_kept":20,"cut":false,"hidden":false,"merged":[[13,12,13,14],[13,15,13,17],[13,18,13,20],[13,2,14,2],[13,3,13,5],[13,6,13,8],[13,9,13,11]]}
[]
[]
[null,null,null,{"$f":"シート名設定!D41","v":"CV-DataBaseスーパー呼び出し印刷命令リスト32"}]
[null,null,"1．ループ呼び出し設定"]
[]
[null,null,null,"設定項目","設定値"]
[null,null,null,"呼び出しファイル，実行マクロ先頭行番号"]
[null,null,null,"呼び出しファイル，実行マクロ最終行番号"]
[null,null,null,"呼び出しファイル，実行マクロ先頭群番号"]
[null,null,null,"呼び出しファイル，実行マクロ最終群番号"]
[]
[null,null,"２．CV-DataBaseスーパー呼び出し印刷命令リスト設定"]
[]
[null,null,"行番号","実行マクロ群1",null,null,"実行マクロ群２",null,null,"実行マクロ群３",null,null,"実行マクロ群４",null,null,"実行マクロ群５",null,null,"実行マクロ群６"]
[null,null,null,"呼び出しファイルのディレクトリ","ファイル名","実行マクロ名","呼び出しファイルのディレクトリ","ファイル名","実行マクロ名","呼び出しファイルのディレクトリ","ファイル名","実行マクロ名","呼び出しファイルのディレクトリ","ファイル名","実行マクロ名","呼び出しファイルのディレクトリ","ファイル名","実行マクロ名","呼び出しファイルのディレクトリ","ファイル名","実行マクロ名"]
[null,null,1]
[null,null,2]
[null,null,3]
[null,null,4]
[null,null,5]

{"sheet":"CV-DataBaseスーパー呼び出し印刷命令リスト33","index":37,"n_rows":20,"n_cols":21,"rows_kept":20,"cut":false,"hidden":false,"merged":[[13,12,13,14],[13,15,13,17],[13,18,13,20],[13,2,14,2],[13,3,13,5],[13,6,13,8],[13,9,13,11]]}
[]
[]
[null,null,null,{"$f":"シート名設定!D42","v":"CV-DataBaseスーパー呼び出し印刷命令リスト33"}]
[null,null,"1．ループ呼び出し設定"]
[]
[null,null,null,"設定項目","設定値"]
[null,null,null,"呼び出しファイル，実行マクロ先頭行番号"]
[null,null,null,"呼び出しファイル，実行マクロ最終行番号"]
[null,null,null,"呼び出しファイル，実行マクロ先頭群番号"]
[null,null,null,"呼び出しファイル，実行マクロ最終群番号"]
[]
[null,null,"２．CV-DataBaseスーパー呼び出し印刷命令リスト設定"]
[]
[null,null,"行番号","実行マクロ群1",null,null,"実行マクロ群２",null,null,"実行マクロ群３",null,null,"実行マクロ群４",null,null,"実行マクロ群５",null,null,"実行マクロ群６"]
[null,null,null,"呼び出しファイルのディレクトリ","ファイル名","実行マクロ名","呼び出しファイルのディレクトリ","ファイル名","実行マクロ名","呼び出しファイルのディレクトリ","ファイル名","実行マクロ名","呼び出しファイルのディレクトリ","ファイル名","実行マクロ名","呼び出しファイルのディレクトリ","ファイル名","実行マクロ名","呼び出しファイルのディレクトリ","ファイル名","実行マクロ名"]
[null,null,1]
[null,null,2]
[null,null,3]
[null,null,4]
[null,null,5]

{"sheet":"CV-DataBaseスーパー呼び出し印刷命令リスト34","index":38,"n_rows":20,"n_cols":21,"rows_kept":20,"cut":false,"hidden":false,"merged":[[13,12,13,14],[13,15,13,17],[13,18,13,20],[13,2,14,2],[13,3,13,5],[13,6,13,8],[13,9,13,11]]}
[]
[]
[null,null,null,{"$f":"シート名設定!D43","v":"CV-DataBaseスーパー呼び出し印刷命令リスト34"}]
[null,null,"1．ループ呼び出し設定"]
[]
[null,null,null,"設定項目","設定値"]
[null,null,null,"呼び出しファイル，実行マクロ先頭行番号"]
[null,null,null,"呼び出しファイル，実行マクロ最終行番号"]
[null,null,null,"呼び出しファイル，実行マクロ先頭群番号"]
[null,null,null,"呼び出しファイル，実行マクロ最終群番号"]
[]
[null,null,"２．CV-DataBaseスーパー呼び出し印刷命令リスト設定"]
[]
[null,null,"行番号","実行マクロ群1",null,null,"実行マクロ群２",null,null,"実行マクロ群３",null,null,"実行マクロ群４",null,null,"実行マクロ群５",null,null,"実行マクロ群６"]
[null,null,null,"呼び出しファイルのディレクトリ","ファイル名","実行マクロ名","呼び出しファイルのディレクトリ","ファイル名","実行マクロ名","呼び出しファイルのディレクトリ","ファイル名","実行マクロ名","呼び出しファイルのディレクトリ","ファイル名","実行マクロ名","呼び出しファイルのディレクトリ","ファイル名","実行マクロ名","呼び出しファイルのディレクトリ","ファイル名","実行マクロ名"]
[null,null,1]
[null,null,2]
[null,null,3]
[null,null,4]
[null,null,5]

{"sheet":"CV-DataBaseスーパー呼び出し印刷命令リスト35","index":39,"n_rows":20,"n_cols":21,"rows_kept":20,"cut":false,"hidden":false,"merged":[[13,12,13,14],[13,15,13,17],[13,18,13,20],[13,2,14,2],[13,3,13,5],[13,6,13,8],[13,9,13,11]]}
[]
[]
[null,null,null,{"$f":"シート名設定!D44","v":"CV-DataBaseスーパー呼び出し印刷命令リスト35"}]
[null,null,"1．ループ呼び出し設定"]
[]
[null,null,null,"設定項目","設定値"]
[null,null,null,"呼び出しファイル，実行マクロ先頭行番号"]
[null,null,null,"呼び出しファイル，実行マクロ最終行番号"]
[null,null,null,"呼び出しファイル，実行マクロ先頭群番号"]
[null,null,null,"呼び出しファイル，実行マクロ最終群番号"]
[]
[null,null,"２．CV-DataBaseスーパー呼び出し印刷命令リスト設定"]
[]
[null,null,"行番号","実行マクロ群1",null,null,"実行マクロ群２",null,null,"実行マクロ群３",null,null,"実行マクロ群４",null,null,"実行マクロ群５",null,null,"実行マクロ群６"]
[null,null,null,"呼び出しファイルのディレクトリ","ファイル名","実行マクロ名","呼び出しファイルのディレクトリ","ファイル名","実行マクロ名","呼び出しファイルのディレクトリ","ファイル名","実行マクロ名","呼び出しファイルのディレクトリ","ファイル名","実行マクロ名","呼び出しファイルのディレクトリ","ファイル名","実行マクロ名","呼び出しファイルのディレクトリ","ファイル名","実行マクロ名"]
[null,null,1]
[null,null,2]
[null,null,3]
[null,null,4]
[null,null,5]

{"sheet":"CV-DataBaseスーパー呼び出し印刷命令リスト36","index":40,"n_rows":20,"n_cols":21,"rows_kept":20,"cut":false,"hidden":false,"merged":[[13,12,13,14],[13,15,13,17],[13,18,13,20],[13,2,14,2],[13,3,13,5],[13,6,13,8],[13,9,13,11]]}
[]
[]
[null,null,null,{"$f":"シート名設定!D45","v":"CV-DataBaseスーパー呼び出し印刷命令リスト36"}]
[null,null,"1．ループ呼び出し設定"]
[]
[null,null,null,"設定項目","設定値"]
[null,null,null,"呼び出しファイル，実行マクロ先頭行番号"]
[null,null,null,"呼び出しファイル，実行マクロ最終行番号"]
[null,null,null,"呼び出しファイル，実行マクロ先頭群番号"]
[null,null,null,"呼び出しファイル，実行マクロ最終群番号"]
[]
[null,null,"２．CV-DataBaseスーパー呼び出し印刷命令リスト設定"]
[]
[null,null,"行番号","実行マクロ群1",null,null,"実行マクロ群２",null,null,"実行マクロ群３",null,null,"実行マクロ群４",null,null,"実行マクロ群５",null,null,"実行マクロ群６"]
[null,null,null,"呼び出しファイルのディレクトリ","ファイル名","実行マクロ名","呼び出しファイルのディレクトリ","ファイル名","実行マクロ名","呼び出しファイルのディレクトリ","ファイル名","実行マクロ名","呼び出しファイルのディレクトリ","ファイル名","実行マクロ名","呼び出しファイルのディレクトリ","ファイル名","実行マクロ名","呼び出しファイルのディレクトリ","ファイル名","実行マクロ名"]
[null,null,1]
[null,null,2]
[null,null,3]
[null,null,4]
[null,null,5]

{"sheet":"CV-DataBaseスーパー呼び出し印刷命令リスト37","index":41,"n_rows":20,"n_cols":21,"rows_kept":20,"cut":false,"hidden":false,"merged":[[13,12,13,14],[13,15,13,17],[13,18,13,20],[13,2,14,2],[13,3,13,5],[13,6,13,8],[13,9,13,11]]}
[]
[]
[null,null,null,{"$f":"シート名設定!D46","v":"CV-DataBaseスーパー呼び出し印刷命令リスト37"}]
[null,null,"1．ループ呼び出し設定"]
[]
[null,null,null,"設定項目","設定値"]
[null,null,null,"呼び出しファイル，実行マクロ先頭行番号"]
[null,null,null,"呼び出しファイル，実行マクロ最終行番号"]
[null,null,null,"呼び出しファイル，実行マクロ先頭群番号"]
[null,null,null,"呼び出しファイル，実行マクロ最終群番号"]
[]
[null,null,"２．CV-DataBaseスーパー呼び出し印刷命令リスト設定"]
[]
[null,null,"行番号","実行マクロ群1",null,null,"実行マクロ群２",null,null,"実行マクロ群３",null,null,"実行マクロ群４",null,null,"実行マクロ群５",null,null,"実行マクロ群６"]
[null,null,null,"呼び出しファイルのディレクトリ","ファイル名","実行マクロ名","呼び出しファイルのディレクトリ","ファイル名","実行マクロ名","呼び出しファイルのディレクトリ","ファイル名","実行マクロ名","呼び出しファイルのディレクトリ","ファイル名","実行マクロ名","呼び出しファイルのディレクトリ","ファイル名","実行マクロ名","呼び出しファイルのディレクトリ","ファイル名","実行マクロ名"]
[null,null,1]
[null,null,2]
[null,null,3]
[null,null,4]
[null,null,5]

{"sheet":"CV-DataBaseスーパー呼び出し印刷命令リスト38","index":42,"n_rows":20,"n_cols":21,"rows_kept":20,"cut":false,"hidden":false,"merged":[[13,12,13,14],[13,15,13,17],[13,18,13,20],[13,2,14,2],[13,3,13,5],[13,6,13,8],[13,9,13,11]]}
[]
[]
[null,null,null,{"$f":"シート名設定!D47","v":"CV-DataBaseスーパー呼び出し印刷命令リスト38"}]
[null,null,"1．ループ呼び出し設定"]
[]
[null,null,null,"設定項目","設定値"]
[null,null,null,"呼び出しファイル，実行マクロ先頭行番号"]
[null,null,null,"呼び出しファイル，実行マクロ最終行番号"]
[null,null,null,"呼び出しファイル，実行マクロ先頭群番号"]
[null,null,null,"呼び出しファイル，実行マクロ最終群番号"]
[]
[null,null,"２．CV-DataBaseスーパー呼び出し印刷命令リスト設定"]
[]
[null,null,"行番号","実行マクロ群1",null,null,"実行マクロ群２",null,null,"実行マクロ群３",null,null,"実行マクロ群４",null,null,"実行マクロ群５",null,null,"実行マクロ群６"]
[null,null,null,"呼び出しファイルのディレクトリ","ファイル名","実行マクロ名","呼び出しファイルのディレクトリ","ファイル名","実行マクロ名","呼び出しファイルのディレクトリ","ファイル名","実行マクロ名","呼び出しファイルのディレクトリ","ファイル名","実行マクロ名","呼び出しファイルのディレクトリ","ファイル名","実行マクロ名","呼び出しファイルのディレクトリ","ファイル名","実行マクロ名"]
[null,null,1]
[null,null,2]
[null,null,3]
[null,null,4]
[null,null,5]

{"sheet":"CV-DataBaseスーパー呼び出し印刷命令リスト39","index":43,"n_rows":20,"n_cols":21,"rows_kept":20,"cut":false,"hidden":false,"merged":[[13,12,13,14],[13,15,13,17],[13,18,13,20],[13,2,14,2],[13,3,13,5],[13,6,13,8],[13,9,13,11]]}
[]
[]
[null,null,null,{"$f":"シート名設定!D48","v":"CV-DataBaseスーパー呼び出し印刷命令リスト39"}]
[null,null,"1．ループ呼び出し設定"]
[]
[null,null,null,"設定項目","設定値"]
[null,null,null,"呼び出しファイル，実行マクロ先頭行番号"]
[null,null,null,"呼び出しファイル，実行マクロ最終行番号"]
[null,null,null,"呼び出しファイル，実行マクロ先頭群番号"]
[null,null,null,"呼び出しファイル，実行マクロ最終群番号"]
[]
[null,null,"２．CV-DataBaseスーパー呼び出し印刷命令リスト設定"]
[]
[null,null,"行番号","実行マクロ群1",null,null,"実行マクロ群２",null,null,"実行マクロ群３",null,null,"実行マクロ群４",null,null,"実行マクロ群５",null,null,"実行マクロ群６"]
[null,null,null,"呼び出しファイルのディレクトリ","ファイル名","実行マクロ名","呼び出しファイルのディレクトリ","ファイル名","実行マクロ名","呼び出しファイルのディレクトリ","ファイル名","実行マクロ名","呼び出しファイルのディレクトリ","ファイル名","実行マクロ名","呼び出しファイルのディレクトリ","ファイル名","実行マクロ名","呼び出しファイルのディレクトリ","ファイル名","実行マクロ名"]
[null,null,1]
[null,null,2]
[null,null,3]
[null,null,4]
[null,null,5]

{"sheet":"CV-DataBaseスーパー呼び出し印刷命令リスト40","index":44,"n_rows":20,"n_cols":21,"rows_kept":20,"cut":false,"hidden":false,"merged":[[13,12,13,14],[13,15,13,17],[13,18,13,20],[13,2,14,2],[13,3,13,5],[13,6,13,8],[13,9,13,11]]}
[]
[]
[null,null,null,{"$f":"シート名設定!D49","v":"CV-DataBaseスーパー呼び出し印刷命令リスト40"}]
[null,null,"1．ループ呼び出し設定"]
[]
[null,null,null,"設定項目","設定値"]
[null,null,null,"呼び出しファイル，実行マクロ先頭行番号"]
[null,null,null,"呼び出しファイル，実行マクロ最終行番号"]
[null,null,null,"呼び出しファイル，実行マクロ先頭群番号"]
[null,null,null,"呼び出しファイル，実行マクロ最終群番号"]
[]
[null,null,"２．CV-DataBaseスーパー呼び出し印刷命令リスト設定"]
[]
[null,null,"行番号","実行マクロ群1",null,null,"実行マクロ群２",null,null,"実行マクロ群３",null,null,"実行マクロ群４",null,null,"実行マクロ群５",null,null,"実行マクロ群６"]
[null,null,null,"呼び出しファイルのディレクトリ","ファイル名","実行マクロ名","呼び出しファイルのディレクトリ","ファイル名","実行マクロ名","呼び出しファイルのディレクトリ","ファイル名","実行マクロ名","呼び出しファイルのディレクトリ","ファイル名","実行マクロ名","呼び出しファイルのディレクトリ","ファイル名","実行マクロ名","呼び出しファイルのディレクトリ","ファイル名","実行マクロ名"]
[null,null,1]
[null,null,2]
[null,null,3]
[null,null,4]
[null,null,5]

{"sheet":"CV-DataBaseスーパー呼び出し印刷命令リスト41","index":45,"n_rows":20,"n_cols":21,"rows_kept":20,"cut":false,"hidden":false,"merged":[[13,12,13,14],[13,15,13,17],[13,18,13,20],[13,2,14,2],[13,3,13,5],[13,6,13,8],[13,9,13,11]]}
[]
[]
[null,null,null,{"$f":"シート名設定!D50","v":"CV-DataBaseスーパー呼び出し印刷命令リスト41"}]
[null,null,"1．ループ呼び出し設定"]
[]
[null,null,null,"設定項目","設定値"]
[null,null,null,"呼び出しファイル，実行マクロ先頭行番号"]
[null,null,null,"呼び出しファイル，実行マクロ最終行番号"]
[null,null,null,"呼び出しファイル，実行マクロ先頭群番号"]
[null,null,null,"呼び出しファイル，実行マクロ最終群番号"]
[]
[null,null,"２．CV-DataBaseスーパー呼び出し印刷命令リスト設定"]
[]
[null,null,"行番号","実行マクロ群1",null,null,"実行マクロ群２",null,null,"実行マクロ群３",null,null,"実行マクロ群４",null,null,"実行マクロ群５",null,null,"実行マクロ群６"]
[null,null,null,"呼び出しファイルのディレクトリ","ファイル名","実行マクロ名","呼び出しファイルのディレクトリ","ファイル名","実行マクロ名","呼び出しファイルのディレクトリ","ファイル名","実行マクロ名","呼び出しファイルのディレクトリ","ファイル名","実行マクロ名","呼び出しファイルのディレクトリ","ファイル名","実行マクロ名","呼び出しファイルのディレクトリ","ファイル名","実行マクロ名"]
[null,null,1]
[null,null,2]
[null,null,3]
[null,null,4]
[null,null,5]

{"sheet":"CV-DataBaseスーパー呼び出し印刷命令リスト42","index":46,"n_rows":20,"n_cols":21,"rows_kept":20,"cut":false,"hidden":false,"merged":[[13,12,13,14],[13,15,13,17],[13,18,13,20],[13,2,14,2],[13,3,13,5],[13,6,13,8],[13,9,13,11]]}
[]
[]
[null,null,null,{"$f":"シート名設定!D51","v":"CV-DataBaseスーパー呼び出し印刷命令リスト42"}]
[null,null,"1．ループ呼び出し設定"]
[]
[null,null,null,"設定項目","設定値"]
[null,null,null,"呼び出しファイル，実行マクロ先頭行番号"]
[null,null,null,"呼び出しファイル，実行マクロ最終行番号"]
[null,null,null,"呼び出しファイル，実行マクロ先頭群番号"]
[null,null,null,"呼び出しファイル，実行マクロ最終群番号"]
[]
[null,null,"２．CV-DataBaseスーパー呼び出し印刷命令リスト設定"]
[]
[null,null,"行番号","実行マクロ群1",null,null,"実行マクロ群２",null,null,"実行マクロ群３",null,null,"実行マクロ群４",null,null,"実行マクロ群５",null,null,"実行マクロ群６"]
[null,null,null,"呼び出しファイルのディレクトリ","ファイル名","実行マクロ名","呼び出しファイルのディレクトリ","ファイル名","実行マクロ名","呼び出しファイルのディレクトリ","ファイル名","実行マクロ名","呼び出しファイルのディレクトリ","ファイル名","実行マクロ名","呼び出しファイルのディレクトリ","ファイル名","実行マクロ名","呼び出しファイルのディレクトリ","ファイル名","実行マクロ名"]
[null,null,1]
[null,null,2]
[null,null,3]
[null,null,4]
[null,null,5]

{"sheet":"CV-DataBaseスーパー呼び出し印刷命令リスト43","index":47,"n_rows":20,"n_cols":21,"rows_kept":20,"cut":false,"hidden":false,"merged":[[13,12,13,14],[13,15,13,17],[13,18,13,20],[13,2,14,2],[13,3,13,5],[13,6,13,8],[13,9,13,11]]}
[]
[]
[null,null,null,{"$f":"シート名設定!D52","v":"CV-DataBaseスーパー呼び出し印刷命令リスト43"}]
[null,null,"1．ループ呼び出し設定"]
[]
[null,null,null,"設定項目","設定値"]
[null,null,null,"呼び出しファイル，実行マクロ先頭行番号"]
[null,null,null,"呼び出しファイル，実行マクロ最終行番号"]
[null,null,null,"呼び出しファイル，実行マクロ先頭群番号"]
[null,null,null,"呼び出しファイル，実行マクロ最終群番号"]
[]
[null,null,"２．CV-DataBaseスーパー呼び出し印刷命令リスト設定"]
[]
[null,null,"行番号","実行マクロ群1",null,null,"実行マクロ群２",null,null,"実行マクロ群３",null,null,"実行マクロ群４",null,null,"実行マクロ群５",null,null,"実行マクロ群６"]
[null,null,null,"呼び出しファイルのディレクトリ","ファイル名","実行マクロ名","呼び出しファイルのディレクトリ","ファイル名","実行マクロ名","呼び出しファイルのディレクトリ","ファイル名","実行マクロ名","呼び出しファイルのディレクトリ","ファイル名","実行マクロ名","呼び出しファイルのディレクトリ","ファイル名","実行マクロ名","呼び出しファイルのディレクトリ","ファイル名","実行マクロ名"]
[null,null,1]
[null,null,2]
[null,null,3]
[null,null,4]
[null,null,5]

{"sheet":"CV-DataBaseスーパー呼び出し印刷命令リスト44","index":48,"n_rows":20,"n_cols":21,"rows_kept":20,"cut":false,"hidden":false,"merged":[[13,12,13,14],[13,15,13,17],[13,18,13,20],[13,2,14,2],[13,3,13,5],[13,6,13,8],[13,9,13,11]]}
[]
[]
[null,null,null,{"$f":"シート名設定!D53","v":"CV-DataBaseスーパー呼び出し印刷命令リスト44"}]
[null,null,"1．ループ呼び出し設定"]
[]
[null,null,null,"設定項目","設定値"]
[null,null,null,"呼び出しファイル，実行マクロ先頭行番号"]
[null,null,null,"呼び出しファイル，実行マクロ最終行番号"]
[null,null,null,"呼び出しファイル，実行マクロ先頭群番号"]
[null,null,null,"呼び出しファイル，実行マクロ最終群番号"]
[]
[null,null,"２．CV-DataBaseスーパー呼び出し印刷命令リスト設定"]
[]
[null,null,"行番号","実行マクロ群1",null,null,"実行マクロ群２",null,null,"実行マクロ群３",null,null,"実行マクロ群４",null,null,"実行マクロ群５",null,null,"実行マクロ群６"]
[null,null,null,"呼び出しファイルのディレクトリ","ファイル名","実行マクロ名","呼び出しファイルのディレクトリ","ファイル名","実行マクロ名","呼び出しファイルのディレクトリ","ファイル名","実行マクロ名","呼び出しファイルのディレクトリ","ファイル名","実行マクロ名","呼び出しファイルのディレクトリ","ファイル名","実行マクロ名","呼び出しファイルのディレクトリ","ファイル名","実行マクロ名"]
[null,null,1]
[null,null,2]
[null,null,3]
[null,null,4]
[null,null,5]

{"sheet":"CV-DataBaseスーパー呼び出し印刷命令リスト45","index":49,"n_rows":20,"n_cols":21,"rows_kept":20,"cut":false,"hidden":false,"merged":[[13,12,13,14],[13,15,13,17],[13,18,13,20],[13,2,14,2],[13,3,13,5],[13,6,13,8],[13,9,13,11]]}
[]
[]
[null,null,null,{"$f":"シート名設定!D54","v":"CV-DataBaseスーパー呼び出し印刷命令リスト45"}]
[null,null,"1．ループ呼び出し設定"]
[]
[null,null,null,"設定項目","設定値"]
[null,null,null,"呼び出しファイル，実行マクロ先頭行番号"]
[null,null,null,"呼び出しファイル，実行マクロ最終行番号"]
[null,null,null,"呼び出しファイル，実行マクロ先頭群番号"]
[null,null,null,"呼び出しファイル，実行マクロ最終群番号"]
[]
[null,null,"２．CV-DataBaseスーパー呼び出し印刷命令リスト設定"]
[]
[null,null,"行番号","実行マクロ群1",null,null,"実行マクロ群２",null,null,"実行マクロ群３",null,null,"実行マクロ群４",null,null,"実行マクロ群５",null,null,"実行マクロ群６"]
[null,null,null,"呼び出しファイルのディレクトリ","ファイル名","実行マクロ名","呼び出しファイルのディレクトリ","ファイル名","実行マクロ名","呼び出しファイルのディレクトリ","ファイル名","実行マクロ名","呼び出しファイルのディレクトリ","ファイル名","実行マクロ名","呼び出しファイルのディレクトリ","ファイル名","実行マクロ名","呼び出しファイルのディレクトリ","ファイル名","実行マクロ名"]
[null,null,1]
[null,null,2]
[null,null,3]
[null,null,4]
[null,null,5]

{"sheet":"CV-DataBaseスーパー呼び出し印刷命令リスト46","index":50,"n_rows":20,"n_cols":21,"rows_kept":20,"cut":false,"hidden":false,"merged":[[13,12,13,14],[13,15,13,17],[13,18,13,20],[13,2,14,2],[13,3,13,5],[13,6,13,8],[13,9,13,11]]}
[]
[]
[null,null,null,{"$f":"シート名設定!D55","v":"CV-DataBaseスーパー呼び出し印刷命令リスト46"}]
[null,null,"1．ループ呼び出し設定"]
[]
[null,null,null,"設定項目","設定値"]
[null,null,null,"呼び出しファイル，実行マクロ先頭行番号"]
[null,null,null,"呼び出しファイル，実行マクロ最終行番号"]
[null,null,null,"呼び出しファイル，実行マクロ先頭群番号"]
[null,null,null,"呼び出しファイル，実行マクロ最終群番号"]
[]
[null,null,"２．CV-DataBaseスーパー呼び出し印刷命令リスト設定"]
[]
[null,null,"行番号","実行マクロ群1",null,null,"実行マクロ群２",null,null,"実行マクロ群３",null,null,"実行マクロ群４",null,null,"実行マクロ群５",null,null,"実行マクロ群６"]
[null,null,null,"呼び出しファイルのディレクトリ","ファイル名","実行マクロ名","呼び出しファイルのディレクトリ","ファイル名","実行マクロ名","呼び出しファイルのディレクトリ","ファイル名","実行マクロ名","呼び出しファイルのディレクトリ","ファイル名","実行マクロ名","呼び出しファイルのディレクトリ","ファイル名","実行マクロ名","呼び出しファイルのディレクトリ","ファイル名","実行マクロ名"]
[null,null,1]
[null,null,2]
[null,null,3]
[null,null,4]
[null,null,5]

{"sheet":"CV-DataBaseスーパー呼び出し印刷命令リスト47","index":51,"n_rows":20,"n_cols":21,"rows_kept":20,"cut":false,"hidden":false,"merged":[[13,12,13,14],[13,15,13,17],[13,18,13,20],[13,2,14,2],[13,3,13,5],[13,6,13,8],[13,9,13,11]]}
[]
[]
[null,null,null,{"$f":"シート名設定!D56","v":"CV-DataBaseスーパー呼び出し印刷命令リスト47"}]
[null,null,"1．ループ呼び出し設定"]
[]
[null,null,null,"設定項目","設定値"]
[null,null,null,"呼び出しファイル，実行マクロ先頭行番号"]
[null,null,null,"呼び出しファイル，実行マクロ最終行番号"]
[null,null,null,"呼び出しファイル，実行マクロ先頭群番号"]
[null,null,null,"呼び出しファイル，実行マクロ最終群番号"]
[]
[null,null,"２．CV-DataBaseスーパー呼び出し印刷命令リスト設定"]
[]
[null,null,"行番号","実行マクロ群1",null,null,"実行マクロ群２",null,null,"実行マクロ群３",null,null,"実行マクロ群４",null,null,"実行マクロ群５",null,null,"実行マクロ群６"]
[null,null,null,"呼び出しファイルのディレクトリ","ファイル名","実行マクロ名","呼び出しファイルのディレクトリ","ファイル名","実行マクロ名","呼び出しファイルのディレクトリ","ファイル名","実行マクロ名","呼び出しファイルのディレクトリ","ファイル名","実行マクロ名","呼び出しファイルのディレクトリ","ファイル名","実行マクロ名","呼び出しファイルのディレクトリ","ファイル名","実行マクロ名"]
[null,null,1]
[null,null,2]
[null,null,3]
[null,null,4]
[null,null,5]

{"sheet":"CV-DataBaseスーパー呼び出し印刷命令リスト48","index":52,"n_rows":20,"n_cols":21,"rows_kept":20,"cut":false,"hidden":false,"merged":[[13,12,13,14],[13,15,13,17],[13,18,13,20],[13,2,14,2],[13,3,13,5],[13,6,13,8],[13,9,13,11]]}
[]
[]
[null,null,null,{"$f":"シート名設定!D57","v":"CV-DataBaseスーパー呼び出し印刷命令リスト48"}]
[null,null,"1．ループ呼び出し設定"]
[]
[null,null,null,"設定項目","設定値"]
[null,null,null,"呼び出しファイル，実行マクロ先頭行番号"]
[null,null,null,"呼び出しファイル，実行マクロ最終行番号"]
[null,null,null,"呼び出しファイル，実行マクロ先頭群番号"]
[null,null,null,"呼び出しファイル，実行マクロ最終群番号"]
[]
[null,null,"２．CV-DataBaseスーパー呼び出し印刷命令リスト設定"]
[]
[null,null,"行番号","実行マクロ群1",null,null,"実行マクロ群２",null,null,"実行マクロ群３",null,null,"実行マクロ群４",null,null,"実行マクロ群５",null,null,"実行マクロ群６"]
[null,null,null,"呼び出しファイルのディレクトリ","ファイル名","実行マクロ名","呼び出しファイルのディレクトリ","ファイル名","実行マクロ名","呼び出しファイルのディレクトリ","ファイル名","実行マクロ名","呼び出しファイルのディレクトリ","ファイル名","実行マクロ名","呼び出しファイルのディレクトリ","ファイル名","実行マクロ名","呼び出しファイルのディレクトリ","ファイル名","実行マクロ名"]
[null,null,1]
[null,null,2]
[null,null,3]
[null,null,4]
[null,null,5]

{"sheet":"CV-DataBaseスーパー呼び出し印刷命令リスト49","index":53,"n_rows":20,"n_cols":21,"rows_kept":20,"cut":false,"hidden":false,"merged":[[13,12,13,14],[13,15,13,17],[13,18,13,20],[13,2,14,2],[13,3,13,5],[13,6,13,8],[13,9,13,11]]}
[]
[]
[null,null,null,{"$f":"シート名設定!D58","v":"CV-DataBaseスーパー呼び出し印刷命令リスト49"}]
[null,null,"1．ループ呼び出し設定"]
[]
[null,null,null,"設定項目","設定値"]
[null,null,null,"呼び出しファイル，実行マクロ先頭行番号"]
[null,null,null,"呼び出しファイル，実行マクロ最終行番号"]
[null,null,null,"呼び出しファイル，実行マクロ先頭群番号"]
[null,null,null,"呼び出しファイル，実行マクロ最終群番号"]
[]
[null,null,"２．CV-DataBaseスーパー呼び出し印刷命令リスト設定"]
[]
[null,null,"行番号","実行マクロ群1",null,null,"実行マクロ群２",null,null,"実行マクロ群３",null,null,"実行マクロ群４",null,null,"実行マクロ群５",null,null,"実行マクロ群６"]
[null,null,null,"呼び出しファイルのディレクトリ","ファイル名","実行マクロ名","呼び出しファイルのディレクトリ","ファイル名","実行マクロ名","呼び出しファイルのディレクトリ","ファイル名","実行マクロ名","呼び出しファイルのディレクトリ","ファイル名","実行マクロ名","呼び出しファイルのディレクトリ","ファイル名","実行マクロ名","呼び出しファイルのディレクトリ","ファイル名","実行マクロ名"]
[null,null,1]
[null,null,2]
[null,null,3]
[null,null,4]
[null,null,5]

{"sheet":"CV-DataBaseスーパー呼び出し印刷命令リスト50","index":54,"n_rows":20,"n_cols":21,"rows_kept":20,"cut":false,"hidden":false,"merged":[[13,12,13,14],[13,15,13,17],[13,18,13,20],[13,2,14,2],[13,3,13,5],[13,6,13,8],[13,9,13,11]]}
[]
[]
[null,null,null,{"$f":"シート名設定!D59","v":"CV-DataBaseスーパー呼び出し印刷命令リスト50"}]
[null,null,"1．ループ呼び出し設定"]
[]
[null,null,null,"設定項目","設定値"]
[null,null,null,"呼び出しファイル，実行マクロ先頭行番号"]
[null,null,null,"呼び出しファイル，実行マクロ最終行番号"]
[null,null,null,"呼び出しファイル，実行マクロ先頭群番号"]
[null,null,null,"呼び出しファイル，実行マクロ最終群番号"]
[]
[null,null,"２．CV-DataBaseスーパー呼び出し印刷命令リスト設定"]
[]
[null,null,"行番号","実行マクロ群1",null,null,"実行マクロ群２",null,null,"実行マクロ群３",null,null,"実行マクロ群４",null,null,"実行マクロ群５",null,null,"実行マクロ群６"]
[null,null,null,"呼び出しファイルのディレクトリ","ファイル名","実行マクロ名","呼び出しファイルのディレクトリ","ファイル名","実行マクロ名","呼び出しファイルのディレクトリ","ファイル名","実行マクロ名","呼び出しファイルのディレクトリ","ファイル名","実行マクロ名","呼び出しファイルのディレクトリ","ファイル名","実行マクロ名","呼び出しファイルのディレクトリ","ファイル名","実行マクロ名"]
[null,null,1]
[null,null,2]
[null,null,3]
[null,null,4]
[null,null,5]

{"sheet":"CV-DataBaseスーパー呼び出し印刷命令リスト51","index":55,"n_rows":20,"n_cols":21,"rows_kept":20,"cut":false,"hidden":false,"merged":[[13,12,13,14],[13,15,13,17],[13,18,13,20],[13,2,14,2],[13,3,13,5],[13,6,13,8],[13,9,13,11]]}
[]
[]
[null,null,null,{"$f":"シート名設定!D60","v":"CV-DataBaseスーパー呼び出し印刷命令リスト51"}]
[null,null,"1．ループ呼び出し設定"]
[]
[null,null,null,"設定項目","設定値"]
[null,null,null,"呼び出しファイル，実行マクロ先頭行番号"]
[null,null,null,"呼び出しファイル，実行マクロ最終行番号"]
[null,null,null,"呼び出しファイル，実行マクロ先頭群番号"]
[null,null,null,"呼び出しファイル，実行マクロ最終群番号"]
[]
[null,null,"２．CV-DataBaseスーパー呼び出し印刷命令リスト設定"]
[]
[null,null,"行番号","実行マクロ群1",null,null,"実行マクロ群２",null,null,"実行マクロ群３",null,null,"実行マクロ群４",null,null,"実行マクロ群５",null,null,"実行マクロ群６"]
[null,null,null,"呼び出しファイルのディレクトリ","ファイル名","実行マクロ名","呼び出しファイルのディレクトリ","ファイル名","実行マクロ名","呼び出しファイルのディレクトリ","ファイル名","実行マクロ名","呼び出しファイルのディレクトリ","ファイル名","実行マクロ名","呼び出しファイルのディレクトリ","ファイル名","実行マクロ名","呼び出しファイルのディレクトリ","ファイル名","実行マクロ名"]
[null,null,1]
[null,null,2]
[null,null,3]
[null,null,4]
[null,null,5]

{"sheet":"CV-DataBaseスーパー呼び出し印刷命令リスト52","index":56,"n_rows":20,"n_cols":21,"rows_kept":20,"cut":false,"hidden":false,"merged":[[13,12,13,14],[13,15,13,17],[13,18,13,20],[13,2,14,2],[13,3,13,5],[13,6,13,8],[13,9,13,11]]}
[]
[]
[null,null,null,{"$f":"シート名設定!D61","v":"CV-DataBaseスーパー呼び出し印刷命令リスト52"}]
[null,null,"1．ループ呼び出し設定"]
[]
[null,null,null,"設定項目","設定値"]
[null,null,null,"呼び出しファイル，実行マクロ先頭行番号"]
[null,null,null,"呼び出しファイル，実行マクロ最終行番号"]
[null,null,null,"呼び出しファイル，実行マクロ先頭群番号"]
[null,null,null,"呼び出しファイル，実行マクロ最終群番号"]
[]
[null,null,"２．CV-DataBaseスーパー呼び出し印刷命令リスト設定"]
[]
[null,null,"行番号","実行マクロ群1",null,null,"実行マクロ群２",null,null,"実行マクロ群３",null,null,"実行マクロ群４",null,null,"実行マクロ群５",null,null,"実行マクロ群６"]
[null,null,null,"呼び出しファイルのディレクトリ","ファイル名","実行マクロ名","呼び出しファイルのディレクトリ","ファイル名","実行マクロ名","呼び出しファイルのディレクトリ","ファイル名","実行マクロ名","呼び出しファイルのディレクトリ","ファイル名","実行マクロ名","呼び出しファイルのディレクトリ","ファイル名","実行マクロ名","呼び出しファイルのディレクトリ","ファイル名","実行マクロ名"]
[null,null,1]
[null,null,2]
[null,null,3]
[null,null,4]
[null,null,5]

{"sheet":"CV-DataBaseスーパー呼び出し印刷命令リスト53","index":57,"n_rows":20,"n_cols":21,"rows_kept":20,"cut":false,"hidden":false,"merged":[[13,12,13,14],[13,15,13,17],[13,18,13,20],[13,2,14,2],[13,3,13,5],[13,6,13,8],[13,9,13,11]]}
[]
[]
[null,null,null,{"$f":"シート名設定!D62","v":"2021cvdatabaseadvancesuupayobidasiinnsatuver1siyoubann.xlsm"}]
[null,null,"1．ループ呼び出し設定"]
[]
[null,null,null,"設定項目","設定値"]
[null,null,null,"呼び出しファイル，実行マクロ先頭行番号"]
[null,null,null,"呼び出しファイル，実行マクロ最終行番号"]
[null,null,null,"呼び出しファイル，実行マクロ先頭群番号"]
[null,null,null,"呼び出しファイル，実行マクロ最終群番号"]
[]
[null,null,"２．CV-DataBaseスーパー呼び出し印刷命令リスト設定"]
[]
[null,null,"行番号","実行マクロ群1",null,null,"実行マクロ群２",null,null,"実行マクロ群３",null,null,"実行マクロ群４",null,null,"実行マクロ群５",null,null,"実行マクロ群６"]
[null,null,null,"呼び出しファイルのディレクトリ","ファイル名","実行マクロ名","呼び出しファイルのディレクトリ","ファイル名","実行マクロ名","呼び出しファイルのディレクトリ","ファイル名","実行マクロ名","呼び出しファイルのディレクトリ","ファイル名","実行マクロ名","呼び出しファイルのディレクトリ","ファイル名","実行マクロ名","呼び出しファイルのディレクトリ","ファイル名","実行マクロ名"]
[null,null,1]
[null,null,2]
[null,null,3]
[null,null,4]
[null,null,5]

{"sheet":"CV-DataBaseスーパー呼び出し印刷命令リスト54","index":58,"n_rows":20,"n_cols":21,"rows_kept":20,"cut":false,"hidden":false,"merged":[[13,12,13,14],[13,15,13,17],[13,18,13,20],[13,2,14,2],[13,3,13,5],[13,6,13,8],[13,9,13,11]]}
[]
[]
[null,null,null,{"$f":"シート名設定!D63","v":"CV-DataBaseスーパー呼び出し印刷命令リスト54"}]
[null,null,"1．ループ呼び出し設定"]
[]
[null,null,null,"設定項目","設定値"]
[null,null,null,"呼び出しファイル，実行マクロ先頭行番号"]
[null,null,null,"呼び出しファイル，実行マクロ最終行番号"]
[null,null,null,"呼び出しファイル，実行マクロ先頭群番号"]
[null,null,null,"呼び出しファイル，実行マクロ最終群番号"]
[]
[null,null,"２．CV-DataBaseスーパー呼び出し印刷命令リスト設定"]
[]
[null,null,"行番号","実行マクロ群1",null,null,"実行マクロ群２",null,null,"実行マクロ群３",null,null,"実行マクロ群４",null,null,"実行マクロ群５",null,null,"実行マクロ群６"]
[null,null,null,"呼び出しファイルのディレクトリ","ファイル名","実行マクロ名","呼び出しファイルのディレクトリ","ファイル名","実行マクロ名","呼び出しファイルのディレクトリ","ファイル名","実行マクロ名","呼び出しファイルのディレクトリ","ファイル名","実行マクロ名","呼び出しファイルのディレクトリ","ファイル名","実行マクロ名","呼び出しファイルのディレクトリ","ファイル名","実行マクロ名"]
[null,null,1]
[null,null,2]
[null,null,3]
[null,null,4]
[null,null,5]

{"sheet":"CV-DataBaseスーパー呼び出し印刷命令リスト55","index":59,"n_rows":20,"n_cols":21,"rows_kept":20,"cut":false,"hidden":false,"merged":[[13,12,13,14],[13,15,13,17],[13,18,13,20],[13,2,14,2],[13,3,13,5],[13,6,13,8],[13,9,13,11]]}
[]
[]
[null,null,null,{"$f":"シート名設定!D64","v":"CV-DataBaseスーパー呼び出し印刷命令リスト55"}]
[null,null,"1．ループ呼び出し設定"]
[]
[null,null,null,"設定項目","設定値"]
[null,null,null,"呼び出しファイル，実行マクロ先頭行番号"]
[null,null,null,"呼び出しファイル，実行マクロ最終行番号"]
[null,null,null,"呼び出しファイル，実行マクロ先頭群番号"]
[null,null,null,"呼び出しファイル，実行マクロ最終群番号"]
[]
[null,null,"２．CV-DataBaseスーパー呼び出し印刷命令リスト設定"]
[]
[null,null,"行番号","実行マクロ群1",null,null,"実行マクロ群２",null,null,"実行マクロ群３",null,null,"実行マクロ群４",null,null,"実行マクロ群５",null,null,"実行マクロ群６"]
[null,null,null,"呼び出しファイルのディレクトリ","ファイル名","実行マクロ名","呼び出しファイルのディレクトリ","ファイル名","実行マクロ名","呼び出しファイルのディレクトリ","ファイル名","実行マクロ名","呼び出しファイルのディレクトリ","ファイル名","実行マクロ名","呼び出しファイルのディレクトリ","ファイル名","実行マクロ名","呼び出しファイルのディレクトリ","ファイル名","実行マクロ名"]
[null,null,1]
[null,null,2]
[null,null,3]
[null,null,4]
[null,null,5]

{"sheet":"CV-DataBaseスーパー呼び出し印刷命令リスト56","index":60,"n_rows":20,"n_cols":21,"rows_kept":20,"cut":false,"hidden":false,"merged":[[13,12,13,14],[13,15,13,17],[13,18,13,20],[13,2,14,2],[13,3,13,5],[13,6,13,8],[13,9,13,11]]}
[]
[]
[null,null,null,{"$f":"シート名設定!D65","v":"CV-DataBaseスーパー呼び出し印刷命令リスト56"}]
[null,null,"1．ループ呼び出し設定"]
[]
[null,null,null,"設定項目","設定値"]
[null,null,null,"呼び出しファイル，実行マクロ先頭行番号"]
[null,null,null,"呼び出しファイル，実行マクロ最終行番号"]
[null,null,null,"呼び出しファイル，実行マクロ先頭群番号"]
[null,null,null,"呼び出しファイル，実行マクロ最終群番号"]
[]
[null,null,"２．CV-DataBaseスーパー呼び出し印刷命令リスト設定"]
[]
[null,null,"行番号","実行マクロ群1",null,null,"実行マクロ群２",null,null,"実行マクロ群３",null,null,"実行マクロ群４",null,null,"実行マクロ群５",null,null,"実行マクロ群６"]
[null,null,null,"呼び出しファイルのディレクトリ","ファイル名","実行マクロ名","呼び出しファイルのディレクトリ","ファイル名","実行マクロ名","呼び出しファイルのディレクトリ","ファイル名","実行マクロ名","呼び出しファイルのディレクトリ","ファイル名","実行マクロ名","呼び出しファイルのディレクトリ","ファイル名","実行マクロ名","呼び出しファイルのディレクトリ","ファイル名","実行マクロ名"]
[null,null,1]
[null,null,2]
[null,null,3]
[null,null,4]
[null,null,5]

{"sheet":"CV-DataBaseスーパー呼び出し印刷命令リスト57","index":61,"n_rows":20,"n_cols":21,"rows_kept":20,"cut":false,"hidden":false,"merged":[[13,12,13,14],[13,15,13,17],[13,18,13,20],[13,2,14,2],[13,3,13,5],[13,6,13,8],[13,9,13,11]]}
[]
[]
[null,null,null,{"$f":"シート名設定!D66","v":"CV-DataBaseスーパー呼び出し印刷命令リスト57"}]
[null,null,"1．ループ呼び出し設定"]
[]
[null,null,null,"設定項目","設定値"]
[null,null,null,"呼び出しファイル，実行マクロ先頭行番号"]
[null,null,null,"呼び出しファイル，実行マクロ最終行番号"]
[null,null,null,"呼び出しファイル，実行マクロ先頭群番号"]
[null,null,null,"呼び出しファイル，実行マクロ最終群番号"]
[]
[null,null,"２．CV-DataBaseスーパー呼び出し印刷命令リスト設定"]
[]
[null,null,"行番号","実行マクロ群1",null,null,"実行マクロ群２",null,null,"実行マクロ群３",null,null,"実行マクロ群４",null,null,"実行マクロ群５",null,null,"実行マクロ群６"]
[null,null,null,"呼び出しファイルのディレクトリ","ファイル名","実行マクロ名","呼び出しファイルのディレクトリ","ファイル名","実行マクロ名","呼び出しファイルのディレクトリ","ファイル名","実行マクロ名","呼び出しファイルのディレクトリ","ファイル名","実行マクロ名","呼び出しファイルのディレクトリ","ファイル名","実行マクロ名","呼び出しファイルのディレクトリ","ファイル名","実行マクロ名"]
[null,null,1]
[null,null,2]
[null,null,3]
[null,null,4]
[null,null,5]

{"sheet":"CV-DataBaseスーパー呼び出し印刷命令リスト58","index":62,"n_rows":20,"n_cols":21,"rows_kept":20,"cut":false,"hidden":false,"merged":[[13,12,13,14],[13,15,13,17],[13,18,13,20],[13,2,14,2],[13,3,13,5],[13,6,13,8],[13,9,13,11]]}
[]
[]
[null,null,null,{"$f":"シート名設定!D67","v":"CV-DataBaseスーパー呼び出し印刷命令リスト58"}]
[null,null,"1．ループ呼び出し設定"]
[]
[null,null,null,"設定項目","設定値"]
[null,null,null,"呼び出しファイル，実行マクロ先頭行番号"]
[null,null,null,"呼び出しファイル，実行マクロ最終行番号"]
[null,null,null,"呼び出しファイル，実行マクロ先頭群番号"]
[null,null,null,"呼び出しファイル，実行マクロ最終群番号"]
[]
[null,null,"２．CV-DataBaseスーパー呼び出し印刷命令リスト設定"]
[]
[null,null,"行番号","実行マクロ群1",null,null,"実行マクロ群２",null,null,"実行マクロ群３",null,null,"実行マクロ群４",null,null,"実行マクロ群５",null,null,"実行マクロ群６"]
[null,null,null,"呼び出しファイルのディレクトリ","ファイル名","実行マクロ名","呼び出しファイルのディレクトリ","ファイル名","実行マクロ名","呼び出しファイルのディレクトリ","ファイル名","実行マクロ名","呼び出しファイルのディレクトリ","ファイル名","実行マクロ名","呼び出しファイルのディレクトリ","ファイル名","実行マクロ名","呼び出しファイルのディレクトリ","ファイル名","実行マクロ名"]
[null,null,1]
[null,null,2]
[null,null,3]
[null,null,4]
[null,null,5]

{"sheet":"CV-DataBaseスーパー呼び出し印刷命令リスト59","index":63,"n_rows":20,"n_cols":21,"rows_kept":20,"cut":false,"hidden":false,"merged":[[13,12,13,14],[13,15,13,17],[13,18,13,20],[13,2,14,2],[13,3,13,5],[13,6,13,8],[13,9,13,11]]}
[]
[]
[null,null,null,{"$f":"シート名設定!D68","v":"CV-DataBaseスーパー呼び出し印刷命令リスト59"}]
[null,null,"1．ループ呼び出し設定"]
[]
[null,null,null,"設定項目","設定値"]
[null,null,null,"呼び出しファイル，実行マクロ先頭行番号"]
[null,null,null,"呼び出しファイル，実行マクロ最終行番号"]
[null,null,null,"呼び出しファイル，実行マクロ先頭群番号"]
[null,null,null,"呼び出しファイル，実行マクロ最終群番号"]
[]
[null,null,"２．CV-DataBaseスーパー呼び出し印刷命令リスト設定"]
[]
[null,null,"行番号","実行マクロ群1",null,null,"実行マクロ群２",null,null,"実行マクロ群３",null,null,"実行マクロ群４",null,null,"実行マクロ群５",null,null,"実行マクロ群６"]
[null,null,null,"呼び出しファイルのディレクトリ","ファイル名","実行マクロ名","呼び出しファイルのディレクトリ","ファイル名","実行マクロ名","呼び出しファイルのディレクトリ","ファイル名","実行マクロ名","呼び出しファイルのディレクトリ","ファイル名","実行マクロ名","呼び出しファイルのディレクトリ","ファイル名","実行マクロ名","呼び出しファイルのディレクトリ","ファイル名","実行マクロ名"]
[null,null,1]
[null,null,2]
[null,null,3]
[null,null,4]
[null,null,5]

{"sheet":"CV-DataBaseスーパー呼び出し印刷命令リスト60","index":64,"n_rows":20,"n_cols":21,"rows_kept":20,"cut":false,"hidden":false,"merged":[[13,12,13,14],[13,15,13,17],[13,18,13,20],[13,2,14,2],[13,3,13,5],[13,6,13,8],[13,9,13,11]]}
[]
[]
[null,null,null,{"$f":"シート名設定!D69","v":"CV-DataBaseスーパー呼び出し印刷命令リスト60"}]
[null,null,"1．ループ呼び出し設定"]
[]
[null,null,null,"設定項目","設定値"]
[null,null,null,"呼び出しファイル，実行マクロ先頭行番号"]
[null,null,null,"呼び出しファイル，実行マクロ最終行番号"]
[null,null,null,"呼び出しファイル，実行マクロ先頭群番号"]
[null,null,null,"呼び出しファイル，実行マクロ最終群番号"]
[]
[null,null,"２．CV-DataBaseスーパー呼び出し印刷命令リスト設定"]
[]
[null,null,"行番号","実行マクロ群1",null,null,"実行マクロ群２",null,null,"実行マクロ群３",null,null,"実行マクロ群４",null,null,"実行マクロ群５",null,null,"実行マクロ群６"]
[null,null,null,"呼び出しファイルのディレクトリ","ファイル名","実行マクロ名","呼び出しファイルのディレクトリ","ファイル名","実行マクロ名","呼び出しファイルのディレクトリ","ファイル名","実行マクロ名","呼び出しファイルのディレクトリ","ファイル名","実行マクロ名","呼び出しファイルのディレクトリ","ファイル名","実行マクロ名","呼び出しファイルのディレクトリ","ファイル名","実行マクロ名"]
[null,null,1]
[null,null,2]
[null,null,3]
[null,null,4]
[null,null,5]

{"sheet":"CV-DataBaseスーパー呼び出し印刷命令リスト61","index":65,"n_rows":20,"n_cols":21,"rows_kept":20,"cut":false,"hidden":false,"merged":[[13,12,13,14],[13,15,13,17],[13,18,13,20],[13,2,14,2],[13,3,13,5],[13,6,13,8],[13,9,13,11]]}
[]
[]
[null,null,null,{"$f":"シート名設定!D70","v":"CV-DataBaseスーパー呼び出し印刷命令リスト61"}]
[null,null,"1．ループ呼び出し設定"]
[]
[null,null,null,"設定項目","設定値"]
[null,null,null,"呼び出しファイル，実行マクロ先頭行番号"]
[null,null,null,"呼び出しファイル，実行マクロ最終行番号"]
[null,null,null,"呼び出しファイル，実行マクロ先頭群番号"]
[null,null,null,"呼び出しファイル，実行マクロ最終群番号"]
[]
[null,null,"２．CV-DataBaseスーパー呼び出し印刷命令リスト設定"]
[]
[null,null,"行番号","実行マクロ群1",null,null,"実行マクロ群２",null,null,"実行マクロ群３",null,null,"実行マクロ群４",null,null,"実行マクロ群５",null,null,"実行マクロ群６"]
[null,null,null,"呼び出しファイルのディレクトリ","ファイル名","実行マクロ名","呼び出しファイルのディレクトリ","ファイル名","実行マクロ名","呼び出しファイルのディレクトリ","ファイル名","実行マクロ名","呼び出しファイルのディレクトリ","ファイル名","実行マクロ名","呼び出しファイルのディレクトリ","ファイル名","実行マクロ名","呼び出しファイルのディレクトリ","ファイル名","実行マクロ名"]
[null,null,1]
[null,null,2]
[null,null,3]
[null,null,4]
[null,null,5]

{"sheet":"CV-DataBaseスーパー呼び出し印刷命令リスト62","index":66,"n_rows":20,"n_cols":21,"rows_kept":20,"cut":false,"hidden":false,"merged":[[13,12,13,14],[13,15,13,17],[13,18,13,20],[13,2,14,2],[13,3,13,5],[13,6,13,8],[13,9,13,11]]}
[]
[]
[null,null,null,{"$f":"シート名設定!D71","v":"CV-DataBaseスーパー呼び出し印刷命令リスト62"}]
[null,null,"1．ループ呼び出し設定"]
[]
[null,null,null,"設定項目","設定値"]
[null,null,null,"呼び出しファイル，実行マクロ先頭行番号"]
[null,null,null,"呼び出しファイル，実行マクロ最終行番号"]
[null,null,null,"呼び出しファイル，実行マクロ先頭群番号"]
[null,null,null,"呼び出しファイル，実行マクロ最終群番号"]
[]
[null,null,"２．CV-DataBaseスーパー呼び出し印刷命令リスト設定"]
[]
[null,null,"行番号","実行マクロ群1",null,null,"実行マクロ群２",null,null,"実行マクロ群３",null,null,"実行マクロ群４",null,null,"実行マクロ群５",null,null,"実行マクロ群６"]
[null,null,null,"呼び出しファイルのディレクトリ","ファイル名","実行マクロ名","呼び出しファイルのディレクトリ","ファイル名","実行マクロ名","呼び出しファイルのディレクトリ","ファイル名","実行マクロ名","呼び出しファイルのディレクトリ","ファイル名","実行マクロ名","呼び出しファイルのディレクトリ","ファイル名","実行マクロ名","呼び出しファイルのディレクトリ","ファイル名","実行マクロ名"]
[null,null,1]
[null,null,2]
[null,null,3]
[null,null,4]
[null,null,5]

{"sheet":"CV-DataBaseスーパー呼び出し印刷命令リスト63","index":67,"n_rows":20,"n_cols":21,"rows_kept":20,"cut":false,"hidden":false,"merged":[[13,12,13,14],[13,15,13,17],[13,18,13,20],[13,2,14,2],[13,3,13,5],[13,6,13,8],[13,9,13,11]]}
[]
[]
[null,null,null,{"$f":"シート名設定!D72","v":"CV-DataBaseスーパー呼び出し印刷命令リスト63"}]
[null,null,"1．ループ呼び出し設定"]
[]
[null,null,null,"設定項目","設定値"]
[null,null,null,"呼び出しファイル，実行マクロ先頭行番号"]
[null,null,null,"呼び出しファイル，実行マクロ最終行番号"]
[null,null,null,"呼び出しファイル，実行マクロ先頭群番号"]
[null,null,null,"呼び出しファイル，実行マクロ最終群番号"]
[]
[null,null,"２．CV-DataBaseスーパー呼び出し印刷命令リスト設定"]
[]
[null,null,"行番号","実行マクロ群1",null,null,"実行マクロ群２",null,null,"実行マクロ群３",null,null,"実行マクロ群４",null,null,"実行マクロ群５",null,null,"実行マクロ群６"]
[null,null,null,"呼び出しファイルのディレクトリ","ファイル名","実行マクロ名","呼び出しファイルのディレクトリ","ファイル名","実行マクロ名","呼び出しファイルのディレクトリ","ファイル名","実行マクロ名","呼び出しファイルのディレクトリ","ファイル名","実行マクロ名","呼び出しファイルのディレクトリ","ファイル名","実行マクロ名","呼び出しファイルのディレクトリ","ファイル名","実行マクロ名"]
[null,null,1]
[null,null,2]
[null,null,3]
[null,null,4]
[null,null,5]

{"sheet":"CV-DataBaseスーパー呼び出し印刷命令リスト64","index":68,"n_rows":20,"n_cols":21,"rows_kept":20,"cut":false,"hidden":false,"merged":[[13,12,13,14],[13,15,13,17],[13,18,13,20],[13,2,14,2],[13,3,13,5],[13,6,13,8],[13,9,13,11]]}
[]
[]
[null,null,null,{"$f":"シート名設定!D73","v":"CV-DataBaseスーパー呼び出し印刷命令リスト64"}]
[null,null,"1．ループ呼び出し設定"]
[]
[null,null,null,"設定項目","設定値"]
[null,null,null,"呼び出しファイル，実行マクロ先頭行番号"]
[null,null,null,"呼び出しファイル，実行マクロ最終行番号"]
[null,null,null,"呼び出しファイル，実行マクロ先頭群番号"]
[null,null,null,"呼び出しファイル，実行マクロ最終群番号"]
[]
[null,null,"２．CV-DataBaseスーパー呼び出し印刷命令リスト設定"]
[]
[null,null,"行番号","実行マクロ群1",null,null,"実行マクロ群２",null,null,"実行マクロ群３",null,null,"実行マクロ群４",null,null,"実行マクロ群５",null,null,"実行マクロ群６"]
[null,null,null,"呼び出しファイルのディレクトリ","ファイル名","実行マクロ名","呼び出しファイルのディレクトリ","ファイル名","実行マクロ名","呼び出しファイルのディレクトリ","ファイル名","実行マクロ名","呼び出しファイルのディレクトリ","ファイル名","実行マクロ名","呼び出しファイルのディレクトリ","ファイル名","実行マクロ名","呼び出しファイルのディレクトリ","ファイル名","実行マクロ名"]
[null,null,1]
[null,null,2]
[null,null,3]
[null,null,4]
[null,null,5]

{"sheet":"CV-DataBaseスーパー呼び出し印刷命令リスト65","index":69,"n_rows":20,"n_cols":21,"rows_kept":20,"cut":false,"hidden":false,"merged":[[13,12,13,14],[13,15,13,17],[13,18,13,20],[13,2,14,2],[13,3,13,5],[13,6,13,8],[13,9,13,11]]}
[]
[]
[null,null,null,{"$f":"シート名設定!D74","v":"CV-DataBaseスーパー呼び出し印刷命令リスト65"}]
[null,null,"1．ループ呼び出し設定"]
[]
[null,null,null,"設定項目","設定値"]
[null,null,null,"呼び出しファイル，実行マクロ先頭行番号"]
[null,null,null,"呼び出しファイル，実行マクロ最終行番号"]
[null,null,null,"呼び出しファイル，実行マクロ先頭群番号"]
[null,null,null,"呼び出しファイル，実行マクロ最終群番号"]
[]
[null,null,"２．CV-DataBaseスーパー呼び出し印刷命令リスト設定"]
[]
[null,null,"行番号","実行マクロ群1",null,null,"実行マクロ群２",null,null,"実行マクロ群３",null,null,"実行マクロ群４",null,null,"実行マクロ群５",null,null,"実行マクロ群６"]
[null,null,null,"呼び出しファイルのディレクトリ","ファイル名","実行マクロ名","呼び出しファイルのディレクトリ","ファイル名","実行マクロ名","呼び出しファイルのディレクトリ","ファイル名","実行マクロ名","呼び出しファイルのディレクトリ","ファイル名","実行マクロ名","呼び出しファイルのディレクトリ","ファイル名","実行マクロ名","呼び出しファイルのディレクトリ","ファイル名","実行マクロ名"]
[null,null,1]
[null,null,2]
[null,null,3]
[null,null,4]
[null,null,5]

{"sheet":"CV-DataBaseスーパー呼び出し印刷命令リスト66","index":70,"n_rows":20,"n_cols":21,"rows_kept":20,"cut":false,"hidden":false,"merged":[[13,12,13,14],[13,15,13,17],[13,18,13,20],[13,2,14,2],[13,3,13,5],[13,6,13,8],[13,9,13,11]]}
[]
[]
[null,null,null,{"$f":"シート名設定!D75","v":"CV-DataBaseスーパー呼び出し印刷命令リスト66"}]
[null,null,"1．ループ呼び出し設定"]
[]
[null,null,null,"設定項目","設定値"]
[null,null,null,"呼び出しファイル，実行マクロ先頭行番号"]
[null,null,null,"呼び出しファイル，実行マクロ最終行番号"]
[null,null,null,"呼び出しファイル，実行マクロ先頭群番号"]
[null,null,null,"呼び出しファイル，実行マクロ最終群番号"]
[]
[null,null,"２．CV-DataBaseスーパー呼び出し印刷命令リスト設定"]
[]
[null,null,"行番号","実行マクロ群1",null,null,"実行マクロ群２",null,null,"実行マクロ群３",null,null,"実行マクロ群４",null,null,"実行マクロ群５",null,null,"実行マクロ群６"]
[null,null,null,"呼び出しファイルのディレクトリ","ファイル名","実行マクロ名","呼び出しファイルのディレクトリ","ファイル名","実行マクロ名","呼び出しファイルのディレクトリ","ファイル名","実行マクロ名","呼び出しファイルのディレクトリ","ファイル名","実行マクロ名","呼び出しファイルのディレクトリ","ファイル名","実行マクロ名","呼び出しファイルのディレクトリ","ファイル名","実行マクロ名"]
[null,null,1]
[null,null,2]
[null,null,3]
[null,null,4]
[null,null,5]

{"sheet":"CV-DataBaseスーパー呼び出し印刷命令リスト67","index":71,"n_rows":20,"n_cols":21,"rows_kept":20,"cut":false,"hidden":false,"merged":[[13,12,13,14],[13,15,13,17],[13,18,13,20],[13,2,14,2],[13,3,13,5],[13,6,13,8],[13,9,13,11]]}
[]
[]
[null,null,null,{"$f":"シート名設定!D76","v":"CV-DataBaseスーパー呼び出し印刷命令リスト67"}]
[null,null,"1．ループ呼び出し設定"]
[]
[null,null,null,"設定項目","設定値"]
[null,null,null,"呼び出しファイル，実行マクロ先頭行番号"]
[null,null,null,"呼び出しファイル，実行マクロ最終行番号"]
[null,null,null,"呼び出しファイル，実行マクロ先頭群番号"]
[null,null,null,"呼び出しファイル，実行マクロ最終群番号"]
[]
[null,null,"２．CV-DataBaseスーパー呼び出し印刷命令リスト設定"]
[]
[null,null,"行番号","実行マクロ群1",null,null,"実行マクロ群２",null,null,"実行マクロ群３",null,null,"実行マクロ群４",null,null,"実行マクロ群５",null,null,"実行マクロ群６"]
[null,null,null,"呼び出しファイルのディレクトリ","ファイル名","実行マクロ名","呼び出しファイルのディレクトリ","ファイル名","実行マクロ名","呼び出しファイルのディレクトリ","ファイル名","実行マクロ名","呼び出しファイルのディレクトリ","ファイル名","実行マクロ名","呼び出しファイルのディレクトリ","ファイル名","実行マクロ名","呼び出しファイルのディレクトリ","ファイル名","実行マクロ名"]
[null,null,1]
[null,null,2]
[null,null,3]
[null,null,4]
[null,null,5]

{"sheet":"CV-DataBaseスーパー呼び出し印刷命令リスト68","index":72,"n_rows":20,"n_cols":21,"rows_kept":20,"cut":false,"hidden":false,"merged":[[13,12,13,14],[13,15,13,17],[13,18,13,20],[13,2,14,2],[13,3,13,5],[13,6,13,8],[13,9,13,11]]}
[]
[]
[null,null,null,{"$f":"シート名設定!D77","v":"CV-DataBaseスーパー呼び出し印刷命令リスト68"}]
[null,null,"1．ループ呼び出し設定"]
[]
[null,null,null,"設定項目","設定値"]
[null,null,null,"呼び出しファイル，実行マクロ先頭行番号"]
[null,null,null,"呼び出しファイル，実行マクロ最終行番号"]
[null,null,null,"呼び出しファイル，実行マクロ先頭群番号"]
[null,null,null,"呼び出しファイル，実行マクロ最終群番号"]
[]
[null,null,"２．CV-DataBaseスーパー呼び出し印刷命令リスト設定"]
[]
[null,null,"行番号","実行マクロ群1",null,null,"実行マクロ群２",null,null,"実行マクロ群３",null,null,"実行マクロ群４",null,null,"実行マクロ群５",null,null,"実行マクロ群６"]
[null,null,null,"呼び出しファイルのディレクトリ","ファイル名","実行マクロ名","呼び出しファイルのディレクトリ","ファイル名","実行マクロ名","呼び出しファイルのディレクトリ","ファイル名","実行マクロ名","呼び出しファイルのディレクトリ","ファイル名","実行マクロ名","呼び出しファイルのディレクトリ","ファイル名","実行マクロ名","呼び出しファイルのディレクトリ","ファイル名","実行マクロ名"]
[null,null,1]
[null,null,2]
[null,null,3]
[null,null,4]
[null,null,5]

{"sheet":"CV-DataBaseスーパー呼び出し印刷命令リスト69","index":73,"n_rows":20,"n_cols":21,"rows_kept":20,"cut":false,"hidden":false,"merged":[[13,12,13,14],[13,15,13,17],[13,18,13,20],[13,2,14,2],[13,3,13,5],[13,6,13,8],[13,9,13,11]]}
[]
[]
[null,null,null,{"$f":"シート名設定!D78","v":"CV-DataBaseスーパー呼び出し印刷命令リスト69"}]
[null,null,"1．ループ呼び出し設定"]
[]
[null,null,null,"設定項目","設定値"]
[null,null,null,"呼び出しファイル，実行マクロ先頭行番号"]
[null,null,null,"呼び出しファイル，実行マクロ最終行番号"]
[null,null,null,"呼び出しファイル，実行マクロ先頭群番号"]
[null,null,null,"呼び出しファイル，実行マクロ最終群番号"]
[]
[null,null,"２．CV-DataBaseスーパー呼び出し印刷命令リスト設定"]
[]
[null,null,"行番号","実行マクロ群1",null,null,"実行マクロ群２",null,null,"実行マクロ群３",null,null,"実行マクロ群４",null,null,"実行マクロ群５",null,null,"実行マクロ群６"]
[null,null,null,"呼び出しファイルのディレクトリ","ファイル名","実行マクロ名","呼び出しファイルのディレクトリ","ファイル名","実行マクロ名","呼び出しファイルのディレクトリ","ファイル名","実行マクロ名","呼び出しファイルのディレクトリ","ファイル名","実行マクロ名","呼び出しファイルのディレクトリ","ファイル名","実行マクロ名","呼び出しファイルのディレクトリ","ファイル名","実行マクロ名"]
[null,null,1]
[null,null,2]
[null,null,3]
[null,null,4]
[null,null,5]

{"sheet":"CV-DataBaseスーパー呼び出し印刷命令リスト70","index":74,"n_rows":20,"n_cols":21,"rows_kept":20,"cut":false,"hidden":false,"merged":[[13,12,13,14],[13,15,13,17],[13,18,13,20],[13,2,14,2],[13,3,13,5],[13,6,13,8],[13,9,13,11]]}
[]
[]
[null,null,null,{"$f":"シート名設定!D79","v":"CV-DataBaseスーパー呼び出し印刷命令リスト70"}]
[null,null,"1．ループ呼び出し設定"]
[]
[null,null,null,"設定項目","設定値"]
[null,null,null,"呼び出しファイル，実行マクロ先頭行番号"]
[null,null,null,"呼び出しファイル，実行マクロ最終行番号"]
[null,null,null,"呼び出しファイル，実行マクロ先頭群番号"]
[null,null,null,"呼び出しファイル，実行マクロ最終群番号"]
[]
[null,null,"２．CV-DataBaseスーパー呼び出し印刷命令リスト設定"]
[]
[null,null,"行番号","実行マクロ群1",null,null,"実行マクロ群２",null,null,"実行マクロ群３",null,null,"実行マクロ群４",null,null,"実行マクロ群５",null,null,"実行マクロ群６"]
[null,null,null,"呼び出しファイルのディレクトリ","ファイル名","実行マクロ名","呼び出しファイルのディレクトリ","ファイル名","実行マクロ名","呼び出しファイルのディレクトリ","ファイル名","実行マクロ名","呼び出しファイルのディレクトリ","ファイル名","実行マクロ名","呼び出しファイルのディレクトリ","ファイル名","実行マクロ名","呼び出しファイルのディレクトリ","ファイル名","実行マクロ名"]
[null,null,1]
[null,null,2]
[null,null,3]
[null,null,4]
[null,null,5]

{"sheet":"CV-DataBaseスーパー呼び出し印刷命令リスト71","index":75,"n_rows":20,"n_cols":21,"rows_kept":20,"cut":false,"hidden":false,"merged":[[13,12,13,14],[13,15,13,17],[13,18,13,20],[13,2,14,2],[13,3,13,5],[13,6,13,8],[13,9,13,11]]}
[]
[]
[null,null,null,{"$f":"シート名設定!D80","v":"CV-DataBaseスーパー呼び出し印刷命令リスト71"}]
[null,null,"1．ループ呼び出し設定"]
[]
[null,null,null,"設定項目","設定値"]
[null,null,null,"呼び出しファイル，実行マクロ先頭行番号"]
[null,null,null,"呼び出しファイル，実行マクロ最終行番号"]
[null,null,null,"呼び出しファイル，実行マクロ先頭群番号"]
[null,null,null,"呼び出しファイル，実行マクロ最終群番号"]
[]
[null,null,"２．CV-DataBaseスーパー呼び出し印刷命令リスト設定"]
[]
[null,null,"行番号","実行マクロ群1",null,null,"実行マクロ群２",null,null,"実行マクロ群３",null,null,"実行マクロ群４",null,null,"実行マクロ群５",null,null,"実行マクロ群６"]
[null,null,null,"呼び出しファイルのディレクトリ","ファイル名","実行マクロ名","呼び出しファイルのディレクトリ","ファイル名","実行マクロ名","呼び出しファイルのディレクトリ","ファイル名","実行マクロ名","呼び出しファイルのディレクトリ","ファイル名","実行マクロ名","呼び出しファイルのディレクトリ","ファイル名","実行マクロ名","呼び出しファイルのディレクトリ","ファイル名","実行マクロ名"]
[null,null,1]
[null,null,2]
[null,null,3]
[null,null,4]
[null,null,5]

{"sheet":"CV-DataBaseスーパー呼び出し印刷命令リスト72","index":76,"n_rows":20,"n_cols":21,"rows_kept":20,"cut":false,"hidden":false,"merged":[[13,12,13,14],[13,15,13,17],[13,18,13,20],[13,2,14,2],[13,3,13,5],[13,6,13,8],[13,9,13,11]]}
[]
[]
[null,null,null,{"$f":"シート名設定!D81","v":"CV-DataBaseスーパー呼び出し印刷命令リスト72"}]
[null,null,"1．ループ呼び出し設定"]
[]
[null,null,null,"設定項目","設定値"]
[null,null,null,"呼び出しファイル，実行マクロ先頭行番号"]
[null,null,null,"呼び出しファイル，実行マクロ最終行番号"]
[null,null,null,"呼び出しファイル，実行マクロ先頭群番号"]
[null,null,null,"呼び出しファイル，実行マクロ最終群番号"]
[]
[null,null,"２．CV-DataBaseスーパー呼び出し印刷命令リスト設定"]
[]
[null,null,"行番号","実行マクロ群1",null,null,"実行マクロ群２",null,null,"実行マクロ群３",null,null,"実行マクロ群４",null,null,"実行マクロ群５",null,null,"実行マクロ群６"]
[null,null,null,"呼び出しファイルのディレクトリ","ファイル名","実行マクロ名","呼び出しファイルのディレクトリ","ファイル名","実行マクロ名","呼び出しファイルのディレクトリ","ファイル名","実行マクロ名","呼び出しファイルのディレクトリ","ファイル名","実行マクロ名","呼び出しファイルのディレクトリ","ファイル名","実行マクロ名","呼び出しファイルのディレクトリ","ファイル名","実行マクロ名"]
[null,null,1]
[null,null,2]
[null,null,3]
[null,null,4]
[null,null,5]

{"sheet":"CV-DataBaseスーパー呼び出し印刷命令リスト73","index":77,"n_rows":20,"n_cols":21,"rows_kept":20,"cut":false,"hidden":false,"merged":[[13,12,13,14],[13,15,13,17],[13,18,13,20],[13,2,14,2],[13,3,13,5],[13,6,13,8],[13,9,13,11]]}
[]
[]
[null,null,null,{"$f":"シート名設定!D82","v":"CV-DataBaseスーパー呼び出し印刷命令リスト73"}]
[null,null,"1．ループ呼び出し設定"]
[]
[null,null,null,"設定項目","設定値"]
[null,null,null,"呼び出しファイル，実行マクロ先頭行番号"]
[null,null,null,"呼び出しファイル，実行マクロ最終行番号"]
[null,null,null,"呼び出しファイル，実行マクロ先頭群番号"]
[null,null,null,"呼び出しファイル，実行マクロ最終群番号"]
[]
[null,null,"２．CV-DataBaseスーパー呼び出し印刷命令リスト設定"]
[]
[null,null,"行番号","実行マクロ群1",null,null,"実行マクロ群２",null,null,"実行マクロ群３",null,null,"実行マクロ群４",null,null,"実行マクロ群５",null,null,"実行マクロ群６"]
[null,null,null,"呼び出しファイルのディレクトリ","ファイル名","実行マクロ名","呼び出しファイルのディレクトリ","ファイル名","実行マクロ名","呼び出しファイルのディレクトリ","ファイル名","実行マクロ名","呼び出しファイルのディレクトリ","ファイル名","実行マクロ名","呼び出しファイルのディレクトリ","ファイル名","実行マクロ名","呼び出しファイルのディレクトリ","ファイル名","実行マクロ名"]
[null,null,1]
[null,null,2]
[null,null,3]
[null,null,4]
[null,null,5]

{"sheet":"CV-DataBaseスーパー呼び出し印刷命令リスト74","index":78,"n_rows":20,"n_cols":21,"rows_kept":20,"cut":false,"hidden":false,"merged":[[13,12,13,14],[13,15,13,17],[13,18,13,20],[13,2,14,2],[13,3,13,5],[13,6,13,8],[13,9,13,11]]}
[]
[]
[null,null,null,{"$f":"シート名設定!D83","v":"CV-DataBaseスーパー呼び出し印刷命令リスト74"}]
[null,null,"1．ループ呼び出し設定"]
[]
[null,null,null,"設定項目","設定値"]
[null,null,null,"呼び出しファイル，実行マクロ先頭行番号"]
[null,null,null,"呼び出しファイル，実行マクロ最終行番号"]
[null,null,null,"呼び出しファイル，実行マクロ先頭群番号"]
[null,null,null,"呼び出しファイル，実行マクロ最終群番号"]
[]
[null,null,"２．CV-DataBaseスーパー呼び出し印刷命令リスト設定"]
[]
[null,null,"行番号","実行マクロ群1",null,null,"実行マクロ群２",null,null,"実行マクロ群３",null,null,"実行マクロ群４",null,null,"実行マクロ群５",null,null,"実行マクロ群６"]
[null,null,null,"呼び出しファイルのディレクトリ","ファイル名","実行マクロ名","呼び出しファイルのディレクトリ","ファイル名","実行マクロ名","呼び出しファイルのディレクトリ","ファイル名","実行マクロ名","呼び出しファイルのディレクトリ","ファイル名","実行マクロ名","呼び出しファイルのディレクトリ","ファイル名","実行マクロ名","呼び出しファイルのディレクトリ","ファイル名","実行マクロ名"]
[null,null,1]
[null,null,2]
[null,null,3]
[null,null,4]
[null,null,5]

{"sheet":"CV-DataBaseスーパー呼び出し印刷命令リスト75","index":79,"n_rows":20,"n_cols":21,"rows_kept":20,"cut":false,"hidden":false,"merged":[[13,12,13,14],[13,15,13,17],[13,18,13,20],[13,2,14,2],[13,3,13,5],[13,6,13,8],[13,9,13,11]]}
[]
[]
[null,null,null,{"$f":"シート名設定!D84","v":"CV-DataBaseスーパー呼び出し印刷命令リスト75"}]
[null,null,"1．ループ呼び出し設定"]
[]
[null,null,null,"設定項目","設定値"]
[null,null,null,"呼び出しファイル，実行マクロ先頭行番号"]
[null,null,null,"呼び出しファイル，実行マクロ最終行番号"]
[null,null,null,"呼び出しファイル，実行マクロ先頭群番号"]
[null,null,null,"呼び出しファイル，実行マクロ最終群番号"]
[]
[null,null,"２．CV-DataBaseスーパー呼び出し印刷命令リスト設定"]
[]
[null,null,"行番号","実行マクロ群1",null,null,"実行マクロ群２",null,null,"実行マクロ群３",null,null,"実行マクロ群４",null,null,"実行マクロ群５",null,null,"実行マクロ群６"]
[null,null,null,"呼び出しファイルのディレクトリ","ファイル名","実行マクロ名","呼び出しファイルのディレクトリ","ファイル名","実行マクロ名","呼び出しファイルのディレクトリ","ファイル名","実行マクロ名","呼び出しファイルのディレクトリ","ファイル名","実行マクロ名","呼び出しファイルのディレクトリ","ファイル名","実行マクロ名","呼び出しファイルのディレクトリ","ファイル名","実行マクロ名"]
[null,null,1]
[null,null,2]
[null,null,3]
[null,null,4]
[null,null,5]

{"sheet":"CV-DataBaseスーパー呼び出し印刷命令リスト76","index":80,"n_rows":20,"n_cols":21,"rows_kept":20,"cut":false,"hidden":false,"merged":[[13,12,13,14],[13,15,13,17],[13,18,13,20],[13,2,14,2],[13,3,13,5],[13,6,13,8],[13,9,13,11]]}
[]
[]
[null,null,null,{"$f":"シート名設定!D85","v":"CV-DataBaseスーパー呼び出し印刷命令リスト76"}]
[null,null,"1．ループ呼び出し設定"]
[]
[null,null,null,"設定項目","設定値"]
[null,null,null,"呼び出しファイル，実行マクロ先頭行番号"]
[null,null,null,"呼び出しファイル，実行マクロ最終行番号"]
[null,null,null,"呼び出しファイル，実行マクロ先頭群番号"]
[null,null,null,"呼び出しファイル，実行マクロ最終群番号"]
[]
[null,null,"２．CV-DataBaseスーパー呼び出し印刷命令リスト設定"]
[]
[null,null,"行番号","実行マクロ群1",null,null,"実行マクロ群２",null,null,"実行マクロ群３",null,null,"実行マクロ群４",null,null,"実行マクロ群５",null,null,"実行マクロ群６"]
[null,null,null,"呼び出しファイルのディレクトリ","ファイル名","実行マクロ名","呼び出しファイルのディレクトリ","ファイル名","実行マクロ名","呼び出しファイルのディレクトリ","ファイル名","実行マクロ名","呼び出しファイルのディレクトリ","ファイル名","実行マクロ名","呼び出しファイルのディレクトリ","ファイル名","実行マクロ名","呼び出しファイルのディレクトリ","ファイル名","実行マクロ名"]
[null,null,1]
[null,null,2]
[null,null,3]
[null,null,4]
[null,null,5]

{"sheet":"CV-DataBaseスーパー呼び出し印刷命令リスト77","index":81,"n_rows":20,"n_cols":21,"rows_kept":20,"cut":false,"hidden":false,"merged":[[13,12,13,14],[13,15,13,17],[13,18,13,20],[13,2,14,2],[13,3,13,5],[13,6,13,8],[13,9,13,11]]}
[]
[]
[null,null,null,{"$f":"シート名設定!D86","v":"CV-DataBaseスーパー呼び出し印刷命令リスト77"}]
[null,null,"1．ループ呼び出し設定"]
[]
[null,null,null,"設定項目","設定値"]
[null,null,null,"呼び出しファイル，実行マクロ先頭行番号"]
[null,null,null,"呼び出しファイル，実行マクロ最終行番号"]
[null,null,null,"呼び出しファイル，実行マクロ先頭群番号"]
[null,null,null,"呼び出しファイル，実行マクロ最終群番号"]
[]
[null,null,"２．CV-DataBaseスーパー呼び出し印刷命令リスト設定"]
[]
[null,null,"行番号","実行マクロ群1",null,null,"実行マクロ群２",null,null,"実行マクロ群３",null,null,"実行マクロ群４",null,null,"実行マクロ群５",null,null,"実行マクロ群６"]
[null,null,null,"呼び出しファイルのディレクトリ","ファイル名","実行マクロ名","呼び出しファイルのディレクトリ","ファイル名","実行マクロ名","呼び出しファイルのディレクトリ","ファイル名","実行マクロ名","呼び出しファイルのディレクトリ","ファイル名","実行マクロ名","呼び出しファイルのディレクトリ","ファイル名","実行マクロ名","呼び出しファイルのディレクトリ","ファイル名","実行マクロ名"]
[null,null,1]
[null,null,2]
[null,null,3]
[null,null,4]
[null,null,5]

{"sheet":"CV-DataBaseスーパー呼び出し印刷命令リスト78","index":82,"n_rows":20,"n_cols":21,"rows_kept":20,"cut":false,"hidden":false,"merged":[[13,12,13,14],[13,15,13,17],[13,18,13,20],[13,2,14,2],[13,3,13,5],[13,6,13,8],[13,9,13,11]]}
[]
[]
[null,null,null,{"$f":"シート名設定!D87","v":"CV-DataBaseスーパー呼び出し印刷命令リスト78"}]
[null,null,"1．ループ呼び出し設定"]
[]
[null,null,null,"設定項目","設定値"]
[null,null,null,"呼び出しファイル，実行マクロ先頭行番号"]
[null,null,null,"呼び出しファイル，実行マクロ最終行番号"]
[null,null,null,"呼び出しファイル，実行マクロ先頭群番号"]
[null,null,null,"呼び出しファイル，実行マクロ最終群番号"]
[]
[null,null,"２．CV-DataBaseスーパー呼び出し印刷命令リスト設定"]
[]
[null,null,"行番号","実行マクロ群1",null,null,"実行マクロ群２",null,null,"実行マクロ群３",null,null,"実行マクロ群４",null,null,"実行マクロ群５",null,null,"実行マクロ群６"]
[null,null,null,"呼び出しファイルのディレクトリ","ファイル名","実行マクロ名","呼び出しファイルのディレクトリ","ファイル名","実行マクロ名","呼び出しファイルのディレクトリ","ファイル名","実行マクロ名","呼び出しファイルのディレクトリ","ファイル名","実行マクロ名","呼び出しファイルのディレクトリ","ファイル名","実行マクロ名","呼び出しファイルのディレクトリ","ファイル名","実行マクロ名"]
[null,null,1]
[null,null,2]
[null,null,3]
[null,null,4]
[null,null,5]

{"sheet":"CV-DataBaseスーパー呼び出し印刷命令リスト79","index":83,"n_rows":20,"n_cols":21,"rows_kept":20,"cut":false,"hidden":false,"merged":[[13,12,13,14],[13,15,13,17],[13,18,13,20],[13,2,14,2],[13,3,13,5],[13,6,13,8],[13,9,13,11]]}
[]
[]
[null,null,null,{"$f":"シート名設定!D88","v":"CV-DataBaseスーパー呼び出し印刷命令リスト79"}]
[null,null,"1．ループ呼び出し設定"]
[]
[null,null,null,"設定項目","設定値"]
[null,null,null,"呼び出しファイル，実行マクロ先頭行番号"]
[null,null,null,"呼び出しファイル，実行マクロ最終行番号"]
[null,null,null,"呼び出しファイル，実行マクロ先頭群番号"]
[null,null,null,"呼び出しファイル，実行マクロ最終群番号"]
[]
[null,null,"２．CV-DataBaseスーパー呼び出し印刷命令リスト設定"]
[]
[null,null,"行番号","実行マクロ群1",null,null,"実行マクロ群２",null,null,"実行マクロ群３",null,null,"実行マクロ群４",null,null,"実行マクロ群５",null,null,"実行マクロ群６"]
[null,null,null,"呼び出しファイルのディレクトリ","ファイル名","実行マクロ名","呼び出しファイルのディレクトリ","ファイル名","実行マクロ名","呼び出しファイルのディレクトリ","ファイル名","実行マクロ名","呼び出しファイルのディレクトリ","ファイル名","実行マクロ名","呼び出しファイルのディレクトリ","ファイル名","実行マクロ名","呼び出しファイルのディレクトリ","ファイル名","実行マクロ名"]
[null,null,1]
[null,null,2]
[null,null,3]
[null,null,4]
[null,null,5]

{"sheet":"CV-DataBaseスーパー呼び出し印刷命令リスト80","index":84,"n_rows":20,"n_cols":21,"rows_kept":20,"cut":false,"hidden":false,"merged":[[13,12,13,14],[13,15,13,17],[13,18,13,20],[13,2,14,2],[13,3,13,5],[13,6,13,8],[13,9,13,11]]}
[]
[]
[null,null,null,{"$f":"シート名設定!D89","v":"CV-DataBaseスーパー呼び出し印刷命令リスト80"}]
[null,null,"1．ループ呼び出し設定"]
[]
[null,null,null,"設定項目","設定値"]
[null,null,null,"呼び出しファイル，実行マクロ先頭行番号"]
[null,null,null,"呼び出しファイル，実行マクロ最終行番号"]
[null,null,null,"呼び出しファイル，実行マクロ先頭群番号"]
[null,null,null,"呼び出しファイル，実行マクロ最終群番号"]
[]
[null,null,"２．CV-DataBaseスーパー呼び出し印刷命令リスト設定"]
[]
[null,null,"行番号","実行マクロ群1",null,null,"実行マクロ群２",null,null,"実行マクロ群３",null,null,"実行マクロ群４",null,null,"実行マクロ群５",null,null,"実行マクロ群６"]
[null,null,null,"呼び出しファイルのディレクトリ","ファイル名","実行マクロ名","呼び出しファイルのディレクトリ","ファイル名","実行マクロ名","呼び出しファイルのディレクトリ","ファイル名","実行マクロ名","呼び出しファイルのディレクトリ","ファイル名","実行マクロ名","呼び出しファイルのディレクトリ","ファイル名","実行マクロ名","呼び出しファイルのディレクトリ","ファイル名","実行マクロ名"]
[null,null,1]
[null,null,2]
[null,null,3]
[null,null,4]
[null,null,5]

{"sheet":"CV-DataBaseスーパー呼び出し印刷命令リスト81","index":85,"n_rows":20,"n_cols":21,"rows_kept":20,"cut":false,"hidden":false,"merged":[[13,12,13,14],[13,15,13,17],[13,18,13,20],[13,2,14,2],[13,3,13,5],[13,6,13,8],[13,9,13,11]]}
[]
[]
[null,null,null,{"$f":"シート名設定!D90","v":"CV-DataBaseスーパー呼び出し印刷命令リスト81"}]
[null,null,"1．ループ呼び出し設定"]
[]
[null,null,null,"設定項目","設定値"]
[null,null,null,"呼び出しファイル，実行マクロ先頭行番号"]
[null,null,null,"呼び出しファイル，実行マクロ最終行番号"]
[null,null,null,"呼び出しファイル，実行マクロ先頭群番号"]
[null,null,null,"呼び出しファイル，実行マクロ最終群番号"]
[]
[null,null,"２．CV-DataBaseスーパー呼び出し印刷命令リスト設定"]
[]
[null,null,"行番号","実行マクロ群1",null,null,"実行マクロ群２",null,null,"実行マクロ群３",null,null,"実行マクロ群４",null,null,"実行マクロ群５",null,null,"実行マクロ群６"]
[null,null,null,"呼び出しファイルのディレクトリ","ファイル名","実行マクロ名","呼び出しファイルのディレクトリ","ファイル名","実行マクロ名","呼び出しファイルのディレクトリ","ファイル名","実行マクロ名","呼び出しファイルのディレクトリ","ファイル名","実行マクロ名","呼び出しファイルのディレクトリ","ファイル名","実行マクロ名","呼び出しファイルのディレクトリ","ファイル名","実行マクロ名"]
[null,null,1]
[null,null,2]
[null,null,3]
[null,null,4]
[null,null,5]

{"sheet":"CV-DataBaseスーパー呼び出し印刷命令リスト82","index":86,"n_rows":20,"n_cols":21,"rows_kept":20,"cut":false,"hidden":false,"merged":[[13,12,13,14],[13,15,13,17],[13,18,13,20],[13,2,14,2],[13,3,13,5],[13,6,13,8],[13,9,13,11]]}
[]
[]
[null,null,null,{"$f":"シート名設定!D91","v":"CV-DataBaseスーパー呼び出し印刷命令リスト82"}]
[null,null,"1．ループ呼び出し設定"]
[]
[null,null,null,"設定項目","設定値"]
[null,null,null,"呼び出しファイル，実行マクロ先頭行番号"]
[null,null,null,"呼び出しファイル，実行マクロ最終行番号"]
[null,null,null,"呼び出しファイル，実行マクロ先頭群番号"]
[null,null,null,"呼び出しファイル，実行マクロ最終群番号"]
[]
[null,null,"２．CV-DataBaseスーパー呼び出し印刷命令リスト設定"]
[]
[null,null,"行番号","実行マクロ群1",null,null,"実行マクロ群２",null,null,"実行マクロ群３",null,null,"実行マクロ群４",null,null,"実行マクロ群５",null,null,"実行マクロ群６"]
[null,null,null,"呼び出しファイルのディレクトリ","ファイル名","実行マクロ名","呼び出しファイルのディレクトリ","ファイル名","実行マクロ名","呼び出しファイルのディレクトリ","ファイル名","実行マクロ名","呼び出しファイルのディレクトリ","ファイル名","実行マクロ名","呼び出しファイルのディレクトリ","ファイル名","実行マクロ名","呼び出しファイルのディレクトリ","ファイル名","実行マクロ名"]
[null,null,1]
[null,null,2]
[null,null,3]
[null,null,4]
[null,null,5]

{"sheet":"CV-DataBaseスーパー呼び出し印刷命令リスト83","index":87,"n_rows":20,"n_cols":21,"rows_kept":20,"cut":false,"hidden":false,"merged":[[13,12,13,14],[13,15,13,17],[13,18,13,20],[13,2,14,2],[13,3,13,5],[13,6,13,8],[13,9,13,11]]}
[]
[]
[null,null,null,{"$f":"シート名設定!D92","v":"CV-DataBaseスーパー呼び出し印刷命令リスト83"}]
[null,null,"1．ループ呼び出し設定"]
[]
[null,null,null,"設定項目","設定値"]
[null,null,null,"呼び出しファイル，実行マクロ先頭行番号"]
[null,null,null,"呼び出しファイル，実行マクロ最終行番号"]
[null,null,null,"呼び出しファイル，実行マクロ先頭群番号"]
[null,null,null,"呼び出しファイル，実行マクロ最終群番号"]
[]
[null,null,"２．CV-DataBaseスーパー呼び出し印刷命令リスト設定"]
[]
[null,null,"行番号","実行マクロ群1",null,null,"実行マクロ群２",null,null,"実行マクロ群３",null,null,"実行マクロ群４",null,null,"実行マクロ群５",null,null,"実行マクロ群６"]
[null,null,null,"呼び出しファイルのディレクトリ","ファイル名","実行マクロ名","呼び出しファイルのディレクトリ","ファイル名","実行マクロ名","呼び出しファイルのディレクトリ","ファイル名","実行マクロ名","呼び出しファイルのディレクトリ","ファイル名","実行マクロ名","呼び出しファイルのディレクトリ","ファイル名","実行マクロ名","呼び出しファイルのディレクトリ","ファイル名","実行マクロ名"]
[null,null,1]
[null,null,2]
[null,null,3]
[null,null,4]
[null,null,5]

{"sheet":"CV-DataBaseスーパー呼び出し印刷命令リスト84","index":88,"n_rows":20,"n_cols":21,"rows_kept":20,"cut":false,"hidden":false,"merged":[[13,12,13,14],[13,15,13,17],[13,18,13,20],[13,2,14,2],[13,3,13,5],[13,6,13,8],[13,9,13,11]]}
[]
[]
[null,null,null,{"$f":"シート名設定!D93","v":"CV-DataBaseスーパー呼び出し印刷命令リスト84"}]
[null,null,"1．ループ呼び出し設定"]
[]
[null,null,null,"設定項目","設定値"]
[null,null,null,"呼び出しファイル，実行マクロ先頭行番号"]
[null,null,null,"呼び出しファイル，実行マクロ最終行番号"]
[null,null,null,"呼び出しファイル，実行マクロ先頭群番号"]
[null,null,null,"呼び出しファイル，実行マクロ最終群番号"]
[]
[null,null,"２．CV-DataBaseスーパー呼び出し印刷命令リスト設定"]
[]
[null,null,"行番号","実行マクロ群1",null,null,"実行マクロ群２",null,null,"実行マクロ群３",null,null,"実行マクロ群４",null,null,"実行マクロ群５",null,null,"実行マクロ群６"]
[null,null,null,"呼び出しファイルのディレクトリ","ファイル名","実行マクロ名","呼び出しファイルのディレクトリ","ファイル名","実行マクロ名","呼び出しファイルのディレクトリ","ファイル名","実行マクロ名","呼び出しファイルのディレクトリ","ファイル名","実行マクロ名","呼び出しファイルのディレクトリ","ファイル名","実行マクロ名","呼び出しファイルのディレクトリ","ファイル名","実行マクロ名"]
[null,null,1]
[null,null,2]
[null,null,3]
[null,null,4]
[null,null,5]

{"sheet":"CV-DataBaseスーパー呼び出し印刷命令リスト85","index":89,"n_rows":20,"n_cols":21,"rows_kept":20,"cut":false,"hidden":false,"merged":[[13,12,13,14],[13,15,13,17],[13,18,13,20],[13,2,14,2],[13,3,13,5],[13,6,13,8],[13,9,13,11]]}
[]
[]
[null,null,null,{"$f":"シート名設定!D94","v":"CV-DataBaseスーパー呼び出し印刷命令リスト85"}]
[null,null,"1．ループ呼び出し設定"]
[]
[null,null,null,"設定項目","設定値"]
[null,null,null,"呼び出しファイル，実行マクロ先頭行番号"]
[null,null,null,"呼び出しファイル，実行マクロ最終行番号"]
[null,null,null,"呼び出しファイル，実行マクロ先頭群番号"]
[null,null,null,"呼び出しファイル，実行マクロ最終群番号"]
[]
[null,null,"２．CV-DataBaseスーパー呼び出し印刷命令リスト設定"]
[]
[null,null,"行番号","実行マクロ群1",null,null,"実行マクロ群２",null,null,"実行マクロ群３",null,null,"実行マクロ群４",null,null,"実行マクロ群５",null,null,"実行マクロ群６"]
[null,null,null,"呼び出しファイルのディレクトリ","ファイル名","実行マクロ名","呼び出しファイルのディレクトリ","ファイル名","実行マクロ名","呼び出しファイルのディレクトリ","ファイル名","実行マクロ名","呼び出しファイルのディレクトリ","ファイル名","実行マクロ名","呼び出しファイルのディレクトリ","ファイル名","実行マクロ名","呼び出しファイルのディレクトリ","ファイル名","実行マクロ名"]
[null,null,1]
[null,null,2]
[null,null,3]
[null,null,4]
[null,null,5]

{"sheet":"CV-DataBaseスーパー呼び出し印刷命令リスト86","index":90,"n_rows":20,"n_cols":21,"rows_kept":20,"cut":false,"hidden":false,"merged":[[13,12,13,14],[13,15,13,17],[13,18,13,20],[13,2,14,2],[13,3,13,5],[13,6,13,8],[13,9,13,11]]}
[]
[]
[null,null,null,{"$f":"シート名設定!D95","v":"CV-DataBaseスーパー呼び出し印刷命令リスト86"}]
[null,null,"1．ループ呼び出し設定"]
[]
[null,null,null,"設定項目","設定値"]
[null,null,null,"呼び出しファイル，実行マクロ先頭行番号"]
[null,null,null,"呼び出しファイル，実行マクロ最終行番号"]
[null,null,null,"呼び出しファイル，実行マクロ先頭群番号"]
[null,null,null,"呼び出しファイル，実行マクロ最終群番号"]
[]
[null,null,"２．CV-DataBaseスーパー呼び出し印刷命令リスト設定"]
[]
[null,null,"行番号","実行マクロ群1",null,null,"実行マクロ群２",null,null,"実行マクロ群３",null,null,"実行マクロ群４",null,null,"実行マクロ群５",null,null,"実行マクロ群６"]
[null,null,null,"呼び出しファイルのディレクトリ","ファイル名","実行マクロ名","呼び出しファイルのディレクトリ","ファイル名","実行マクロ名","呼び出しファイルのディレクトリ","ファイル名","実行マクロ名","呼び出しファイルのディレクトリ","ファイル名","実行マクロ名","呼び出しファイルのディレクトリ","ファイル名","実行マクロ名","呼び出しファイルのディレクトリ","ファイル名","実行マクロ名"]
[null,null,1]
[null,null,2]
[null,null,3]
[null,null,4]
[null,null,5]

{"sheet":"CV-DataBaseスーパー呼び出し印刷命令リスト87","index":91,"n_rows":20,"n_cols":21,"rows_kept":20,"cut":false,"hidden":false,"merged":[[13,12,13,14],[13,15,13,17],[13,18,13,20],[13,2,14,2],[13,3,13,5],[13,6,13,8],[13,9,13,11]]}
[]
[]
[null,null,null,{"$f":"シート名設定!D96","v":"CV-DataBaseスーパー呼び出し印刷命令リスト87"}]
[null,null,"1．ループ呼び出し設定"]
[]
[null,null,null,"設定項目","設定値"]
[null,null,null,"呼び出しファイル，実行マクロ先頭行番号"]
[null,null,null,"呼び出しファイル，実行マクロ最終行番号"]
[null,null,null,"呼び出しファイル，実行マクロ先頭群番号"]
[null,null,null,"呼び出しファイル，実行マクロ最終群番号"]
[]
[null,null,"２．CV-DataBaseスーパー呼び出し印刷命令リスト設定"]
[]
[null,null,"行番号","実行マクロ群1",null,null,"実行マクロ群２",null,null,"実行マクロ群３",null,null,"実行マクロ群４",null,null,"実行マクロ群５",null,null,"実行マクロ群６"]
[null,null,null,"呼び出しファイルのディレクトリ","ファイル名","実行マクロ名","呼び出しファイルのディレクトリ","ファイル名","実行マクロ名","呼び出しファイルのディレクトリ","ファイル名","実行マクロ名","呼び出しファイルのディレクトリ","ファイル名","実行マクロ名","呼び出しファイルのディレクトリ","ファイル名","実行マクロ名","呼び出しファイルのディレクトリ","ファイル名","実行マクロ名"]
[null,null,1]
[null,null,2]
[null,null,3]
[null,null,4]
[null,null,5]

{"sheet":"CV-DataBaseスーパー呼び出し印刷命令リスト88","index":92,"n_rows":20,"n_cols":21,"rows_kept":20,"cut":false,"hidden":false,"merged":[[13,12,13,14],[13,15,13,17],[13,18,13,20],[13,2,14,2],[13,3,13,5],[13,6,13,8],[13,9,13,11]]}
[]
[]
[null,null,null,{"$f":"シート名設定!D97","v":"CV-DataBaseスーパー呼び出し印刷命令リスト88"}]
[null,null,"1．ループ呼び出し設定"]
[]
[null,null,null,"設定項目","設定値"]
[null,null,null,"呼び出しファイル，実行マクロ先頭行番号"]
[null,null,null,"呼び出しファイル，実行マクロ最終行番号"]
[null,null,null,"呼び出しファイル，実行マクロ先頭群番号"]
[null,null,null,"呼び出しファイル，実行マクロ最終群番号"]
[]
[null,null,"２．CV-DataBaseスーパー呼び出し印刷命令リスト設定"]
[]
[null,null,"行番号","実行マクロ群1",null,null,"実行マクロ群２",null,null,"実行マクロ群３",null,null,"実行マクロ群４",null,null,"実行マクロ群５",null,null,"実行マクロ群６"]
[null,null,null,"呼び出しファイルのディレクトリ","ファイル名","実行マクロ名","呼び出しファイルのディレクトリ","ファイル名","実行マクロ名","呼び出しファイルのディレクトリ","ファイル名","実行マクロ名","呼び出しファイルのディレクトリ","ファイル名","実行マクロ名","呼び出しファイルのディレクトリ","ファイル名","実行マクロ名","呼び出しファイルのディレクトリ","ファイル名","実行マクロ名"]
[null,null,1]
[null,null,2]
[null,null,3]
[null,null,4]
[null,null,5]

{"sheet":"CV-DataBaseスーパー呼び出し印刷命令リスト89","index":93,"n_rows":20,"n_cols":21,"rows_kept":20,"cut":false,"hidden":false,"merged":[[13,12,13,14],[13,15,13,17],[13,18,13,20],[13,2,14,2],[13,3,13,5],[13,6,13,8],[13,9,13,11]]}
[]
[]
[null,null,null,{"$f":"シート名設定!D98","v":"CV-DataBaseスーパー呼び出し印刷命令リスト89"}]
[null,null,"1．ループ呼び出し設定"]
[]
[null,null,null,"設定項目","設定値"]
[null,null,null,"呼び出しファイル，実行マクロ先頭行番号"]
[null,null,null,"呼び出しファイル，実行マクロ最終行番号"]
[null,null,null,"呼び出しファイル，実行マクロ先頭群番号"]
[null,null,null,"呼び出しファイル，実行マクロ最終群番号"]
[]
[null,null,"２．CV-DataBaseスーパー呼び出し印刷命令リスト設定"]
[]
[null,null,"行番号","実行マクロ群1",null,null,"実行マクロ群２",null,null,"実行マクロ群３",null,null,"実行マクロ群４",null,null,"実行マクロ群５",null,null,"実行マクロ群６"]
[null,null,null,"呼び出しファイルのディレクトリ","ファイル名","実行マクロ名","呼び出しファイルのディレクトリ","ファイル名","実行マクロ名","呼び出しファイルのディレクトリ","ファイル名","実行マクロ名","呼び出しファイルのディレクトリ","ファイル名","実行マクロ名","呼び出しファイルのディレクトリ","ファイル名","実行マクロ名","呼び出しファイルのディレクトリ","ファイル名","実行マクロ名"]
[null,null,1]
[null,null,2]
[null,null,3]
[null,null,4]
[null,null,5]

{"sheet":"CV-DataBaseスーパー呼び出し印刷命令リスト90","index":94,"n_rows":20,"n_cols":21,"rows_kept":20,"cut":false,"hidden":false,"merged":[[13,12,13,14],[13,15,13,17],[13,18,13,20],[13,2,14,2],[13,3,13,5],[13,6,13,8],[13,9,13,11]]}
[]
[]
[null,null,null,{"$f":"シート名設定!D99","v":"CV-DataBaseスーパー呼び出し印刷命令リスト90"}]
[null,null,"1．ループ呼び出し設定"]
[]
[null,null,null,"設定項目","設定値"]
[null,null,null,"呼び出しファイル，実行マクロ先頭行番号"]
[null,null,null,"呼び出しファイル，実行マクロ最終行番号"]
[null,null,null,"呼び出しファイル，実行マクロ先頭群番号"]
[null,null,null,"呼び出しファイル，実行マクロ最終群番号"]
[]
[null,null,"２．CV-DataBaseスーパー呼び出し印刷命令リスト設定"]
[]
[null,null,"行番号","実行マクロ群1",null,null,"実行マクロ群２",null,null,"実行マクロ群３",null,null,"実行マクロ群４",null,null,"実行マクロ群５",null,null,"実行マクロ群６"]
[null,null,null,"呼び出しファイルのディレクトリ","ファイル名","実行マクロ名","呼び出しファイルのディレクトリ","ファイル名","実行マクロ名","呼び出しファイルのディレクトリ","ファイル名","実行マクロ名","呼び出しファイルのディレクトリ","ファイル名","実行マクロ名","呼び出しファイルのディレクトリ","ファイル名","実行マクロ名","呼び出しファイルのディレクトリ","ファイル名","実行マクロ名"]
[null,null,1]
[null,null,2]
[null,null,3]
[null,null,4]
[null,null,5]

{"sheet":"CV-DataBaseスーパー呼び出し印刷命令リスト91","index":95,"n_rows":20,"n_cols":21,"rows_kept":20,"cut":false,"hidden":false,"merged":[[13,12,13,14],[13,15,13,17],[13,18,13,20],[13,2,14,2],[13,3,13,5],[13,6,13,8],[13,9,13,11]]}
[]
[]
[null,null,null,{"$f":"シート名設定!D100","v":"CV-DataBaseスーパー呼び出し印刷命令リスト91"}]
[null,null,"1．ループ呼び出し設定"]
[]
[null,null,null,"設定項目","設定値"]
[null,null,null,"呼び出しファイル，実行マクロ先頭行番号"]
[null,null,null,"呼び出しファイル，実行マクロ最終行番号"]
[null,null,null,"呼び出しファイル，実行マクロ先頭群番号"]
[null,null,null,"呼び出しファイル，実行マクロ最終群番号"]
[]
[null,null,"２．CV-DataBaseスーパー呼び出し印刷命令リスト設定"]
[]
[null,null,"行番号","実行マクロ群1",null,null,"実行マクロ群２",null,null,"実行マクロ群３",null,null,"実行マクロ群４",null,null,"実行マクロ群５",null,null,"実行マクロ群６"]
[null,null,null,"呼び出しファイルのディレクトリ","ファイル名","実行マクロ名","呼び出しファイルのディレクトリ","ファイル名","実行マクロ名","呼び出しファイルのディレクトリ","ファイル名","実行マクロ名","呼び出しファイルのディレクトリ","ファイル名","実行マクロ名","呼び出しファイルのディレクトリ","ファイル名","実行マクロ名","呼び出しファイルのディレクトリ","ファイル名","実行マクロ名"]
[null,null,1]
[null,null,2]
[null,null,3]
[null,null,4]
[null,null,5]

{"sheet":"CV-DataBaseスーパー呼び出し印刷命令リスト92","index":96,"n_rows":20,"n_cols":21,"rows_kept":20,"cut":false,"hidden":false,"merged":[[13,12,13,14],[13,15,13,17],[13,18,13,20],[13,2,14,2],[13,3,13,5],[13,6,13,8],[13,9,13,11]]}
[]
[]
[null,null,null,{"$f":"シート名設定!D101","v":"CV-DataBaseスーパー呼び出し印刷命令リスト92"}]
[null,null,"1．ループ呼び出し設定"]
[]
[null,null,null,"設定項目","設定値"]
[null,null,null,"呼び出しファイル，実行マクロ先頭行番号"]
[null,null,null,"呼び出しファイル，実行マクロ最終行番号"]
[null,null,null,"呼び出しファイル，実行マクロ先頭群番号"]
[null,null,null,"呼び出しファイル，実行マクロ最終群番号"]
[]
[null,null,"２．CV-DataBaseスーパー呼び出し印刷命令リスト設定"]
[]
[null,null,"行番号","実行マクロ群1",null,null,"実行マクロ群２",null,null,"実行マクロ群３",null,null,"実行マクロ群４",null,null,"実行マクロ群５",null,null,"実行マクロ群６"]
[null,null,null,"呼び出しファイルのディレクトリ","ファイル名","実行マクロ名","呼び出しファイルのディレクトリ","ファイル名","実行マクロ名","呼び出しファイルのディレクトリ","ファイル名","実行マクロ名","呼び出しファイルのディレクトリ","ファイル名","実行マクロ名","呼び出しファイルのディレクトリ","ファイル名","実行マクロ名","呼び出しファイルのディレクトリ","ファイル名","実行マクロ名"]
[null,null,1]
[null,null,2]
[null,null,3]
[null,null,4]
[null,null,5]

{"sheet":"CV-DataBaseスーパー呼び出し印刷命令リスト93","index":97,"n_rows":20,"n_cols":21,"rows_kept":20,"cut":false,"hidden":false,"merged":[[13,12,13,14],[13,15,13,17],[13,18,13,20],[13,2,14,2],[13,3,13,5],[13,6,13,8],[13,9,13,11]]}
[]
[]
[null,null,null,{"$f":"シート名設定!D102","v":"CV-DataBaseスーパー呼び出し印刷命令リスト93"}]
[null,null,"1．ループ呼び出し設定"]
[]
[null,null,null,"設定項目","設定値"]
[null,null,null,"呼び出しファイル，実行マクロ先頭行番号"]
[null,null,null,"呼び出しファイル，実行マクロ最終行番号"]
[null,null,null,"呼び出しファイル，実行マクロ先頭群番号"]
[null,null,null,"呼び出しファイル，実行マクロ最終群番号"]
[]
[null,null,"２．CV-DataBaseスーパー呼び出し印刷命令リスト設定"]
[]
[null,null,"行番号","実行マクロ群1",null,null,"実行マクロ群２",null,null,"実行マクロ群３",null,null,"実行マクロ群４",null,null,"実行マクロ群５",null,null,"実行マクロ群６"]
[null,null,null,"呼び出しファイルのディレクトリ","ファイル名","実行マクロ名","呼び出しファイルのディレクトリ","ファイル名","実行マクロ名","呼び出しファイルのディレクトリ","ファイル名","実行マクロ名","呼び出しファイルのディレクトリ","ファイル名","実行マクロ名","呼び出しファイルのディレクトリ","ファイル名","実行マクロ名","呼び出しファイルのディレクトリ","ファイル名","実行マクロ名"]
[null,null,1]
[null,null,2]
[null,null,3]
[null,null,4]
[null,null,5]

{"sheet":"CV-DataBaseスーパー呼び出し印刷命令リスト94","index":98,"n_rows":20,"n_cols":21,"rows_kept":20,"cut":false,"hidden":false,"merged":[[13,12,13,14],[13,15,13,17],[13,18,13,20],[13,2,14,2],[13,3,13,5],[13,6,13,8],[13,9,13,11]]}
[]
[]
[null,null,null,{"$f":"シート名設定!D103","v":"CV-DataBaseスーパー呼び出し印刷命令リスト94"}]
[null,null,"1．ループ呼び出し設定"]
[]
[null,null,null,"設定項目","設定値"]
[null,null,null,"呼び出しファイル，実行マクロ先頭行番号"]
[null,null,null,"呼び出しファイル，実行マクロ最終行番号"]
[null,null,null,"呼び出しファイル，実行マクロ先頭群番号"]
[null,null,null,"呼び出しファイル，実行マクロ最終群番号"]
[]
[null,null,"２．CV-DataBaseスーパー呼び出し印刷命令リスト設定"]
[]
[null,null,"行番号","実行マクロ群1",null,null,"実行マクロ群２",null,null,"実行マクロ群３",null,null,"実行マクロ群４",null,null,"実行マクロ群５",null,null,"実行マクロ群６"]
[null,null,null,"呼び出しファイルのディレクトリ","ファイル名","実行マクロ名","呼び出しファイルのディレクトリ","ファイル名","実行マクロ名","呼び出しファイルのディレクトリ","ファイル名","実行マクロ名","呼び出しファイルのディレクトリ","ファイル名","実行マクロ名","呼び出しファイルのディレクトリ","ファイル名","実行マクロ名","呼び出しファイルのディレクトリ","ファイル名","実行マクロ名"]
[null,null,1]
[null,null,2]
[null,null,3]
[null,null,4]
[null,null,5]

{"sheet":"CV-DataBaseスーパー呼び出し印刷命令リスト95","index":99,"n_rows":20,"n_cols":21,"rows_kept":20,"cut":false,"hidden":false,"merged":[[13,12,13,14],[13,15,13,17],[13,18,13,20],[13,2,14,2],[13,3,13,5],[13,6,13,8],[13,9,13,11]]}
[]
[]
[null,null,null,{"$f":"シート名設定!D104","v":"CV-DataBaseスーパー呼び出し印刷命令リスト95"}]
[null,null,"1．ループ呼び出し設定"]
[]
[null,null,null,"設定項目","設定値"]
[null,null,null,"呼び出しファイル，実行マクロ先頭行番号"]
[null,null,null,"呼び出しファイル，実行マクロ最終行番号"]
[null,null,null,"呼び出しファイル，実行マクロ先頭群番号"]
[null,null,null,"呼び出しファイル，実行マクロ最終群番号"]
[]
[null,null,"２．CV-DataBaseスーパー呼び出し印刷命令リスト設定"]
[]
[null,null,"行番号","実行マクロ群1",null,null,"実行マクロ群２",null,null,"実行マクロ群３",null,null,"実行マクロ群４",null,null,"実行マクロ群５",null,null,"実行マクロ群６"]
[null,null,null,"呼び出しファイルのディレクトリ","ファイル名","実行マクロ名","呼び出しファイルのディレクトリ","ファイル名","実行マクロ名","呼び出しファイルのディレクトリ","ファイル名","実行マクロ名","呼び出しファイルのディレクトリ","ファイル名","実行マクロ名","呼び出しファイルのディレクトリ","ファイル名","実行マクロ名","呼び出しファイルのディレクトリ","ファイル名","実行マクロ名"]
[null,null,1]
[null,null,2]
[null,null,3]
[null,null,4]
[null,null,5]

{"sheet":"CV-DataBaseスーパー呼び出し印刷命令リスト96","index":100,"n_rows":20,"n_cols":21,"rows_kept":20,"cut":false,"hidden":false,"merged":[[13,12,13,14],[13,15,13,17],[13,18,13,20],[13,2,14,2],[13,3,13,5],[13,6,13,8],[13,9,13,11]]}
[]
[]
[null,null,null,{"$f":"シート名設定!D105","v":"CV-DataBaseスーパー呼び出し印刷命令リスト96"}]
[null,null,"1．ループ呼び出し設定"]
[]
[null,null,null,"設定項目","設定値"]
[null,null,null,"呼び出しファイル，実行マクロ先頭行番号"]
[null,null,null,"呼び出しファイル，実行マクロ最終行番号"]
[null,null,null,"呼び出しファイル，実行マクロ先頭群番号"]
[null,null,null,"呼び出しファイル，実行マクロ最終群番号"]
[]
[null,null,"２．CV-DataBaseスーパー呼び出し印刷命令リスト設定"]
[]
[null,null,"行番号","実行マクロ群1",null,null,"実行マクロ群２",null,null,"実行マクロ群３",null,null,"実行マクロ群４",null,null,"実行マクロ群５",null,null,"実行マクロ群６"]
[null,null,null,"呼び出しファイルのディレクトリ","ファイル名","実行マクロ名","呼び出しファイルのディレクトリ","ファイル名","実行マクロ名","呼び出しファイルのディレクトリ","ファイル名","実行マクロ名","呼び出しファイルのディレクトリ","ファイル名","実行マクロ名","呼び出しファイルのディレクトリ","ファイル名","実行マクロ名","呼び出しファイルのディレクトリ","ファイル名","実行マクロ名"]
[null,null,1]
[null,null,2]
[null,null,3]
[null,null,4]
[null,null,5]

{"sheet":"CV-DataBaseスーパー呼び出し印刷命令リスト97","index":101,"n_rows":20,"n_cols":21,"rows_kept":20,"cut":false,"hidden":false,"merged":[[13,12,13,14],[13,15,13,17],[13,18,13,20],[13,2,14,2],[13,3,13,5],[13,6,13,8],[13,9,13,11]]}
[]
[]
[null,null,null,{"$f":"シート名設定!D106","v":"CV-DataBaseスーパー呼び出し印刷命令リスト97"}]
[null,null,"1．ループ呼び出し設定"]
[]
[null,null,null,"設定項目","設定値"]
[null,null,null,"呼び出しファイル，実行マクロ先頭行番号"]
[null,null,null,"呼び出しファイル，実行マクロ最終行番号"]
[null,null,null,"呼び出しファイル，実行マクロ先頭群番号"]
[null,null,null,"呼び出しファイル，実行マクロ最終群番号"]
[]
[null,null,"２．CV-DataBaseスーパー呼び出し印刷命令リスト設定"]
[]
[null,null,"行番号","実行マクロ群1",null,null,"実行マクロ群２",null,null,"実行マクロ群３",null,null,"実行マクロ群４",null,null,"実行マクロ群５",null,null,"実行マクロ群６"]
[null,null,null,"呼び出しファイルのディレクトリ","ファイル名","実行マクロ名","呼び出しファイルのディレクトリ","ファイル名","実行マクロ名","呼び出しファイルのディレクトリ","ファイル名","実行マクロ名","呼び出しファイルのディレクトリ","ファイル名","実行マクロ名","呼び出しファイルのディレクトリ","ファイル名","実行マクロ名","呼び出しファイルのディレクトリ","ファイル名","実行マクロ名"]
[null,null,1]
[null,null,2]
[null,null,3]
[null,null,4]
[null,null,5]

{"sheet":"CV-DataBaseスーパー呼び出し印刷命令リスト98","index":102,"n_rows":20,"n_cols":21,"rows_kept":20,"cut":false,"hidden":false,"merged":[[13,12,13,14],[13,15,13,17],[13,18,13,20],[13,2,14,2],[13,3,13,5],[13,6,13,8],[13,9,13,11]]}
[]
[]
[null,null,null,{"$f":"シート名設定!D107","v":"CV-DataBaseスーパー呼び出し印刷命令リスト98"}]
[null,null,"1．ループ呼び出し設定"]
[]
[null,null,null,"設定項目","設定値"]
[null,null,null,"呼び出しファイル，実行マクロ先頭行番号"]
[null,null,null,"呼び出しファイル，実行マクロ最終行番号"]
[null,null,null,"呼び出しファイル，実行マクロ先頭群番号"]
[null,null,null,"呼び出しファイル，実行マクロ最終群番号"]
[]
[null,null,"２．CV-DataBaseスーパー呼び出し印刷命令リスト設定"]
[]
[null,null,"行番号","実行マクロ群1",null,null,"実行マクロ群２",null,null,"実行マクロ群３",null,null,"実行マクロ群４",null,null,"実行マクロ群５",null,null,"実行マクロ群６"]
[null,null,null,"呼び出しファイルのディレクトリ","ファイル名","実行マクロ名","呼び出しファイルのディレクトリ","ファイル名","実行マクロ名","呼び出しファイルのディレクトリ","ファイル名","実行マクロ名","呼び出しファイルのディレクトリ","ファイル名","実行マクロ名","呼び出しファイルのディレクトリ","ファイル名","実行マクロ名","呼び出しファイルのディレクトリ","ファイル名","実行マクロ名"]
[null,null,1]
[null,null,2]
[null,null,3]
[null,null,4]
[null,null,5]

{"sheet":"CV-DataBaseスーパー呼び出し印刷命令リスト99","index":103,"n_rows":20,"n_cols":21,"rows_kept":20,"cut":false,"hidden":false,"merged":[[13,12,13,14],[13,15,13,17],[13,18,13,20],[13,2,14,2],[13,3,13,5],[13,6,13,8],[13,9,13,11]]}
[]
[]
[null,null,null,{"$f":"シート名設定!D108","v":"CV-DataBaseスーパー呼び出し印刷命令リスト99"}]
[null,null,"1．ループ呼び出し設定"]
[]
[null,null,null,"設定項目","設定値"]
[null,null,null,"呼び出しファイル，実行マクロ先頭行番号"]
[null,null,null,"呼び出しファイル，実行マクロ最終行番号"]
[null,null,null,"呼び出しファイル，実行マクロ先頭群番号"]
[null,null,null,"呼び出しファイル，実行マクロ最終群番号"]
[]
[null,null,"２．CV-DataBaseスーパー呼び出し印刷命令リスト設定"]
[]
[null,null,"行番号","実行マクロ群1",null,null,"実行マクロ群２",null,null,"実行マクロ群３",null,null,"実行マクロ群４",null,null,"実行マクロ群５",null,null,"実行マクロ群６"]
[null,null,null,"呼び出しファイルのディレクトリ","ファイル名","実行マクロ名","呼び出しファイルのディレクトリ","ファイル名","実行マクロ名","呼び出しファイルのディレクトリ","ファイル名","実行マクロ名","呼び出しファイルのディレクトリ","ファイル名","実行マクロ名","呼び出しファイルのディレクトリ","ファイル名","実行マクロ名","呼び出しファイルのディレクトリ","ファイル名","実行マクロ名"]
[null,null,1]
[null,null,2]
[null,null,3]
[null,null,4]
[null,null,5]

{"sheet":"CV-DataBaseスーパー呼び出し印刷命令リスト100","index":104,"n_rows":20,"n_cols":21,"rows_kept":20,"cut":false,"hidden":false,"merged":[[13,12,13,14],[13,15,13,17],[13,18,13,20],[13,2,14,2],[13,3,13,5],[13,6,13,8],[13,9,13,11]]}
[]
[]
[null,null,null,{"$f":"シート名設定!D109","v":"CV-DataBaseスーパー呼び出し印刷命令リスト100"}]
[null,null,"1．ループ呼び出し設定"]
[]
[null,null,null,"設定項目","設定値"]
[null,null,null,"呼び出しファイル，実行マクロ先頭行番号"]
[null,null,null,"呼び出しファイル，実行マクロ最終行番号"]
[null,null,null,"呼び出しファイル，実行マクロ先頭群番号"]
[null,null,null,"呼び出しファイル，実行マクロ最終群番号"]
[]
[null,null,"２．CV-DataBaseスーパー呼び出し印刷命令リスト設定"]
[]
[null,null,"行番号","実行マクロ群1",null,null,"実行マクロ群２",null,null,"実行マクロ群３",null,null,"実行マクロ群４",null,null,"実行マクロ群５",null,null,"実行マクロ群６"]
[null,null,null,"呼び出しファイルのディレクトリ","ファイル名","実行マクロ名","呼び出しファイルのディレクトリ","ファイル名","実行マクロ名","呼び出しファイルのディレクトリ","ファイル名","実行マクロ名","呼び出しファイルのディレクトリ","ファイル名","実行マクロ名","呼び出しファイルのディレクトリ","ファイル名","実行マクロ名","呼び出しファイルのディレクトリ","ファイル名","実行マクロ名"]
[null,null,1]
[null,null,2]
[null,null,3]
[null,null,4]
[null,null,5]